{"text_format":"1","workbook":"xlsx","n_sheets":26,"sheets":["ÍNDICE GENERAL","UNIDADES DE DIAGNÓSTICO","MAT 19 PLANEA SEC","LYC 19 PLANEA SEC","VARIACIÓN LYC","VARIACIÓN MAT","LYC AVANCE NI SUBSISTEMAS","MAT AVANCE NIV SUBSISTEMAS","NIVELES SUBSISTEMAS","TURNO 17-19 LYC","TURNO 17-19 MAT","NIVELES MODALIDAD ESCUELA","SELECCIÓN DE ESCUELAS","UD_ANALISIS CONTENIDO","UD_DESARROLLO COMPRENSIÓN GLOBA","UD_DESARROLLO INTERPRETACIÓN","UD_EVALUACIÓN CRÍTICA","UD_REFLEXIÓN SEMÁNTICA","UD_FIGURAS Y CUERPO","UD_MEDIDA","UD_PROBABILIDAD","UD_NÚMEROS Y SISTEMAS","UD_PATRONES Y ECUACIONES","UD_PROBLEMAS ADITIVOS","UD_PROBLEMAS MULTIPLICATIVOS","UD_PROPORCIONALIDAD"],"not_rendered":{"charts":51,"images":20,"macros":1,"external_links":0,"defined_names":5,"comments":1,"pivot_tables":42},"unopened":[],"bounds":{"document_bytes":16777216,"sheet_cells":100000,"rows_first":2000,"rows_last":500,"rows_between":2000,"halvings":0,"cell_chars":16384,"cell_head_chars":4096},"cells_cut":0,"cells_raw":0,"read":"whole","date_system":"1900"}

{"sheet":"ÍNDICE GENERAL","index":0,"n_rows":1,"n_cols":12,"rows_kept":1,"cut":false,"hidden":false,"merged":[]}
[null,null,null,null,null,null,null,null,null,null,null,"https://secundarias.resultadosplanea.connectit.company/map?state=8"]

{"sheet":"UNIDADES DE DIAGNÓSTICO","index":1,"n_rows":1,"n_cols":12,"rows_kept":1,"cut":false,"hidden":false,"merged":[]}
[null,null,null,null,null,null,null,null,null,null,null,"https://secundarias.resultadosplanea.connectit.company/map?state=8"]

{"sheet":"MAT 19 PLANEA SEC","index":2,"n_rows":39,"n_cols":6,"rows_kept":39,"cut":false,"hidden":false,"merged":[[1,0,3,5],[0,0,0,11]]}
["MATEMÁTICAS 3o SECUNDARIA PLANEA 2019"]
["El ordenamiento de las entidades federativas se apega al criterio tradicionalmente empleado por el inee, considerando el porcentaje de estudiantes en el nivel I. Así, mientras sea menor el porcentaje de estudiantes en este nivel, la entidad se ubica en mejor posición."]
[]
[]
[]
[null,"ENTIDAD FEDERATIVA","NIVEL I","NIVEL II","NIVEL III","NIV IV"]
[1,"QUERÉTARO",46.914869888475799,29.128252788104,12.2083643122676,11.749999999999901]
[2,"PUEBLA",46.917765644687002,28.703359932801298,12.6782444351112,11.704199916001601]
[3,"CIUDAD DE MÉXICO",47.022481203007501,25.395338345864701,13.066090225563901,14.516691729323201]
[4,"SINALOA",47.172058823529397,27.1703781512605,12.805357142857099,12.8554621848739]
[5,"HIDALGO",48.875880551301599,28.856584992342999,11.535987748851401,10.7362174578866]
[6,"SONORA",49.640928270042203,25.9659634317862,12.119409282700399,12.275808720112501]
[7,"JALISCO",50.707443209279802,26.9093765103915,12.0203963267278,10.362928951184101]
[8,"TLAXCALA",50.884615384615302,24.434615384615299,10.257692307692301,14.4230769230769]
[9,"MÉXICO",53.9587591240875,26.961261730969799,10.341605839415999,8.7425964546402604]
[10,"NUEVO LEÓN",54.168397085610103,24.588069216757699,10.593533697631999,10.6506375227686]
[11,"AGUASCALIENTES",54.829885057471202,26.688218390804501,10.075862068965501,8.4083333333333297]
[12,"CAMPECHE",55.6771513353115,26.683382789317498,10.401483679525199,7.2409495548961402]
[null,"NACIONAL",56.864549444119397,24.9195084844939,9.7116734932709701,8.5067290813340595]
[13,"MORELOS",56.923287671232799,24.631506849314999,10.394716242661399,8.0581213307240702]
[14,"COLIMA",57.103448275862,23.465517241379299,10.4344827586206,8.9942528735632106]
[15,"TAMAULIPAS",57.436052631578796,23.891184210526301,10.1130263157894,8.5623684210526196]
[16,"DURANGO",57.523369565217301,24.815434782608602,9.7595652173912892,7.9028260869565203]
[17,"GUANAJUATO",57.622426868905698,25.845449620801599,9.1461538461538403,7.3881906825568802]
[18,"ZACATECAS",58.9792070484581,25.9169162995594,8.5964757709251192,6.5109251101321499]
[19,"SAN LUIS POTOSÍ",59.139298669891197,25.923397823458199,8.4455864570737393,6.4962515114872899]
[20,"BAJA CALIFORNIA SUR",59.723560209424001,24.1073298429319,8.2696335078533991,7.8999999999999897]
[21,"CHIHUAHUA",60.782599355531602,23.054135338345802,7.9861439312567102,8.1812030075187891]
[22,"COAHUILA",61.152195121951202,23.1873170731707,8.2580487804877993,7.40617886178861]
[23,"MICHOACÁN",61.385631349782301,21.124963715529699,9.8328011611030401,7.6577648766328004]
[24,"VERACRUZ",61.680132251277399,24.458791704237999,7.97000300571084,5.8928163510670304]
[25,"TABASCO",62.291096774193498,20.9291612903226,8.3907096774193501,8.3905806451612897]
[26,"BAJA CALIFORNIA",63.382352941176599,21.967027863776998,7.9400928792569703,6.7082043343653197]
[27,"QUINTANA ROO",64.233636363636293,22.873181818181799,7.4313636363636304,5.4622727272727198]
[28,"NAYARIT",65.149914236706607,22.9188679245282,7.6674099485420202,4.2680960548884999]
[29,"OAXACA",65.7435374149659,23.804931972789099,5.8583333333333396,4.5938775510204097]
[30,"CHIAPAS",66.747017189079898,17.782406471182899,7.8030333670373997,7.6698685540950402]
[31,"YUCATÁN",67.2025000000001,20.880624999999998,6.7959374999999902,5.1214062499999899]
[32,"GUERRERO",69.019302071973698,18.664122137404501,6.4440567066521197,5.8746455834242104]

{"sheet":"LYC 19 PLANEA SEC","index":3,"n_rows":41,"n_cols":19,"rows_kept":41,"cut":false,"hidden":false,"merged":[[1,1,1,6],[0,0,0,12],[3,0,4,5]]}
["LENGUAJE Y COMUNICACIÓN 3o SECUNDARIA PLANEA 2019"]
[]
[]
["El ordenamiento de las entidades federativas se apega al criterio tradicionalmente empleado por el inee, considerando el porcentaje de estudiantes en el nivel I. Así, mientras sea menor el porcentaje de estudiantes en este nivel, la entidad se ubica en mejor posición."]
[]
[null,"ESTADO","I","II","III","IV"]
[1,"CIUDAD DE MÉXICO",23.370827067669101,37.937593984962398,23.655639097744299,15.0367669172932]
[2,"MÉXICO",29.922346805736701,44.389439374185102,18.424250325945199,7.2685267275097702,null,null,null,null,null,null,null,null,"ESTADO_17","LYC 2017 NIVEL I","LYC 2019 NIV I","DIF. LYC 17-19 PLANEA SEC","PORCENTAJE DE AVANCE"]
[3,"QUERÉTARO",30.873507462686501,42.465671641790998,17.882649253731302,8.7783582089552201,null,null,null,null,null,null,null,null,"AGUASCALIENTES",35.56,32.950000000000003,{"$f":"(Q9-P9)","v":-2.6099999999999994}]
[4,"MORELOS",30.995098039215701,42.559215686274399,18.172745098039201,8.28117647058823,null,null,null,null,null,null,null,null,"BAJA CALIFORNIA",32.752000000000002,30.78,{"$f":"(Q10-P10)","v":-1.9720000000000013}]
[5,"COLIMA",31.947701149425299,40.998275862068901,18.805172413793098,8.2425287356321792,null,null,null,null,null,null,null,null,"BAJA CALIFORNIA SUR",33.405000000000001,33.94,0.53499999999999659]
[6,"JALISCO",31.959139264990299,41.667746615087097,18.291199226305601,8.0809961315280496,null,null,null,null,null,null,null,null,"CAMPECHE",40.417000000000002,40.01,-0.40700000000000358]
[7,"NUEVO LEÓN",31.9747042766151,40.976888080072797,18.561783439490402,8.4884440400364003,null,null,null,null,null,null,null,null,"CHIAPAS",63.816000000000003,58.63,-5.1859999999999999]
[8,"BAJA CALIFORNIA",32.033641975308598,43.233950617283902,17.0819444444444,7.6530864197530803,null,null,null,null,null,null,null,null,"CHIHUAHUA",46.295000000000002,43.74,-2.5549999999999997]
[9,"SONORA",32.229014084507,40.299014084507,18.4197183098591,9.0557746478873202,null,null,null,null,null,null,null,null,"CIUDAD DE MÉXICO",26.584,23.39,-3.1939999999999991]
[10,"HIDALGO",32.460766283524897,44.0061302681992,17.102298850574702,6.4320306513409902,null,null,null,null,null,null,null,null,"COAHUILA",34.363,34.479999999999997,0.11699999999999733]
[11,"SINALOA",32.508193277310902,41.894642857142799,18.705882352941099,6.8942226890756402,null,null,null,null,null,null,null,null,"COLIMA",30.756,30.8,4.4000000000000483E-2]
[12,"BAJA CALIFORNIA SUR",33.627225130889997,40.977486910994699,17.970680628272198,7.4230366492146498,null,null,null,null,null,null,null,null,"DURANGO",45.02,45.79,0.76999999999999602]
[13,"PUEBLA",33.6985300293994,42.630701385972301,17.0582108357832,6.6177656446870898,null,null,null,null,null,null,null,null,"GUANAJUATO",38.35,37.99,-0.35999999999999943]
[14,"AGUASCALIENTES",33.789337175792497,42.753314121037398,16.863688760806902,6.5979827089337197,null,null,null,null,null,null,null,null,"GUERRERO",56.015000000000001,55.29,-0.72500000000000142]
[15,"TAMAULIPAS",34.935968379446599,40.948616600790501,16.901976284584901,7.2144927536231798,null,null,null,null,null,null,null,null,"HIDALGO",35.247,31.98,-3.2669999999999995]
[16,"COAHUILA",35.202280130293097,40.969543973941299,16.469869706840299,7.3586319218240996,null,null,null,null,null,null,null,null,"JALISCO",31.57,31.44,-0.12999999999999901]
[null,"NACIONAL ",37.873546367015102,40.729400403827597,15.2949463026366,6.1044099142597803,null,null,null,null,null,null,null,null,"MÉXICO",32.957000000000001,32.08,-0.87700000000000244]
[17,"GUANAJUATO",38.055796316359697,41.850866738894901,14.9604550379198,5.1323401950162504,null,null,null,null,null,null,null,null,"MICHOACÁN",47.796999999999997,41.03,-6.7669999999999959]
[18,"QUINTANA ROO",38.200000000000003,40.662727272727302,14.7815909090909,6.3559090909090896,null,null,null,null,null,null,null,null,"MORELOS",32.787999999999997,30.87,-1.9179999999999957]
[19,"VERACRUZ",39.653892395551402,42.298166516381102,13.4412684099789,4.6099188458070302,null,null,null,null,null,null,null,null,"NAYARIT",48.64,45.13,-3.509999999999998]
[20,"CAMPECHE",40.368749999999999,40.914583333333297,13.5752976190476,5.1467261904761896,null,null,null,null,null,null,null,null,"NUEVO LEÓN",37.692999999999998,31.58,-6.1129999999999995]
[21,"SAN LUIS POTOSÍ",40.502114803625297,42.845740181268802,12.773534743202401,3.8823564954682701,null,null,null,null,null,null,null,null,"OAXACA",51.930999999999997,47.36,-4.570999999999998]
[22,"TLAXCALA",43.953846153846101,47.326923076923002,7.4346153846153804,1.28076923076923,null,null,null,null,null,null,null,null,"PUEBLA",32.914000000000001,32.69,-0.22400000000000375]
[23,"ZACATECAS",44.412863436123402,40.238854625550601,12.149339207048399,3.20052863436123,null,null,null,null,null,null,null,null,"QUERÉTARO",32.042000000000002,30.63,-1.4120000000000026]
[24,"TABASCO",44.436528497409299,39.732253886010298,11.7156735751295,4.1195595854922198,null,null,null,null,null,null,null,null,"QUINTANA ROO",36.610999999999997,32.93,-3.6809999999999974]
[25,"MICHOACÁN",44.495224312590302,38.512301013024498,12.3483357452966,4.6442836468885602,null,null,null,null,null,null,null,null,"SAN LUIS POTOSÍ",41.457000000000001,30.84,-10.617000000000001]
[26,"YUCATÁN",44.914687499999999,38.376562499999999,11.95890625,4.7496875000000003,null,null,null,null,null,null,null,null,"SINALOA",37.25,32.090000000000003,-5.1599999999999966]
[27,"NAYARIT",45.061101549053298,39.445611015490499,11.3030981067125,4.1910499139414696,null,null,null,null,null,null,null,null,"SONORA",36.764000000000003,32.25,-4.5140000000000029]
[28,"CHIHUAHUA",45.063626609441997,37.613733905579302,12.503111587982801,4.8232832618025698,null,null,null,null,null,null,null,null,"TABASCO",49.524000000000001,44.29,-5.2340000000000018]
[29,"DURANGO",45.8675,38.776630434782597,11.681956521739099,3.6753260869565199,null,null,null,null,null,null,null,null,"TAMAULIPAS",41.710999999999999,35.270000000000003,-6.4409999999999954]
[30,"OAXACA",50.231740614334399,35.078156996586998,11.516894197952199,3.1742320819112599,null,null,null,null,null,null,null,null,"TLAXCALA",38.063000000000002,49.69,11.626999999999995]
[31,"GUERRERO",56.070277626565002,32.663309744148101,8.8415351115949807,2.4266739248775102,null,null,null,null,null,null,null,null,"VERACRUZ",41.268999999999998,39.770000000000003,-1.4989999999999952]
[32,"CHIAPAS",58.648282828282802,30.834040404040302,7.4510101010100902,3.0683838383838302,null,null,null,null,null,null,null,null,"YUCATÁN",43.54,45.2,1.6600000000000037]
[null,null,null,null,null,null,null,null,null,null,null,null,null,null,"ZACATECAS",44.515000000000001,44.19,-0.32500000000000284]
[null,null,null,null,null,null,null,null,null,null,null,null,null,null,"Total",39.49,37.869999999999997,-1.6200000000000045]

{"sheet":"VARIACIÓN LYC","index":4,"n_rows":76,"n_cols":8,"rows_kept":76,"cut":false,"hidden":false,"merged":[[2,17,2,20],[1,1,1,6],[41,1,41,6],[0,1,0,6],[0,7,0,11],[40,1,40,6],[40,7,40,11]]}
[null,"PORCENTAJE DE AVANCE DE PLANEA 2017-19 SECUNDARIAS ",null,null,null,null,null,"PORCENTAJE DE AVANCE PLANEA 2017-19 SECUNDARIAS"]
[null,"En el caso del nivel iv el dato de variación, los números NEGATIVOS indican mejoría debido a que existen en el 2019 un porcentaje mayor de estudiantes en este nivel i I Los números POSITIVOS  indican que al contrario disminuyeron el porcentaje en este mismo nivel. Ninguna entidad incrementó positivamente el porcentaje de estudiantes en este nivel."]
[null,null,"ESTADO","NIV I LYC 17","NIV I LYC 19","VARIACIÓN","PORCENTAJE DE AVANCE"]
[null,1,"TAMAULIPAS",41.710999999999999,34.94,{"$f":"(D4-E4)*-1","v":-6.7710000000000008},{"$f":"((E4-D4)*100)/E4","v":-19.378935317687468}]
[null,2,"NUEVO LEÓN",37.692999999999998,31.97,-5.722999999999999,-17.901157335001564]
[null,3,"SINALOA",37.25,32.51,-4.740000000000002,-14.580129191018155]
[null,4,"SONORA",36.764000000000003,32.229999999999997,-4.534000000000006,-14.067638845795862]
[null,5,"CIUDAD DE MÉXICO",26.584,23.37,-3.2139999999999986,-13.752674368848945]
[null,6,"TABASCO",49.524000000000001,44.44,-5.0840000000000032,-11.440144014401447]
[null,7,"MÉXICO",32.957000000000001,29.92,-3.036999999999999,-10.150401069518713]
[null,8,"CHIAPAS",63.816000000000003,58.65,-5.1660000000000039,-8.8081841432225136]
[null,9,"HIDALGO",35.247,32.46,-2.786999999999999,-8.5859519408502756]
[null,10,"NAYARIT",48.64,45.06,-3.5799999999999983,-7.9449622725255171]
[null,11,"MICHOACÁN",47.796999999999997,44.5,-3.296999999999997,-7.4089887640449374]
[null,12,"MORELOS",32.787999999999997,31,-1.7879999999999967,-5.7677419354838602]
[null,13,"AGUASCALIENTES",35.56,33.79,-1.7700000000000031,-5.2382361645457332]
[null,null,"NACIONAL",39.49,37.869999999999997,-1.6200000000000045,-4.2777924478479132]
[null,14,"VERACRUZ",41.268999999999998,39.65,-1.6189999999999998,-4.0832282471626726]
[null,15,"QUERÉTARO",32.042000000000002,30.87,-1.1720000000000006,-3.7965662455458391]
[null,16,"OAXACA",51.930999999999997,50.23,-1.7010000000000005,-3.3864224566991852]
[null,17,"CHIHUAHUA",46.295000000000002,45.06,-1.2349999999999994,-2.7407900577008419]
[null,18,"SAN LUIS POTOSÍ",41.457000000000001,40.5,-0.95700000000000074,-2.3629629629629649]
[null,19,"BAJA CALIFORNIA",32.752000000000002,32.03,-0.72200000000000131,-2.2541367467998792]
[null,20,"GUANAJUATO",38.35,38.06,-0.28999999999999915,-0.76195480819758044]
[null,21,"ZACATECAS",44.515000000000001,44.41,-0.10500000000000398,-0.23643323575772121]
[null,22,"CAMPECHE",40.417000000000002,40.369999999999997,-4.700000000000415E-2,-0.11642308645034469]
[null,23,"GUERRERO",56.015000000000001,56.07,5.4999999999999716E-2,9.8091671125378477E-2]
[null,24,"BAJA CALIFORNIA SUR",33.405000000000001,33.630000000000003,0.22500000000000142,0.66904549509367051]
[null,25,"JALISCO",31.57,31.96,0.39000000000000057,1.220275344180227]
[null,26,"DURANGO",45.02,45.87,0.84999999999999432,1.8530630041421285]
[null,27,"PUEBLA",32.914000000000001,33.700000000000003,0.78600000000000136,2.3323442136498556]
[null,28,"COAHUILA",34.363,35.200000000000003,0.8370000000000033,2.3778409090909181]
[null,29,"YUCATÁN",43.54,44.91,1.3699999999999974,3.0505455355154698]
[null,30,"COLIMA",30.756,31.95,1.1939999999999991,3.7370892018779314]
[null,31,"QUINTANA ROO",36.610999999999997,38.200000000000003,1.5890000000000057,4.1596858638743601]
[null,32,"TLAXCALA",38.063000000000002,43.95,5.8870000000000005,13.39476678043231]
[]
[]
[]
[]
[null,"PORCENTAJE DE AVANCE PLANEA 2017-19 SECUNDARIAS",null,null,null,null,null,"PORCENTAJE DE AVANCE PLANEA 2017-19 SECUNDARIAS "]
[null,"En el caso del nivel iv el dato de variación, los números  POSITIVOS indican mejoría debido a que existen en el 2019 un porcentaje mayor de estudiantes en este nivel i I Los números NEGATIVOS  indican que al contrario disminuyeron el porcentaje en este mismo nivel. Ninguna entidad incrementó positivamente el porcentaje de estudiantes en este nivel."]
[null,null,"ENTIDAD","LYC 2017 NIVEL IV","LYC 2019 NIV IV","VARIACIÓN","PORCENTAJE DE AVANCE 17-19"]
[null,1,"CIUDAD DE MÉXICO",25.173999999999999,15.04,{"$f":"(E44-D44)","v":-10.134},{"$f":"((E44-D44)*100)/E44","v":-67.380319148936181}]
[null,2,"NUEVO LEÓN",15.590999999999999,8.49,{"$f":"(E45-D45)","v":-7.1009999999999991},-83.639575971731432]
[null,3,"SONORA",17.001000000000001,9.06,-7.9410000000000007,-87.649006622516552]
[null,4,"TAMAULIPAS",13.661,7.21,-6.4509999999999996,-89.472954230235771]
[null,5,"CHIAPAS",6.2510000000000003,3.07,-3.1810000000000005,-103.6156351791531]
[null,6,"BAJA CALIFORNIA",16.007999999999999,7.65,-8.3579999999999988,-109.25490196078428]
[null,7,"MORELOS",17.456,8.2799999999999994,-9.1760000000000002,-110.82125603864735]
[null,8,"BAJA CALIFORNIA SUR",15.906000000000001,7.42,-8.4860000000000007,-114.36657681940702]
[null,9,"QUERÉTARO",19.571999999999999,8.7799999999999994,-10.792,-122.91571753986334]
[null,10,"TABASCO",9.3520000000000003,4.12,-5.2320000000000002,-126.99029126213593]
[null,11,"AGUASCALIENTES",15.013999999999999,6.6,-8.4139999999999997,-127.48484848484848]
[null,12,"CAMPECHE",11.760999999999999,5.15,-6.6109999999999989,-128.36893203883491]
[null,13,"COLIMA",18.925999999999998,8.24,-10.685999999999998,-129.68446601941747]
[null,14,"MÉXICO",16.739999999999998,7.27,-9.4699999999999989,-130.26134800550204]
[null,15,"JALISCO",18.690999999999999,8.08,-10.610999999999999,-131.32425742574256]
[null,16,"MICHOACÁN",10.739000000000001,4.6399999999999997,-6.0990000000000011,-131.44396551724139]
[null,17,"COAHUILA",17.227,7.36,-9.8670000000000009,-134.0625]
[null,18,"YUCATÁN",11.141,4.75,-6.391,-134.54736842105262]
[null,null,"NACIONAL",14.375,6.1,-8.2750000000000004,-135.65573770491804]
[null,19,"SINALOA",16.353999999999999,6.89,-9.4639999999999986,-137.35849056603772]
[null,20,"NAYARIT",9.9619999999999997,4.1900000000000004,-5.7719999999999994,-137.75656324582337]
[null,21,"QUINTANA ROO",15.467000000000001,6.36,-9.1069999999999993,-143.19182389937106]
[null,22,"HIDALGO",15.97,6.43,-9.5400000000000009,-148.36702954898914]
[null,23,"CHIHUAHUA",12.03,4.82,-7.2099999999999991,-149.58506224066386]
[null,24,"PUEBLA",17.126999999999999,6.62,-10.506999999999998,-158.71601208459211]
[null,25,"VERACRUZ",12.004,4.6100000000000003,-7.3939999999999992,-160.39045553145334]
[null,26,"OAXACA",8.7729999999999997,3.17,-5.6029999999999998,-176.7507886435331]
[null,27,"GUANAJUATO",14.842000000000001,5.13,-9.7119999999999997,-189.31773879142298]
[null,28,"GUERRERO",7.2919999999999998,2.4300000000000002,-4.8620000000000001,-200.08230452674894]
[null,29,"SAN LUIS POTOSÍ",12.425000000000001,3.88,-8.5450000000000017,-220.23195876288665]
[null,30,"DURANGO",11.872999999999999,3.68,-8.1929999999999996,-222.63586956521738]
[null,31,"ZACATECAS",10.907,3.2,-7.7069999999999999,-240.84374999999997]
[null,32,"TLAXCALA",12.661,1.28,-11.381,-889.14062499999989]

{"sheet":"VARIACIÓN MAT","index":5,"n_rows":80,"n_cols":26,"rows_kept":80,"cut":false,"hidden":false,"merged":[[43,7,43,13],[43,0,43,6],[4,25,4,30],[0,1,0,6],[0,7,0,13]]}
[null,"PORCENTAJE DE VARIACIÓN ENTRE 2017 Y 2019 EN EL NIVEL I MATEMÁTICAS",null,null,null,null,null,"PORCENTAJE DE VARIACIÓN ENTRE 2017 Y 2019 EN EL NIVEL I MATEMÁTICAS"]
[]
[]
[null,"ENTIDAD","MAT 2017 NIVEL I","MAT 2019 NIV I","DIF. 17-19 MAT","PORCENTAJE DE AVANCE"]
[1,"TLAXCALA",60.563000000000002,50.88,{"$f":"(C5-D5)","v":9.6829999999999998},{"$f":"((C5-D5)*100)/C5","v":15.988309694037612},null,null,null,null,null,null,null,null,null,null,null,null,null,null,null,null,null,null,null,"PUNTAJE COMPARATIVO NIVEL I MATEMATICAS 17-19"]
[2,"SONORA",56.67,49.64,7.0300000000000011,12.405152638080114]
[3,"SINALOA",53.012,47.17,5.8419999999999987,11.020146381951253]
[4,"TABASCO",69.858999999999995,62.29,7.5689999999999955,10.834681286591557]
[5,"TAMAULIPAS",63.834000000000003,57.44,6.3940000000000055,10.016605570699008]
[6,"MICHOACÁN",67.733999999999995,61.39,6.3439999999999941,9.3660495467564218]
[7,"HIDALGO",53.883000000000003,48.88,5.0030000000000001,9.2849321678451453]
[8,"NUEVO LEÓN",58.862000000000002,54.17,4.6920000000000002,7.9711868438041522]
[9,"OAXACA",71.363,65.739999999999995,5.6230000000000047,7.8794333197875703]
[10,"SAN LUIS POTOSÍ",63.645000000000003,59.14,4.5050000000000026,7.0783250844528274]
[11,"CAMPECHE",59.667999999999999,55.68,3.9879999999999995,6.683649527384862]
[12,"CHIAPAS",71.372,66.75,4.6219999999999999,6.4759289357170875]
[13,"QUERÉTARO",49.667000000000002,46.91,2.757000000000005,5.5509694565808383]
[14,"CIUDAD DE MÉXICO",49.505000000000003,47.02,2.4849999999999994,5.0196949803050179]
[15,"CHIHUAHUA",63.055,60.78,2.2749999999999986,3.6079613036238181]
[16,"MÉXICO",55.712000000000003,53.96,1.7520000000000024,3.1447443997702513]
[null,"NACIONAL",58.381999999999998,56.86,1.5219999999999985,2.6069679010653943]
[17,"BAJA CALIFORNIA SUR",60.475000000000001,59.72,0.75500000000000256,1.2484497726333237]
[18,"DURANGO",58.048000000000002,57.52,0.52799999999999869,0.90959206174200435]
[19,"AGUASCALIENTES",55.197000000000003,54.83,0.36700000000000443,0.66489120785550737]
[20,"GUERRERO",69.215000000000003,69.02,0.19500000000000739,0.28173083869104582]
[21,"BAJA CALIFORNIA",62.856999999999999,63.38,-0.52300000000000324,-0.83204734556215421]
[22,"PUEBLA",46.521999999999998,46.92,-0.39800000000000324,-0.85550922144362507]
[23,"MORELOS",56.386000000000003,56.92,-0.53399999999999892,-0.9470435923810856]
[24,"VERACRUZ",60.892000000000003,61.68,-0.7879999999999967,-1.294094462326737]
[25,"JALISCO",49.957000000000001,50.71,-0.75300000000000011,-1.507296274796325]
[26,"NAYARIT",64.004000000000005,65.150000000000006,-1.1460000000000008,-1.7905130929316928]
[27,"ZACATECAS",57.642000000000003,58.98,-1.3379999999999939,-2.3212241074216609]
[28,"COAHUILA",59.497,61.15,-1.6529999999999987,-2.7782913424206241]
[29,"GUANAJUATO",55.72,57.62,-1.8999999999999986,-3.4099066762383319]
[30,"YUCATÁN",64.58,67.2,-2.6200000000000045,-4.0569835862496202]
[31,"QUINTANA ROO",61.466000000000001,64.23,-2.7640000000000029,-4.4967949760843444]
[32,"COLIMA",54.363999999999997,57.1,-2.7360000000000042,-5.0327422559046511]
[]
[]
[]
[]
[]
[]
["PORCENTAJE DE VARIACIÓN ENTRE 2017 Y 2019 EN EL NIVEL IV MATEMÁTICAS",null,null,null,null,null,null,"PORCENTAJE DE VARIACIÓN ENTRE 2017 Y 2019 EN EL NIVEL IV MATEMÁTICAS"]
[]
[]
[null,"ESTADO","NIVIV MAT 17","NIVIV MAT 19","VARIACIÓN 2017-19","PORCENTAJE DE AVANCE"]
[1,"TLAXCALA",8.4749999999999996,14.42,{"$f":"(D48-C48)","v":5.9450000000000003},{"$f":"((D48-C48)*100)/C48","v":70.147492625368741}]
[2,"TABASCO",7.0350000000000001,8.39,1.3550000000000004,19.260838663823748]
[3,"MICHOACÁN",8.81,7.66,-1.1500000000000004,-13.0533484676504]
[4,"CHIAPAS",9.0619999999999994,7.67,-1.3919999999999995,-15.360847495034202]
[5,"TAMAULIPAS",10.532999999999999,8.56,-1.972999999999999,-18.731605430551593]
[6,"SONORA",15.129,12.28,-2.8490000000000002,-18.831383435785579]
[7,"SINALOA",15.967000000000001,12.86,-3.1070000000000011,-19.45888394814305]
[8,"NUEVO LEÓN",13.35,10.65,-2.6999999999999993,-20.224719101123593]
[9,"CIUDAD DE MÉXICO",18.353999999999999,14.52,-3.8339999999999996,-20.889179470415169]
[10,"HIDALGO",14.586,10.74,-3.8460000000000001,-26.367749897161662]
[11,"BAJA CALIFORNIA SUR",10.765000000000001,7.9,-2.8650000000000002,-26.614026939154666]
[12,"CHIHUAHUA",11.36,8.18,-3.1799999999999997,-27.992957746478876]
[13,"OAXACA",6.431,4.59,-1.8410000000000002,-28.626963147255484]
[14,"SAN LUIS POTOSÍ",9.2539999999999996,6.5,-2.7539999999999996,-29.760103738923707]
[15,"MÉXICO",12.662000000000001,8.74,-3.9220000000000006,-30.97456957826568]
[16,"DURANGO",11.492000000000001,7.9,-3.5920000000000005,-31.256526279150716]
[17,"GUERRERO",8.5660000000000007,5.87,-2.6960000000000006,-31.473266402054641]
[null,"NACIONAL",12.525,8.51,-4.0150000000000006,-32.055888223552898]
[18,"QUERÉTARO",17.981000000000002,11.75,-6.2310000000000016,-34.653245092041601]
[19,"BAJA CALIFORNIA",10.311999999999999,6.71,-3.6019999999999994,-34.930178432893712]
[20,"CAMPECHE",11.148,7.24,-3.9079999999999995,-35.055615357014709]
[21,"PUEBLA",18.405999999999999,11.7,-6.7059999999999995,-36.433771596218619]
[22,"MORELOS",13.298999999999999,8.06,-5.238999999999999,-39.393939393939384]
[23,"COLIMA",14.840999999999999,8.99,-5.8509999999999991,-39.424567077690178]
[24,"JALISCO",17.471,10.36,-7.1110000000000007,-40.701734302558528]
[25,"AGUASCALIENTES",14.271000000000001,8.41,-5.8610000000000007,-41.069301380421834]
[26,"COAHUILA",12.632999999999999,7.41,-5.222999999999999,-41.344098788886249]
[27,"VERACRUZ",10.143000000000001,5.89,-4.253000000000001,-41.930395346544422]
[28,"ZACATECAS",11.521000000000001,6.51,-5.011000000000001,-43.494488325666175]
[29,"GUANAJUATO",13.342000000000001,7.39,-5.9520000000000008,-44.611002848148708]
[30,"YUCATÁN",9.5739999999999998,5.12,-4.4539999999999997,-46.521829956131185]
[31,"QUINTANA ROO",10.619,5.46,-5.1589999999999998,-48.582729070533951]
[32,"NAYARIT",8.7370000000000001,4.2699999999999996,-4.4670000000000005,-51.127389264049448]

{"sheet":"LYC AVANCE NI SUBSISTEMAS","index":6,"n_rows":14,"n_cols":13,"rows_kept":14,"cut":false,"hidden":false,"merged":[]}
[]
[]
[]
[null,"MODALIDAD_SEECH","LYC NIV I 2017","LYC NIV I 2019","DIFERENCIA PUNTAJE 17-19","PORCENTAJE DE AVANCE",null,null,"MODALIDAD_SEECH","LYC NIV IV 2017","LYC NIV IV 2019","DIFERENCIA PUNTAJE NIV MAT 17-19","PORCENTAJE DE AVANCE"]
[null,"TELESECUNDARIA FEDERAL TRANSFERIDO",66.962000000000003,54.32,{"$f":"(D5-C5)","v":-12.642000000000003},{"$f":"((D5-C5)*100)/D5","v":-23.273195876288664},null,null,"SECUNDARIA TÉCNICA PRIVADO",18.649999999999999,11.85,{"$f":"(K5-J5)","v":-6.7999999999999989},{"$f":"((K5-J5)*100)/K5","v":-57.383966244725734}]
[null,"SECUNDARIA TÉCNICA FEDERAL TRANSFERIDO",39.353000000000002,35.43,-3.9230000000000018,-11.072537397685583,null,null,"TELESECUNDARIA FEDERAL TRANSFERIDO",4.0990000000000002,2.17,-1.9290000000000003,-88.894009216589879]
[null,"SECUNDARIA GENERAL FEDERAL TRANSFERIDO",43.814,40.799999999999997,-3.0140000000000029,-7.3872549019607927,null,null,"SECUNDARIA GENERAL PRIVADO",34.119,15.41,-18.709,-121.40817650876053]
[null,"SECUNDARIA TÉCNICA PRIVADO",23.45,22.53,-0.91999999999999815,-4.083444296493556,null,null,"SECUNDARIA TÉCNICA FEDERAL TRANSFERIDO",12.566000000000001,5.47,-7.096000000000001,-129.72577696526511]
[null,"PROMEDIO",46.295000000000002,45.06,-1.2349999999999994,-2.7407900577008419,null,null,"SECUNDARIA TÉCNICA ESTATAL",18.05,7.6,-10.450000000000001,-137.5]
[null,"TELESECUNDARIA ESTATAL",50.753999999999998,53.84,3.0860000000000056,5.7317979197622693,null,null,"PROMEDIO",12.03,4.82,-7.2099999999999991,-149.58506224066386]
[null,"SECUNDARIA GENERAL PRIVADO",16.055,18.559999999999999,2.504999999999999,13.496767241379304,null,null,"TELESECUNDARIA ESTATAL",7.4950000000000001,2.68,-4.8149999999999995,-179.66417910447757]
[null,"SECUNDARIA TÉCNICA ESTATAL",31.95,38.049999999999997,6.0999999999999979,16.031537450722727,null,null,"SECUNDARIA GENERAL FEDERAL TRANSFERIDO",11.536,3.89,-7.645999999999999,-196.55526992287915]
[null,"SECUNDARIA GENERAL SUBSIDIO",46.052,56.81,10.758000000000003,18.936806900193631,null,null,"SECUNDARIA GENERAL ESTATAL",16.007999999999999,3.22,-12.787999999999998,-397.14285714285711]
[null,"SECUNDARIA GENERAL ESTATAL",37.787999999999997,46.89,9.1020000000000039,19.411388355726174,null,null,"SECUNDARIA GENERAL SUBSIDIO",11.271000000000001,1.84,-9.4310000000000009,-512.554347826087]

{"sheet":"MAT AVANCE NIV SUBSISTEMAS","index":7,"n_rows":14,"n_cols":13,"rows_kept":14,"cut":false,"hidden":false,"merged":[[0,1,1,24]]}
[null,"NIVEL DE AVANCE EN EL DESEMPEÑO DE ACUERDO AL SUBSISTEMA"]
[]
[]
[null,"MODALIDAD_SEECH","MAT NIV I 2017","MAT 2019 NIV I","DIF. 2017-19 PLANEA MAT","PORCENTAJE DE AVANCE",null,null,"MODALIDAD_SEECH","MAT NIV IV 2017","MAT 2019 N IV","DIF. MAT IV 17-19","PORCENTAJE DE AVANCE"]
[null,"TELESECUNDARIA FEDERAL TRANSFERIDO",72.087000000000003,59.35,{"$f":"(D5-C5)","v":-12.737000000000002},{"$f":"((D5-C5)*100)/D5","v":-21.460825610783491},null,null,"SECUNDARIA TÉCNICA PRIVADO",9.5749999999999993,15.55,{"$f":"(K5-J5)","v":5.9750000000000014},{"$f":"((K5-J5)*100)/K5","v":38.424437299035375}]
[null,"SECUNDARIA TÉCNICA FEDERAL TRANSFERIDO",66.715000000000003,62.37,-4.345000000000006,{"$f":"((D6-C6)*100)/D6","v":-6.9664902998236427},null,null,"TELESECUNDARIA FEDERAL TRANSFERIDO",6.468,9.41,2.9420000000000002,31.264612114771523]
[null,"PROMEDIO",63.055,60.78,-2.2749999999999986,-3.7430075682790367,null,null,"PROMEDIO",11.36,8.18,-3.1799999999999997,-38.875305623471881]
[null,"SECUNDARIA TÉCNICA PRIVADO",53.95,52.25,-1.7000000000000028,-3.2535885167464169,null,null,"SECUNDARIA TÉCNICA FEDERAL TRANSFERIDO",7.718,5.48,-2.2379999999999995,-40.83941605839415]
[null,"SECUNDARIA GENERAL FEDERAL TRANSFERIDO",67.078000000000003,67.53,0.45199999999999818,0.6693321486746604,null,null,"SECUNDARIA GENERAL PRIVADO",27.145,16.55,-10.594999999999999,-64.018126888217523]
[null,"TELESECUNDARIA ESTATAL",62.780999999999999,66.91,4.1289999999999978,6.1709759378269284,null,null,"SECUNDARIA GENERAL FEDERAL TRANSFERIDO",7.9089999999999998,4.0599999999999996,-3.8490000000000002,-94.802955665024655]
[null,"SECUNDARIA GENERAL SUBSIDIO",73.852000000000004,80.98,7.1280000000000001,8.8021733761422567,null,null,"TELESECUNDARIA ESTATAL",11.172000000000001,5.41,-5.7620000000000005,-106.50646950092423]
[null,"SECUNDARIA GENERAL PRIVADO",36.603999999999999,41.33,4.7259999999999991,11.434793128478102,null,null,"SECUNDARIA GENERAL ESTATAL",10.087,3.7,-6.3869999999999996,-172.62162162162159]
[null,"SECUNDARIA GENERAL ESTATAL",62.648000000000003,73.16,10.511999999999993,14.368507381082551,null,null,"SECUNDARIA TÉCNICA ESTATAL",6.85,1,-5.85,-585]
[null,"SECUNDARIA TÉCNICA ESTATAL",59.85,70.599999999999994,10.749999999999993,15.226628895184128,null,null,"SECUNDARIA GENERAL SUBSIDIO",7.2670000000000003,0.76,-6.5070000000000006,-856.18421052631584]

{"sheet":"NIVELES SUBSISTEMAS","index":8,"n_rows":16,"n_cols":13,"rows_kept":16,"cut":false,"hidden":false,"merged":[[0,1,1,12]]}
[null,"NIVELES DE DESEMPEÑO EN PLANEA 2019 DE ACUERDO AL TIPO DE ESCUELA"]
[]
[]
[null,"MODALIDAD_SEECH","LYC NIV I 2019","LYC NIV II 2019","LYC NIV III 2019","LYC NIV IV 2019"]
[null,"SECUNDARIA GENERAL PRIVADO",18.559999999999999,38.76,27.28,15.41,null,null,"MODALIDAD_SEECH","MAT 2019 NIV I","MAT 2019 NIV II","MAT 2019 N III","MAT 2019 N IV"]
[null,"SECUNDARIA TÉCNICA PRIVADO",22.53,40.03,25.65,11.85,null,null,"SECUNDARIA GENERAL PRIVADO",41.33,27.81,14.31,16.55]
[null,"SECUNDARIA TÉCNICA FEDERAL TRANSFERIDO",35.43,43.89,15.22,5.47,null,null,"SECUNDARIA TÉCNICA PRIVADO",52.25,23.3,8.8800000000000008,15.55]
[null,"SECUNDARIA TÉCNICA ESTATAL",38.049999999999997,41.6,12.75,7.6,null,null,"SIN DATOS",53.88,27.47,5.31,13.33]
[null,"SECUNDARIA GENERAL FEDERAL TRANSFERIDO",40.799999999999997,42.26,13.06,3.89,null,null,"TELESECUNDARIA FEDERAL TRANSFERIDO",59.35,21.65,9.6,9.41]
[null,"Total",45.06,37.61,12.5,4.82,null,null,"Total",60.78,23.05,7.99,8.18]
[null,"SECUNDARIA GENERAL ESTATAL",46.89,39.75,10.130000000000001,3.22,null,null,"SECUNDARIA TÉCNICA FEDERAL TRANSFERIDO",62.37,24.38,7.78,5.48]
[null,"TELESECUNDARIA ESTATAL",53.84,35.130000000000003,8.35,2.68,null,null,"TELESECUNDARIA ESTATAL",66.91,21.52,6.18,5.41]
[null,"TELESECUNDARIA FEDERAL TRANSFERIDO",54.32,33.19,10.32,2.17,null,null,"SECUNDARIA GENERAL FEDERAL TRANSFERIDO",67.53,21.69,6.73,4.0599999999999996]
[null,"SECUNDARIA GENERAL SUBSIDIO",56.81,32.76,8.6,1.84,null,null,"SECUNDARIA TÉCNICA ESTATAL",70.599999999999994,23.3,5.15,1]
[null,"SIN DATOS",57.88,34.549999999999997,4.33,3.24,null,null,"SECUNDARIA GENERAL ESTATAL",73.16,18.8,4.34,3.7]
[null,null,null,null,null,null,null,null,"SECUNDARIA GENERAL SUBSIDIO",80.98,13.87,4.4000000000000004,0.76]

{"sheet":"TURNO 17-19 LYC","index":9,"n_rows":9,"n_cols":21,"rows_kept":9,"cut":false,"hidden":false,"merged":[[0,2,1,13]]}
[null,null,"PORCENTAJE DE AVANCE EN LOS NIVELES DE DESEMPEÑO EXTREMOS CON RELACIÓN AL TURNO DE LAS ESCUELAS"]
[]
[]
[null,"TURNO_SEECH","LYC NIV I 2017","LYC NIV I 2019","DIF. 17-19 LYC NIV I","PORCENTAJE DE AVANCE",null,null,null,"TURNO_SEECH","LYC NIV IV 2017","LYC NIV IV 2019","DIF 17-19 LYC N IV","PORCENTAJE DE AVANCE",null,null,null,null,"TURNO_SEECH","LENGUAJE Y COMUNICACIÓN ","MATEMÁTICAS"]
[null,"NOCTURNO",54.167000000000002,35.97,{"$f":"(D5-C5)","v":-18.197000000000003},{"$f":"((D5-C5)*100)/C5","v":-33.594254804585823},null,null,null,"NOCTURNO",0,0,{"$f":"(L5-K5)","v":0},0,null,null,null,null,"NOCTURNO",-33.594254804585823,0]
[null,"DISCONTINUO",40.567,31.06,{"$f":"(D6-C6)","v":-9.5070000000000014},{"$f":"((D6-C6)*100)/C6","v":-23.435304557891886},null,null,null,"DISCONTINUO",10.433,7.16,{"$f":"(L6-K6)","v":-3.2729999999999997},{"$f":"((L6-K6)*100)/L6","v":-45.712290502793287},null,null,null,null,"DISCONTINUO",-23.435304557891886,-45.712290502793287]
[null,"MATUTINO",44.786999999999999,42.5,{"$f":"(D7-C7)","v":-2.286999999999999},{"$f":"((D7-C7)*100)/C7","v":-5.106392479960701},null,null,null,"MATUTINO",13.496,5.45,{"$f":"(L7-K7)","v":-8.0459999999999994},{"$f":"((L7-K7)*100)/L7","v":-147.63302752293575},null,null,null,null,"MATUTINO",-5.106392479960701,-147.63302752293575]
[null,"PROMEDIO",46.295000000000002,45.06,{"$f":"(D8-C8)","v":-1.2349999999999994},{"$f":"((D8-C8)*100)/C8","v":-2.6676746948914558},null,null,null,"Total",12.03,4.82,{"$f":"(L8-K8)","v":-7.2099999999999991},{"$f":"((L8-K8)*100)/L8","v":-149.58506224066386},null,null,null,null,"PROMEDIO",-2.6676746948914558,-149.58506224066386]
[null,"VESPERTINO",44.499000000000002,53.15,{"$f":"(D9-C9)","v":8.6509999999999962},{"$f":"((D9-C9)*100)/C9","v":19.440886312051948},null,null,null,"VESPERTINO",9.0510000000000002,1.25,{"$f":"(L9-K9)","v":-7.8010000000000002},{"$f":"((L9-K9)*100)/L9","v":-624.08000000000004},null,null,null,null,"VESPERTINO",19.440886312051948,-624.08000000000004]

{"sheet":"TURNO 17-19 MAT","index":10,"n_rows":9,"n_cols":15,"rows_kept":9,"cut":false,"hidden":false,"merged":[[0,3,1,12]]}
[null,null,null,"NIVEL DE AVANCE EN LOS NIVELES DE DESEMPEÑO EXTREMOS"]
[]
[]
[null,"TURNO_SEECH","MAT NIV I 2017","MAT 2019 NIV I","DIF 17-19 MAT N I","PORCENTAJE DE AVANCE",null,null,null,null,"TURNO_SEECH","MAT NIV IV 2017","MAT 2019 N IV","DIF 17-19 MAT NIV IV","PORCENTAJE DE AVANCE"]
[null,"NOCTURNO",92.466999999999999,72.930000000000007,{"$f":"(D5-C5)","v":-19.536999999999992},{"$f":"((D5-C5)*100)/C5","v":-21.128618858619824},null,null,null,null,"DISCONTINUO",4.5670000000000002,6.04,{"$f":"(M5-L5)","v":1.4729999999999999},{"$f":"((M5-L5)*100)/M5","v":24.387417218543042}]
[null,"DISCONTINUO",64.783000000000001,59.77,{"$f":"(D6-C6)","v":-5.0129999999999981},{"$f":"((D6-C6)*100)/C6","v":-7.7381411790130104},null,null,null,null,"NOCTURNO",0,0,{"$f":"(M6-L6)","v":0},0]
[null,"Total",63.055,60.78,{"$f":"(D7-C7)","v":-2.2749999999999986},{"$f":"((D7-C7)*100)/C7","v":-3.6079613036238181},null,null,null,null,"Total",11.36,8.18,{"$f":"(M7-L7)","v":-3.1799999999999997},{"$f":"((M7-L7)*100)/M7","v":-38.875305623471881}]
[null,"MATUTINO",61.271999999999998,59.36,{"$f":"(D8-C8)","v":-1.911999999999999},{"$f":"((D8-C8)*100)/C8","v":-3.1205118161639884},null,null,null,null,"MATUTINO",11.86,8.2799999999999994,{"$f":"(M8-L8)","v":-3.58},{"$f":"((M8-L8)*100)/M8","v":-43.236714975845416}]
[null,"VESPERTINO",73.403000000000006,81.900000000000006,{"$f":"(D9-C9)","v":8.4969999999999999},{"$f":"((D9-C9)*100)/C9","v":11.575821151724044},null,null,null,null,"VESPERTINO",5.4279999999999999,1.2,{"$f":"(M9-L9)","v":-4.2279999999999998},{"$f":"((M9-L9)*100)/M9","v":-352.33333333333331}]

{"sheet":"NIVELES MODALIDAD ESCUELA","index":11,"n_rows":13,"n_cols":105,"rows_kept":13,"cut":false,"hidden":false,"merged":[]}
[]
[]
[null,null,null,null,null,null,null,null,null,null,null,null,null,null,null,null,null,null,null,null,null,null,null,null,null,null,null,null,null,null,null,null,null,null,null,null,null,null,null,null,null,null,null,null,null,null,null,null,null,null,null,null,null,null,null,null,null,null,null,"CCT_SEC_PEGAR2","Suma de LYCNI2015","Suma de LYC 17 NI","Suma de LYC 19 NIV I",null,null,"CCT_SEC_PEGAR2","Suma de LYCNII2015","Suma de LYC 17 NII","Suma de LYC 19 NIV II",null,null,"CCT_SEC_PEGAR2","Suma de LYCNIII2015","Suma de LYC 17 NIV III","Suma de LYC 19 NIV III",null,null,"CCT_SEC_PEGAR2","Suma de LYCNIVIV2015","Suma de LYC 17 NIV IV","Suma de LYC 19 NIV IV",null,null,"CCT_SEC_PEGAR2","Suma de MATNIVI2015","Suma de MAT 17 NIV I","Suma de MAT 19 NIV I",null,null,"CCT_SEC_PEGAR2","Suma de MATNIVII2015","Suma de MAT 17 NIV II","Suma de MAT 19 NIV II",null,null,"CCT_SEC_PEGAR2","Suma de MATNIVIII2015","Suma de MAT 17 NIV III","Suma de MAT 19 NIV III",null,null,"CCT_SEC_PEGAR2","Suma de MATNIVIV2015","Suma de MAT 17 NIV IV","Suma de MAT 19 NIV IV"]
[null,null,null,null,null,null,null,null,null,null,null,null,null,null,null,null,null,null,null,null,null,null,null,null,null,null,null,null,null,null,null,null,null,null,null,null,null,null,null,null,null,null,null,null,null,null,null,"Promedio de MATNIVIV2015","Promedio de MAT 17 NIV IV","Promedio de MAT 19 NIV IV",null,null,null,null,null,null,null,null,null,"08DST0002ZMATUTINO",8.6,8.8000000000000007,11.8,null,null,"08DST0002ZMATUTINO",30,32.4,51.3,null,null,"08DST0002ZMATUTINO",37.1,26.5,21.1,null,null,"08DST0002ZMATUTINO",24.3,32.4,15.8,null,null,"08DST0002ZMATUTINO",14.9,22.7,26.7,null,null,"08DST0002ZMATUTINO",25.4,24.2,34.700000000000003,null,null,"08DST0002ZMATUTINO",16.399999999999999,19.7,20,null,null,"08DST0002ZMATUTINO",43.3,33.299999999999997,18.7]
[null,null,null,null,null,null,null,null,null,null,null,null,null,null,null,null,null,null,null,null,null,null,null,null,null,null,null,null,null,null,null,null,"Promedio de MATNIVI2015","Promedio de MAT 17 NIV I","Promedio de MAT 19 NIV I",null,null,"Promedio de MATNIVII2015","Promedio de MAT 17 NIV II","Promedio de MAT 19 NIV II",null,null,"Promedio de MATNIVIII2015","Promedio de MAT 17 NIV III","Promedio de MAT 19 NIV III",null,null,4.9089430894308945,7.7183999999999946,5.4801587301587285]
[null,null,null,null,null,null,null,null,null,null,null,null,null,null,null,null,null,null,null,null,null,null,null,null,null,null,null,null,null,null,null,null,67.008130081300791,66.715200000000024,62.372222222222227,null,null,22.02682926829268,17.250400000000003,24.384920634920626,null,null,8.7058962264150992,8.8582072176950017,7.9861439312567146]
[]
[]
[]
[null,null,null,null,null,null,null,null,null,null,null,null,null,null,null,null,null,null,null,null,null,null,null,null,null,null,null,null,null,null,null,null,"PLANEA 2015"]
[]
[null,null,null,null,null,null,null,null,"Promedio de LYCNIII2015","Promedio de LYC 17 NIV III","Promedio de LYC 19 NIV III",null,null,null,"Promedio de LYCNIVIV2015","Promedio de LYC 17 NIV IV","Promedio de LYC 19 NIV IV"]
[null,null,null,null,null,null,null,null,17.714285714285715,14.285714285714286,17.785714285714285,null,null,null,5.0707317073170728,12.565600000000003,5.4666666666666677,null,null,null,null,null,null,null,null,null,null,null,null,null,null,null,"PLANEA 2017"]

{"sheet":"SELECCIÓN DE ESCUELAS","index":12,"n_rows":61,"n_cols":41,"rows_kept":61,"cut":false,"hidden":false,"merged":[[0,2,0,9]]}
[null,null,"Análisis del contenido y de la estructura"]
[null,null,null,null,null,null,null,null,null,null,null,null,null,null,"reac","clave","clave_","asignatura","IdImagen","idlectura","numexa","u_diag","argumentación"]
[null,null,null,null,null,null,null,null,null,null,null,null,null,null,14,"A",1,"LENGUAJE Y COMUNICACIÓN","SL14","Texto_P_14a17",14,"Análisis del contenido y de la estructura","Reconocer el género periodístico de una nota frente a otra."]
[null,null,"Reconocer el género periodístico de una nota frente a otra.","Establecer diferencia de forma de un mismo hecho en dos periódicos.","Establecer semejanzas y diferencias de contenido de un mismo hecho en dos periódicos.","Distinguir entre hechos y opiniones en un texto periodístico.","Seleccionar, a partir de un texto narrativo, acotaciones para la representación del espacio en una obra teatral.","Identificar la descripción que caracterice al entrevistado.","Seleccionar la secuencia correcta de un listado de preguntas de acuerdo con el propósito de la encuesta.","Identificar las formas de tratar un mismo tema en dos relatos míticos de culturas diferentes.",null,null,null,null,15,"B",2,"LENGUAJE Y COMUNICACIÓN","SL15","Texto_P_14a17",15,"Análisis del contenido y de la estructura","Establecer diferencia de forma de un mismo hecho en dos periódicos."]
[null,null,"nombre_ct","CCT_TURNO","Promedio de LYC_SEC_1_14","Promedio de LYC_SEC_1_15","Promedio de LYC_SEC_1_1111","Promedio de LYC_SEC_1_121","Promedio de LYC_SEC_1_29","Promedio de LYC_SEC_1_33","Promedio de LYC_SEC_1_38","Promedio de LYC_SEC_1_51",null,null,16,"A",1,"LENGUAJE Y COMUNICACIÓN","SL16","Texto_P_14a17",16,"Análisis del contenido y de la estructura","Establecer semejanzas y diferencias de contenido de un mismo hecho en dos periódicos."]
[null,null,"HEROES DE LA DEMOCRACIA","08DES0013M MATUTINO",0.47368421052631576,0.59459459459459463,0.42105263157894735,0.31578947368421051,0.26315789473684209,0.36842105263157893,0.31578947368421051,0.40540540540540543,null,null,17,"A",1,"LENGUAJE Y COMUNICACIÓN","SL17","Texto_P_14a17",17,"Análisis del contenido y de la estructura","Distinguir entre hechos y opiniones en un texto periodístico."]
[null,null,null,null,null,null,null,null,null,null,null,null,null,null,29,"C",3,"LENGUAJE Y COMUNICACIÓN","SL29","Texto_P_27a31",29,"Análisis del contenido y de la estructura","Seleccionar, a partir de un texto narrativo, acotaciones para la representación del espacio en una obra teatral."]
[null,null,null,null,null,null,null,null,null,null,null,null,null,null,33,"C",3,"LENGUAJE Y COMUNICACIÓN","SL33","Texto_P_32a35",33,"Análisis del contenido y de la estructura","Identificar la descripción que caracterice al entrevistado."]
[null,null,null,null,null,null,null,null,null,null,null,null,null,null,38,"A",1,"LENGUAJE Y COMUNICACIÓN","SL38","Texto_P_36a39",38,"Análisis del contenido y de la estructura","Seleccionar la secuencia correcta de un listado de preguntas de acuerdo con el propósito de la encuesta."]
[null,null,null,null,null,null,null,null,null,null,null,null,null,null,51,"B",2,"LENGUAJE Y COMUNICACIÓN","SL51","Texto_P_48a51",51,"Análisis del contenido y de la estructura","Identificar las formas de tratar un mismo tema en dos relatos míticos de culturas diferentes."]
[]
[]
[]
[]
[]
[]
[]
[]
[]
[]
[]
[null,null,null,null,null,null,null,null,null,null,null,null,null,null,null,null,null,"nombre_ct","CCT_TURNO","nofolio","Suma de LYC_SEC_19_RESP_14","Suma de LYC_SEC_19_RESP_15","Suma de LYC_SEC_19_RESP_16","Suma de LYC_SEC_19_RESP_17","Suma de LYC_SEC_19_RESP_29","Suma de LYC_SEC_19_RESP_33","Suma de LYC_SEC_19_RESP_38","Suma de LYC_SEC_19_RESP_51",null,null,1,2,3,4,"TOTAL","REACTIVOS","R1","R2","R3","R4","TOTAL"]
[null,null,null,null,null,null,null,null,null,null,null,null,null,null,null,null,null,"HEROES DE LA DEMOCRACIA","08DES0013M MATUTINO","080028978S19",1,2,2,2,4,2,1,8,null,"P14",{"$f":"COUNTIF(U23:U28071,AE22)","v":18},{"$f":"COUNTIF(U23:U28071,AF22)","v":3},{"$f":"COUNTIF(U23:U28071,AG22)","v":4},{"$f":"COUNTIF(U23:U28071,AH22)","v":13},{"$f":"SUM(AE23:AH23)","v":38},"P14",{"$f":"(AE23*100)/AI23","v":47.368421052631582},{"$f":"(AF23*100)/AI23","v":7.8947368421052628},{"$f":"(AG23*100)/AI23","v":10.526315789473685},{"$f":"(AH23*100)/AI23","v":34.210526315789473},{"$f":"SUM(AK23:AN23)","v":100}]
[null,null,null,null,null,null,null,null,null,null,null,null,null,null,null,null,null,"HEROES DE LA DEMOCRACIA","08DES0013M MATUTINO","080028979S19",1,2,2,3,4,3,4,2,null,"P15",{"$f":"COUNTIF(V23:V28100,AE22)","v":7},{"$f":"COUNTIF(V23:V28100,AF22)","v":22},{"$f":"COUNTIF(V23:V28072,AG22)","v":5},{"$f":"COUNTIF(V23:V28072,AH22)","v":3},37,"P15",{"$f":"(AE24*100)/AI24","v":18.918918918918919},{"$f":"(AF24*100)/AI24","v":59.45945945945946},{"$f":"(AG24*100)/AI24","v":13.513513513513514},8.1081081081081088,{"$f":"SUM(AK24:AN24)","v":100.00000000000001}]
[null,null,null,null,null,null,null,null,null,null,null,null,null,null,null,null,null,"HEROES DE LA DEMOCRACIA","08DES0013M MATUTINO","080028980S19",1,4,1,2,1,3,1,2,null,"P16",{"$f":"COUNTIF(W23:W28073,AE22)","v":16},{"$f":"COUNTIF(W23:W28073,AF22)","v":15},{"$f":"COUNTIF(W23:W28073,AG22)","v":5},{"$f":"COUNTIF(W23:W28073,AH22)","v":2},38,"P16",{"$f":"(AE25*100)/AI25","v":42.10526315789474},{"$f":"(AF25*100)/AI25","v":39.473684210526315},{"$f":"(AG25*100)/AI25","v":13.157894736842104},5.2631578947368425,{"$f":"SUM(AK25:AN25)","v":100}]
[null,null,null,null,null,null,null,null,null,null,null,null,null,null,null,null,null,"HEROES DE LA DEMOCRACIA","08DES0013M MATUTINO","080028981S19",2,1,2,2,1,1,4,1,null,"P17",{"$f":"COUNTIF(X23:X28074,AE22)","v":12},{"$f":"COUNTIF(X23:X28074,AF22)","v":12},{"$f":"COUNTIF(X23:X28074,AG22)","v":9},{"$f":"COUNTIF(X23:X28074,AH22)","v":5},38,"P17",{"$f":"(AE26*100)/AI26","v":31.578947368421051},{"$f":"(AF26*100)/AI26","v":31.578947368421051},{"$f":"(AG26*100)/AI26","v":23.684210526315791},13.157894736842104,100]
[null,null,null,null,null,null,null,null,null,null,null,null,null,null,null,null,null,"HEROES DE LA DEMOCRACIA","08DES0013M MATUTINO","080028982S19",1,2,2,2,1,1,2,3,null,"P29",{"$f":"COUNTIF(Y23:Y28075,AE22)","v":15},{"$f":"COUNTIF(Y23:Y28075,AF22)","v":5},{"$f":"COUNTIF(Y23:Y28075,AG22)","v":10},{"$f":"COUNTIF(Y23:Y28075,AH22)","v":8},38,"P29",{"$f":"(AE27*100)/AI27","v":39.473684210526315},13.157894736842104,26.315789473684209,21.05263157894737,100]
[null,null,null,null,null,null,null,null,null,null,null,null,null,null,null,null,null,"HEROES DE LA DEMOCRACIA","08DES0013M MATUTINO","080028983S19",4,1,2,3,1,2,3,4,null,"P33",{"$f":"COUNTIF(Z23:Z28076,AE22)","v":6},{"$f":"COUNTIF(Z23:Z28076,AF22)","v":9},{"$f":"COUNTIF(Z23:Z28076,AG22)","v":14},{"$f":"COUNTIF(Z23:Z28076,AH22)","v":9},38,"P33",15.789473684210526,23.684210526315791,36.842105263157897,23.684210526315791,100.00000000000001]
[null,null,null,null,null,null,null,null,null,null,null,null,null,null,null,null,null,"HEROES DE LA DEMOCRACIA","08DES0013M MATUTINO","080028984S19",1,2,2,1,4,1,1,4,null,"P38",{"$f":"COUNTIF(AA23:AA28077,AE22)","v":12},{"$f":"COUNTIF(AA23:AA28077,AF22)","v":10},{"$f":"COUNTIF(AA23:AA28077,AG22)","v":7},{"$f":"COUNTIF(AA23:AA28077,AH22)","v":9},38,"P38",31.578947368421051,26.315789473684209,18.421052631578949,23.684210526315791,100]
[null,null,null,null,null,null,null,null,null,null,null,null,null,null,null,null,null,"HEROES DE LA DEMOCRACIA","08DES0013M MATUTINO","080028985S19",3,2,1,3,3,4,2,3,null,"P51",{"$f":"COUNTIF(AB23:AB28078,AE22)","v":9},{"$f":"COUNTIF(AB23:AB28078,AF22)","v":15},{"$f":"COUNTIF(AB23:AB28078,AG22)","v":8},{"$f":"COUNTIF(AB23:AB28078,AH22)","v":5},37,"P51",24.324324324324323,40.54054054054054,21.621621621621621,13.513513513513514,100]
[null,null,null,null,null,null,null,null,null,null,null,null,null,null,null,null,null,"HEROES DE LA DEMOCRACIA","08DES0013M MATUTINO","080028986S19",1,4,2,4,1,3,3,3]
[null,null,null,null,null,null,null,null,null,null,null,null,null,null,null,null,null,"HEROES DE LA DEMOCRACIA","08DES0013M MATUTINO","080028987S19",4,1,1,3,1,4,4,4]
[null,null,null,null,null,null,null,null,null,null,null,null,null,null,null,null,null,"HEROES DE LA DEMOCRACIA","08DES0013M MATUTINO","080028988S19",1,4,1,2,1,3,3,3]
[null,null,null,null,null,null,null,null,null,null,null,null,null,null,null,null,null,"HEROES DE LA DEMOCRACIA","08DES0013M MATUTINO","080028989S19",4,2,1,1,1,4,4,2]
[null,null,null,null,null,null,null,null,null,null,null,null,null,null,null,null,null,"HEROES DE LA DEMOCRACIA","08DES0013M MATUTINO","080028990S19",4,1,1,1,3,4,1,2]
[null,null,null,null,null,null,null,null,null,null,null,null,null,null,null,null,null,"HEROES DE LA DEMOCRACIA","08DES0013M MATUTINO","080028991S19",1,2,1,3,3,3,3,2]
[null,null,null,null,null,null,null,null,null,null,null,null,null,null,null,null,null,"HEROES DE LA DEMOCRACIA","08DES0013M MATUTINO","080028992S19",4,2,1,2,3,3,2,3]
[null,null,null,null,null,null,null,null,null,null,null,null,null,null,null,null,null,"HEROES DE LA DEMOCRACIA","08DES0013M MATUTINO","080028993S19",4,1,1,1,2,2,3,1]
[null,null,null,null,null,null,null,null,null,null,null,null,null,null,null,null,null,"HEROES DE LA DEMOCRACIA","08DES0013M MATUTINO","080028995S19",4,1,2,4,3,2,3,4]
[null,null,null,null,null,null,null,null,null,null,null,null,null,null,null,null,null,"HEROES DE LA DEMOCRACIA","08DES0013M MATUTINO","080028996S19",4,1,3,2,4,4,1,1]
[null,null,null,null,null,null,null,null,null,null,null,null,null,null,null,null,null,"HEROES DE LA DEMOCRACIA","08DES0013M MATUTINO","080028997S19",1,2,2,2,2,3,3,1]
[null,null,null,null,null,null,null,null,null,null,null,null,null,null,null,null,null,"HEROES DE LA DEMOCRACIA","08DES0013M MATUTINO","080028998S19",1,3,4,2,2,3,2,4]
[null,null,null,null,null,null,null,null,null,null,null,null,null,null,null,null,null,"HEROES DE LA DEMOCRACIA","08DES0013M MATUTINO","080028999S19",4,3,1,2,3,2,1,3]
[null,null,null,null,null,null,null,null,null,null,null,null,null,null,null,null,null,"HEROES DE LA DEMOCRACIA","08DES0013M MATUTINO","080029000S19",2,3,2,4,2,4,4,2]
[null,null,null,null,null,null,null,null,null,null,null,null,null,null,null,null,null,"HEROES DE LA DEMOCRACIA","08DES0013M MATUTINO","080029001S19",8,8,8,8,8,8,8,8]
[null,null,null,null,null,null,null,null,null,null,null,null,null,null,null,null,null,"HEROES DE LA DEMOCRACIA","08DES0013M MATUTINO","080029002S19",4,2,3,1,2,4,1,1]
[null,null,null,null,null,null,null,null,null,null,null,null,null,null,null,null,null,"HEROES DE LA DEMOCRACIA","08DES0013M MATUTINO","080029003S19",2,8,3,2,3,2,1,3]
[null,null,null,null,null,null,null,null,null,null,null,null,null,null,null,null,null,"HEROES DE LA DEMOCRACIA","08DES0013M MATUTINO","080029004S19",4,2,2,1,1,1,2,1]
[null,null,null,null,null,null,null,null,null,null,null,null,null,null,null,null,null,"HEROES DE LA DEMOCRACIA","08DES0013M MATUTINO","080029005S19",1,2,3,1,1,2,1,2]
[null,null,null,null,null,null,null,null,null,null,null,null,null,null,null,null,null,"HEROES DE LA DEMOCRACIA","08DES0013M MATUTINO","080029006S19",3,2,1,3,3,4,4,2]
[null,null,null,null,null,null,null,null,null,null,null,null,null,null,null,null,null,"HEROES DE LA DEMOCRACIA","08DES0013M MATUTINO","080029007S19",1,2,2,1,4,3,2,2]
[null,null,null,null,null,null,null,null,null,null,null,null,null,null,null,null,null,"HEROES DE LA DEMOCRACIA","08DES0013M MATUTINO","080029008S19",1,2,2,1,1,1,4,2]
[null,null,null,null,null,null,null,null,null,null,null,null,null,null,null,null,null,"HEROES DE LA DEMOCRACIA","08DES0013M MATUTINO","080029009S19",3,2,2,1,3,2,2,2]
[null,null,null,null,null,null,null,null,null,null,null,null,null,null,null,null,null,"HEROES DE LA DEMOCRACIA","08DES0013M MATUTINO","080029010S19",1,2,1,1,1,3,2,1]
[null,null,null,null,null,null,null,null,null,null,null,null,null,null,null,null,null,"HEROES DE LA DEMOCRACIA","08DES0013M MATUTINO","080029011S19",1,2,4,3,1,1,1,1]
[null,null,null,null,null,null,null,null,null,null,null,null,null,null,null,null,null,"HEROES DE LA DEMOCRACIA","08DES0013M MATUTINO","080029012S19",1,2,3,3,4,4,4,1]
[null,null,null,null,null,null,null,null,null,null,null,null,null,null,null,null,null,"HEROES DE LA DEMOCRACIA","08DES0013M MATUTINO","080029013S19",4,3,1,1,4,3,4,3]
[null,null,null,null,null,null,null,null,null,null,null,null,null,null,null,null,null,"HEROES DE LA DEMOCRACIA","08DES0013M MATUTINO","080029014S19",4,3,2,4,1,3,1,2]
[null,null,null,null,null,null,null,null,null,null,null,null,null,null,null,null,null,"HEROES DE LA DEMOCRACIA","08DES0013M MATUTINO","080029015S19",1,2,1,2,4,2,2,2]
[null,null,null,null,null,null,null,null,null,null,null,null,null,null,null,null,null,"HEROES DE LA DEMOCRACIA","08DES0013M MATUTINO","080029016S19",1,2,1,3,3,3,1,2]
[null,null,null,null,null,null,null,null,null,null,null,null,null,null,null,null,null,"HEROES DE LA DEMOCRACIA","08DES0013M MATUTINO","080029017S19",3,2,1,4,1,3,2,2]

{"sheet":"UD_ANALISIS CONTENIDO","index":13,"n_rows":61,"n_cols":41,"rows_kept":61,"cut":false,"hidden":false,"merged":[[0,2,0,9]]}
[null,null,"Análisis del contenido y de la estructura"]
[null,null,null,null,null,null,null,null,null,null,null,null,null,null,"reac","clave","clave_","asignatura","IdImagen","idlectura","numexa","u_diag","argumentación"]
[null,null,null,null,null,null,null,null,null,null,null,null,null,null,14,"A",1,"LENGUAJE Y COMUNICACIÓN","SL14","Texto_P_14a17",14,"Análisis del contenido y de la estructura","Reconocer el género periodístico de una nota frente a otra."]
[null,null,"Reconocer el género periodístico de una nota frente a otra.","Establecer diferencia de forma de un mismo hecho en dos periódicos.","Establecer semejanzas y diferencias de contenido de un mismo hecho en dos periódicos.","Distinguir entre hechos y opiniones en un texto periodístico.","Seleccionar, a partir de un texto narrativo, acotaciones para la representación del espacio en una obra teatral.","Identificar la descripción que caracterice al entrevistado.","Seleccionar la secuencia correcta de un listado de preguntas de acuerdo con el propósito de la encuesta.","Identificar las formas de tratar un mismo tema en dos relatos míticos de culturas diferentes.",null,null,null,null,15,"B",2,"LENGUAJE Y COMUNICACIÓN","SL15","Texto_P_14a17",15,"Análisis del contenido y de la estructura","Establecer diferencia de forma de un mismo hecho en dos periódicos."]
[null,null,"nombre_ct","CCT_TURNO","Promedio de LYC_SEC_1_14","Promedio de LYC_SEC_1_15","Promedio de LYC_SEC_1_1111","Promedio de LYC_SEC_1_121","Promedio de LYC_SEC_1_29","Promedio de LYC_SEC_1_33","Promedio de LYC_SEC_1_38","Promedio de LYC_SEC_1_51",null,null,16,"A",1,"LENGUAJE Y COMUNICACIÓN","SL16","Texto_P_14a17",16,"Análisis del contenido y de la estructura","Establecer semejanzas y diferencias de contenido de un mismo hecho en dos periódicos."]
[null,null,"HEROES DE LA DEMOCRACIA","08DES0013M MATUTINO",0.47368421052631576,0.59459459459459463,0.42105263157894735,0.31578947368421051,0.26315789473684209,0.36842105263157893,0.31578947368421051,0.40540540540540543,null,null,17,"A",1,"LENGUAJE Y COMUNICACIÓN","SL17","Texto_P_14a17",17,"Análisis del contenido y de la estructura","Distinguir entre hechos y opiniones en un texto periodístico."]
[null,null,null,null,null,null,null,null,null,null,null,null,null,null,29,"C",3,"LENGUAJE Y COMUNICACIÓN","SL29","Texto_P_27a31",29,"Análisis del contenido y de la estructura","Seleccionar, a partir de un texto narrativo, acotaciones para la representación del espacio en una obra teatral."]
["reactivo","ARGUMENTACIÓN",null,null,null,null,null,null,null,null,null,null,null,null,33,"C",3,"LENGUAJE Y COMUNICACIÓN","SL33","Texto_P_32a35",33,"Análisis del contenido y de la estructura","Identificar la descripción que caracterice al entrevistado."]
["P14","Reconocer el género periodístico de una nota frente a otra.",null,null,null,null,null,null,null,null,null,null,null,null,38,"A",1,"LENGUAJE Y COMUNICACIÓN","SL38","Texto_P_36a39",38,"Análisis del contenido y de la estructura","Seleccionar la secuencia correcta de un listado de preguntas de acuerdo con el propósito de la encuesta."]
["P15","Establecer diferencia de forma de un mismo hecho en dos periódicos.",null,null,null,null,null,null,null,null,null,null,null,null,51,"B",2,"LENGUAJE Y COMUNICACIÓN","SL51","Texto_P_48a51",51,"Análisis del contenido y de la estructura","Identificar las formas de tratar un mismo tema en dos relatos míticos de culturas diferentes."]
["P16","Establecer semejanzas y diferencias de contenido de un mismo hecho en dos periódicos."]
["P17","Distinguir entre hechos y opiniones en un texto periodístico."]
["P29","Seleccionar, a partir de un texto narrativo, acotaciones para la representación del espacio en una obra teatral."]
["P33","Identificar la descripción que caracterice al entrevistado."]
["P38","Seleccionar la secuencia correcta de un listado de preguntas de acuerdo con el propósito de la encuesta."]
["P51","Identificar las formas de tratar un mismo tema en dos relatos míticos de culturas diferentes."]
[]
[]
[]
[]
[]
[null,null,null,null,null,null,null,null,null,null,null,null,null,null,null,null,null,"nombre_ct","CCT_TURNO","nofolio","Suma de LYC_SEC_19_RESP_14","Suma de LYC_SEC_19_RESP_15","Suma de LYC_SEC_19_RESP_16","Suma de LYC_SEC_19_RESP_17","Suma de LYC_SEC_19_RESP_29","Suma de LYC_SEC_19_RESP_33","Suma de LYC_SEC_19_RESP_38","Suma de LYC_SEC_19_RESP_51",null,null,1,2,3,4,"TOTAL","REACTIVOS","R1","R2","R3","R4","TOTAL"]
[null,null,null,null,null,null,null,null,null,null,null,null,null,null,null,null,null,"HEROES DE LA DEMOCRACIA","08DES0013M MATUTINO","080028978S19",1,2,2,2,4,2,1,8,null,"P14",{"$f":"COUNTIF(U23:U28071,AE22)","v":18},{"$f":"COUNTIF(U23:U28071,AF22)","v":3},{"$f":"COUNTIF(U23:U28071,AG22)","v":4},{"$f":"COUNTIF(U23:U28071,AH22)","v":13},{"$f":"SUM(AE23:AH23)","v":38},"P14",{"$f":"(AE23*100)/AI23","v":47.368421052631582},{"$f":"(AF23*100)/AI23","v":7.8947368421052628},{"$f":"(AG23*100)/AI23","v":10.526315789473685},{"$f":"(AH23*100)/AI23","v":34.210526315789473},{"$f":"SUM(AK23:AN23)","v":100}]
[null,null,null,null,null,null,null,null,null,null,null,null,null,null,null,null,null,"HEROES DE LA DEMOCRACIA","08DES0013M MATUTINO","080028979S19",1,2,2,3,4,3,4,2,null,"P15",{"$f":"COUNTIF(V23:V28100,AE22)","v":7},{"$f":"COUNTIF(V23:V28100,AF22)","v":22},{"$f":"COUNTIF(V23:V28072,AG22)","v":5},{"$f":"COUNTIF(V23:V28072,AH22)","v":3},37,"P15",{"$f":"(AE24*100)/AI24","v":18.918918918918919},{"$f":"(AF24*100)/AI24","v":59.45945945945946},{"$f":"(AG24*100)/AI24","v":13.513513513513514},8.1081081081081088,{"$f":"SUM(AK24:AN24)","v":100.00000000000001}]
[null,null,null,null,null,null,null,null,null,null,null,null,null,null,null,null,null,"HEROES DE LA DEMOCRACIA","08DES0013M MATUTINO","080028980S19",1,4,1,2,1,3,1,2,null,"P16",{"$f":"COUNTIF(W23:W28073,AE22)","v":16},{"$f":"COUNTIF(W23:W28073,AF22)","v":15},{"$f":"COUNTIF(W23:W28073,AG22)","v":5},{"$f":"COUNTIF(W23:W28073,AH22)","v":2},38,"P16",{"$f":"(AE25*100)/AI25","v":42.10526315789474},{"$f":"(AF25*100)/AI25","v":39.473684210526315},{"$f":"(AG25*100)/AI25","v":13.157894736842104},5.2631578947368425,{"$f":"SUM(AK25:AN25)","v":100}]
[null,null,null,null,null,null,null,null,null,null,null,null,null,null,null,null,null,"HEROES DE LA DEMOCRACIA","08DES0013M MATUTINO","080028981S19",2,1,2,2,1,1,4,1,null,"P17",{"$f":"COUNTIF(X23:X28074,AE22)","v":12},{"$f":"COUNTIF(X23:X28074,AF22)","v":12},{"$f":"COUNTIF(X23:X28074,AG22)","v":9},{"$f":"COUNTIF(X23:X28074,AH22)","v":5},38,"P17",{"$f":"(AE26*100)/AI26","v":31.578947368421051},{"$f":"(AF26*100)/AI26","v":31.578947368421051},{"$f":"(AG26*100)/AI26","v":23.684210526315791},13.157894736842104,100]
[null,null,null,null,null,null,null,null,null,null,null,null,null,null,null,null,null,"HEROES DE LA DEMOCRACIA","08DES0013M MATUTINO","080028982S19",1,2,2,2,1,1,2,3,null,"P29",{"$f":"COUNTIF(Y23:Y28075,AE22)","v":15},{"$f":"COUNTIF(Y23:Y28075,AF22)","v":5},{"$f":"COUNTIF(Y23:Y28075,AG22)","v":10},{"$f":"COUNTIF(Y23:Y28075,AH22)","v":8},38,"P29",{"$f":"(AE27*100)/AI27","v":39.473684210526315},13.157894736842104,26.315789473684209,21.05263157894737,100]
[null,null,null,null,null,null,null,null,null,null,null,null,null,null,null,null,null,"HEROES DE LA DEMOCRACIA","08DES0013M MATUTINO","080028983S19",4,1,2,3,1,2,3,4,null,"P33",{"$f":"COUNTIF(Z23:Z28076,AE22)","v":6},{"$f":"COUNTIF(Z23:Z28076,AF22)","v":9},{"$f":"COUNTIF(Z23:Z28076,AG22)","v":14},{"$f":"COUNTIF(Z23:Z28076,AH22)","v":9},38,"P33",15.789473684210526,23.684210526315791,36.842105263157897,23.684210526315791,100.00000000000001]
[null,null,null,null,null,null,null,null,null,null,null,null,null,null,null,null,null,"HEROES DE LA DEMOCRACIA","08DES0013M MATUTINO","080028984S19",1,2,2,1,4,1,1,4,null,"P38",{"$f":"COUNTIF(AA23:AA28077,AE22)","v":12},{"$f":"COUNTIF(AA23:AA28077,AF22)","v":10},{"$f":"COUNTIF(AA23:AA28077,AG22)","v":7},{"$f":"COUNTIF(AA23:AA28077,AH22)","v":9},38,"P38",31.578947368421051,26.315789473684209,18.421052631578949,23.684210526315791,100]
[null,null,null,null,null,null,null,null,null,null,null,null,null,null,null,null,null,"HEROES DE LA DEMOCRACIA","08DES0013M MATUTINO","080028985S19",3,2,1,3,3,4,2,3,null,"P51",{"$f":"COUNTIF(AB23:AB28078,AE22)","v":9},{"$f":"COUNTIF(AB23:AB28078,AF22)","v":15},{"$f":"COUNTIF(AB23:AB28078,AG22)","v":8},{"$f":"COUNTIF(AB23:AB28078,AH22)","v":5},37,"P51",24.324324324324323,40.54054054054054,21.621621621621621,13.513513513513514,100]
[null,null,null,null,null,null,null,null,null,null,null,null,null,null,null,null,null,"HEROES DE LA DEMOCRACIA","08DES0013M MATUTINO","080028986S19",1,4,2,4,1,3,3,3]
[null,null,null,null,null,null,null,null,null,null,null,null,null,null,null,null,null,"HEROES DE LA DEMOCRACIA","08DES0013M MATUTINO","080028987S19",4,1,1,3,1,4,4,4]
[null,null,null,null,null,null,null,null,null,null,null,null,null,null,null,null,null,"HEROES DE LA DEMOCRACIA","08DES0013M MATUTINO","080028988S19",1,4,1,2,1,3,3,3]
[null,null,null,null,null,null,null,null,null,null,null,null,null,null,null,null,null,"HEROES DE LA DEMOCRACIA","08DES0013M MATUTINO","080028989S19",4,2,1,1,1,4,4,2]
[null,null,null,null,null,null,null,null,null,null,null,null,null,null,null,null,null,"HEROES DE LA DEMOCRACIA","08DES0013M MATUTINO","080028990S19",4,1,1,1,3,4,1,2]
[null,null,null,null,null,null,null,null,null,null,null,null,null,null,null,null,null,"HEROES DE LA DEMOCRACIA","08DES0013M MATUTINO","080028991S19",1,2,1,3,3,3,3,2]
[null,null,null,null,null,null,null,null,null,null,null,null,null,null,null,null,null,"HEROES DE LA DEMOCRACIA","08DES0013M MATUTINO","080028992S19",4,2,1,2,3,3,2,3]
[null,null,null,null,null,null,null,null,null,null,null,null,null,null,null,null,null,"HEROES DE LA DEMOCRACIA","08DES0013M MATUTINO","080028993S19",4,1,1,1,2,2,3,1]
[null,null,null,null,null,null,null,null,null,null,null,null,null,null,null,null,null,"HEROES DE LA DEMOCRACIA","08DES0013M MATUTINO","080028995S19",4,1,2,4,3,2,3,4]
[null,null,null,null,null,null,null,null,null,null,null,null,null,null,null,null,null,"HEROES DE LA DEMOCRACIA","08DES0013M MATUTINO","080028996S19",4,1,3,2,4,4,1,1]
[null,null,null,null,null,null,null,null,null,null,null,null,null,null,null,null,null,"HEROES DE LA DEMOCRACIA","08DES0013M MATUTINO","080028997S19",1,2,2,2,2,3,3,1]
[null,null,null,null,null,null,null,null,null,null,null,null,null,null,null,null,null,"HEROES DE LA DEMOCRACIA","08DES0013M MATUTINO","080028998S19",1,3,4,2,2,3,2,4]
[null,null,null,null,null,null,null,null,null,null,null,null,null,null,null,null,null,"HEROES DE LA DEMOCRACIA","08DES0013M MATUTINO","080028999S19",4,3,1,2,3,2,1,3]
[null,null,null,null,null,null,null,null,null,null,null,null,null,null,null,null,null,"HEROES DE LA DEMOCRACIA","08DES0013M MATUTINO","080029000S19",2,3,2,4,2,4,4,2]
[null,null,null,null,null,null,null,null,null,null,null,null,null,null,null,null,null,"HEROES DE LA DEMOCRACIA","08DES0013M MATUTINO","080029001S19",8,8,8,8,8,8,8,8]
[null,null,null,null,null,null,null,null,null,null,null,null,null,null,null,null,null,"HEROES DE LA DEMOCRACIA","08DES0013M MATUTINO","080029002S19",4,2,3,1,2,4,1,1]
[null,null,null,null,null,null,null,null,null,null,null,null,null,null,null,null,null,"HEROES DE LA DEMOCRACIA","08DES0013M MATUTINO","080029003S19",2,8,3,2,3,2,1,3]
[null,null,null,null,null,null,null,null,null,null,null,null,null,null,null,null,null,"HEROES DE LA DEMOCRACIA","08DES0013M MATUTINO","080029004S19",4,2,2,1,1,1,2,1]
[null,null,null,null,null,null,null,null,null,null,null,null,null,null,null,null,null,"HEROES DE LA DEMOCRACIA","08DES0013M MATUTINO","080029005S19",1,2,3,1,1,2,1,2]
[null,null,null,null,null,null,null,null,null,null,null,null,null,null,null,null,null,"HEROES DE LA DEMOCRACIA","08DES0013M MATUTINO","080029006S19",3,2,1,3,3,4,4,2]
[null,null,null,null,null,null,null,null,null,null,null,null,null,null,null,null,null,"HEROES DE LA DEMOCRACIA","08DES0013M MATUTINO","080029007S19",1,2,2,1,4,3,2,2]
[null,null,null,null,null,null,null,null,null,null,null,null,null,null,null,null,null,"HEROES DE LA DEMOCRACIA","08DES0013M MATUTINO","080029008S19",1,2,2,1,1,1,4,2]
[null,null,null,null,null,null,null,null,null,null,null,null,null,null,null,null,null,"HEROES DE LA DEMOCRACIA","08DES0013M MATUTINO","080029009S19",3,2,2,1,3,2,2,2]
[null,null,null,null,null,null,null,null,null,null,null,null,null,null,null,null,null,"HEROES DE LA DEMOCRACIA","08DES0013M MATUTINO","080029010S19",1,2,1,1,1,3,2,1]
[null,null,null,null,null,null,null,null,null,null,null,null,null,null,null,null,null,"HEROES DE LA DEMOCRACIA","08DES0013M MATUTINO","080029011S19",1,2,4,3,1,1,1,1]
[null,null,null,null,null,null,null,null,null,null,null,null,null,null,null,null,null,"HEROES DE LA DEMOCRACIA","08DES0013M MATUTINO","080029012S19",1,2,3,3,4,4,4,1]
[null,null,null,null,null,null,null,null,null,null,null,null,null,null,null,null,null,"HEROES DE LA DEMOCRACIA","08DES0013M MATUTINO","080029013S19",4,3,1,1,4,3,4,3]
[null,null,null,null,null,null,null,null,null,null,null,null,null,null,null,null,null,"HEROES DE LA DEMOCRACIA","08DES0013M MATUTINO","080029014S19",4,3,2,4,1,3,1,2]
[null,null,null,null,null,null,null,null,null,null,null,null,null,null,null,null,null,"HEROES DE LA DEMOCRACIA","08DES0013M MATUTINO","080029015S19",1,2,1,2,4,2,2,2]
[null,null,null,null,null,null,null,null,null,null,null,null,null,null,null,null,null,"HEROES DE LA DEMOCRACIA","08DES0013M MATUTINO","080029016S19",1,2,1,3,3,3,1,2]
[null,null,null,null,null,null,null,null,null,null,null,null,null,null,null,null,null,"HEROES DE LA DEMOCRACIA","08DES0013M MATUTINO","080029017S19",3,2,1,4,1,3,2,2]

{"sheet":"UD_DESARROLLO COMPRENSIÓN GLOBA","index":14,"n_rows":65,"n_cols":37,"rows_kept":65,"cut":false,"hidden":false,"merged":[]}
[]
["Desarrollo de una comprensión global",null,null,null,null,null,null,null,null,null,null,null,null,null,null,null,null,null,null,null,null,6,"B",2,"SL6","SL6","Texto_P_6a9",6,"Desarrollo de una comprensión global","Reconstruir la trama de una obra teatral."]
[null,null,null,null,null,null,null,null,null,null,null,null,null,null,null,null,null,null,null,null,null,21,"A",1,"SL21","SL21","Texto_P_21a26",21,"Desarrollo de una comprensión global","Integrar en un enunciado el tema del  ensayo. "]
[null,null,null,null,null,null,null,null,null,null,null,null,null,null,null,null,null,null,null,null,null,22,"C",3,"SL22","SL22","Texto_P_21a26",22,"Desarrollo de una comprensión global","Identificar el propósito del autor de un ensayo."]
[null,null,null,null,null,null,null,null,null,null,null,null,null,null,null,null,null,null,null,null,null,34,"B",2,"SL34","SL34","Texto_P_32a35",34,"Desarrollo de una comprensión global","Identificar la situación comunicativa  en la que se desarrolló la entrevista."]
[null,null,null,null,null,null,null,null,null,null,null,null,null,null,null,null,null,null,null,null,null,44,"C",3,"SL44","SL44","Texto_P_44a47",44,"Desarrollo de una comprensión global","Identificar el propósito comunicativo del autor en un artículo de opinión."]
[null,null,null,null,null,null,null,null,null,null,null,null,null,null,null,null,null,null,null,null,null,45,"D",4,"SL45","SL45","Texto_P_44a47",45,"Desarrollo de una comprensión global","Identificar el punto de vista expresado por el autor en el artículo de opinión."]
[null,null,null,null,null,null,null,null,null,null,null,null,null,null,null,null,null,null,null,null,null,48,"B",2,"SL48","SL48","Texto_P_48a51",48,"Desarrollo de una comprensión global","Reconocer características de personajes míticos."]
[null,null,null,null,null,null,null,null,null,null,null,null,null,null,null,null,null,null,null,null,null,49,"A",1,"SL49","SL49","Texto_P_48a51",49,"Desarrollo de una comprensión global","Reconocer los hechos recurrentes en dos mitos con el mismo tema."]
[]
[]
[]
[]
[]
[]
[null,"Reconstruir la trama de una obra teatral.","Integrar en un enunciado el tema del  ensayo. ","Identificar el propósito del autor de un ensayo.","Identificar la situación comunicativa  en la que se desarrolló la entrevista.","Identificar el propósito comunicativo del autor en un artículo de opinión.","Identificar el punto de vista expresado por el autor en el artículo de opinión.","Reconocer características de personajes míticos.","Reconocer los hechos recurrentes en dos mitos con el mismo tema."]
[]
[null,"nombre_ct","CCT_TURNO","Promedio de LYC_SEC_1_6","Promedio de LYC_SEC_1_211","Promedio de LYC_SEC_1_22","Promedio de LYC_SEC_1_34","Promedio de LYC_SEC_1_44","Promedio de LYC_SEC_1_45","Promedio de LYC_SEC_1_48","Promedio de LYC_SEC_1_49",null,"REACTIVOS",1,2,3,4,"TOTAL","REACTIVOS","R1","R2","R3","R4","TOTAL",null,null,"nombre_ct","CCT_TURNO","nofolio","Suma de LYC_SEC_19_RESP_6","Suma de LYC_SEC_19_RESP_21","Suma de LYC_SEC_19_RESP_22","Suma de LYC_SEC_19_RESP_34","Suma de LYC_SEC_19_RESP_44","Suma de LYC_SEC_19_RESP_45","Suma de LYC_SEC_19_RESP_48","Suma de LYC_SEC_19_RESP_49"]
[null,"HEROES DE LA DEMOCRACIA","08DES0013M MATUTINO",0.36842105263157893,0.73684210526315785,0.63157894736842102,0.5,0.15789473684210525,0.28947368421052633,0.44736842105263158,0.47368421052631576,null,6,{"$f":"COUNTIF(AD19:AD28100,N18)","v":9},{"$f":"COUNTIF(AD19:AD28100,O18)","v":14},{"$f":"COUNTIF(AD19:AD28100,P18)","v":10},{"$f":"COUNTIF(AD19:AD28100,Q18)","v":5},{"$f":"SUM(N19:Q19)","v":38},"P6",{"$f":"(N19*100)/R19","v":23.684210526315791},{"$f":"(O19*100)/R19","v":36.842105263157897},{"$f":"(P19*100)/R19","v":26.315789473684209},{"$f":"(Q19*100)/R19","v":13.157894736842104},{"$f":"SUM(T19:W19)","v":100},null,null,"HEROES DE LA DEMOCRACIA","08DES0013M MATUTINO","080028978S19",1,1,2,2,3,1,3,2]
[null,null,null,null,null,null,null,null,null,null,null,null,21,{"$f":"COUNTIF(AE19:AE28101,N18)","v":28},{"$f":"COUNTIF(AE19:AE28101,O18)","v":5},{"$f":"COUNTIF(AE19:AE28101,P18)","v":1},{"$f":"COUNTIF(AE19:AE28101,Q18)","v":4},{"$f":"SUM(N20:Q20)","v":38},"P21",{"$f":"(N20*100)/R20","v":73.684210526315795},{"$f":"(O20*100)/R20","v":13.157894736842104},{"$f":"(P20*100)/R20","v":2.6315789473684212},{"$f":"(Q20*100)/R20","v":10.526315789473685},{"$f":"SUM(T20:W20)","v":100.00000000000001},null,null,"HEROES DE LA DEMOCRACIA","08DES0013M MATUTINO","080028979S19",2,1,3,2,3,3,2,1]
[null,null,null,null,null,null,null,null,null,null,null,null,22,{"$f":"COUNTIF(AF19:AF28102,N18)","v":2},{"$f":"COUNTIF(AF19:AF28102,O18)","v":6},{"$f":"COUNTIF(AF19:AF28102,P18)","v":24},{"$f":"COUNTIF(AF19:AF28102,Q18)","v":6},38,"P22",5.2631578947368425,15.789473684210526,63.157894736842103,15.789473684210526,100,null,null,"HEROES DE LA DEMOCRACIA","08DES0013M MATUTINO","080028980S19",2,1,3,2,3,4,2,1]
[null,null,null,null,null,null,null,null,null,null,null,null,34,{"$f":"COUNTIF(AG19:AG228103,N18)","v":5},{"$f":"COUNTIF(AG19:AG228103,O18)","v":19},{"$f":"COUNTIF(AG19:AG228103,P18)","v":10},{"$f":"COUNTIF(AG19:AG228103,Q18)","v":4},38,"P34",13.157894736842104,50,26.315789473684209,10.526315789473685,100,null,null,"HEROES DE LA DEMOCRACIA","08DES0013M MATUTINO","080028981S19",3,1,4,3,1,2,1,4]
[null,null,null,null,null,null,null,null,null,null,null,null,44,{"$f":"COUNTIF(AH19:AH28104,N18)","v":16},{"$f":"COUNTIF(AH19:AH28104,O18)","v":10},{"$f":"COUNTIF(AH19:AH28104,P18)","v":6},{"$f":"COUNTIF(AH19:AH28104,Q18)","v":6},38,"P44",42.10526315789474,26.315789473684209,15.789473684210526,15.789473684210526,99.999999999999986,null,null,"HEROES DE LA DEMOCRACIA","08DES0013M MATUTINO","080028982S19",1,1,4,4,1,1,1,1]
[null,null,null,null,null,null,null,null,null,null,null,null,45,{"$f":"COUNTIF(AI19:AI28105,N18)","v":6},{"$f":"COUNTIF(AI19:AI28105,O18)","v":9},{"$f":"COUNTIF(AI19:AI28105,P18)","v":12},{"$f":"COUNTIF(AI19:AI28105,Q18)","v":11},38,"P45",15.789473684210526,23.684210526315791,31.578947368421051,28.94736842105263,100,null,null,"HEROES DE LA DEMOCRACIA","08DES0013M MATUTINO","080028983S19",2,1,3,2,1,1,1,1]
[null,null,null,null,null,null,null,null,null,null,null,null,48,{"$f":"COUNTIF(AJ19:AJ28106,N18)","v":12},{"$f":"COUNTIF(AJ19:AJ28106,O18)","v":17},{"$f":"COUNTIF(AJ19:AJ28106,P18)","v":5},{"$f":"COUNTIF(AJ19:AJ28106,Q18)","v":4},38,"P48",31.578947368421051,44.736842105263158,13.157894736842104,10.526315789473685,100,null,null,"HEROES DE LA DEMOCRACIA","08DES0013M MATUTINO","080028984S19",3,4,4,2,2,1,3,1]
[null,null,null,null,null,null,null,null,null,null,null,null,49,{"$f":"COUNTIF(AK19:AK28107,N18)","v":18},{"$f":"COUNTIF(AK19:AK28107,O18)","v":5},{"$f":"COUNTIF(AK19:AK28107,P18)","v":6},{"$f":"COUNTIF(AK19:AK28107,Q18)","v":9},38,"P49",47.368421052631582,13.157894736842104,15.789473684210526,23.684210526315791,100,null,null,"HEROES DE LA DEMOCRACIA","08DES0013M MATUTINO","080028985S19",3,4,3,4,2,4,3,1]
[null,null,null,null,null,null,null,null,null,null,null,null,null,null,null,null,null,null,null,null,null,null,null,null,null,null,"HEROES DE LA DEMOCRACIA","08DES0013M MATUTINO","080028986S19",4,1,3,2,1,3,2,1]
[null,null,null,null,null,null,null,null,null,null,null,null,null,null,null,null,null,null,null,null,null,null,null,null,null,null,"HEROES DE LA DEMOCRACIA","08DES0013M MATUTINO","080028987S19",2,1,3,2,3,1,3,2]
[null,null,null,null,null,null,null,null,null,null,null,null,null,null,null,null,null,null,null,null,null,null,null,null,null,null,"HEROES DE LA DEMOCRACIA","08DES0013M MATUTINO","080028988S19",4,3,2,2,2,4,2,2]
[null,null,null,null,null,null,null,null,null,null,null,null,null,null,null,null,null,null,null,null,null,null,null,null,null,null,"HEROES DE LA DEMOCRACIA","08DES0013M MATUTINO","080028989S19",3,1,3,1,1,3,1,1]
[null,null,null,null,null,null,null,null,null,null,null,null,null,null,null,null,null,null,null,null,null,null,null,null,null,null,"HEROES DE LA DEMOCRACIA","08DES0013M MATUTINO","080028990S19",3,2,4,1,1,2,2,1]
[null,null,null,null,null,null,null,null,null,null,null,null,null,null,null,null,null,null,null,null,null,null,null,null,null,null,"HEROES DE LA DEMOCRACIA","08DES0013M MATUTINO","080028991S19",4,1,3,2,1,2,2,4]
[null,null,null,null,null,null,null,null,null,null,null,null,null,null,null,null,null,null,null,null,null,null,null,null,null,null,"HEROES DE LA DEMOCRACIA","08DES0013M MATUTINO","080028992S19",3,4,2,2,4,2,4,1]
[null,null,null,null,null,null,null,null,null,null,null,null,null,null,null,null,null,null,null,null,null,null,null,null,null,null,"HEROES DE LA DEMOCRACIA","08DES0013M MATUTINO","080028993S19",2,4,4,2,1,3,2,2]
[null,null,null,null,null,null,null,null,null,null,null,null,null,null,null,null,null,null,null,null,null,null,null,null,null,null,"HEROES DE LA DEMOCRACIA","08DES0013M MATUTINO","080028995S19",2,2,3,3,3,2,1,3]
[null,null,null,null,null,null,null,null,null,null,null,null,null,null,null,null,null,null,null,null,null,null,null,null,null,null,"HEROES DE LA DEMOCRACIA","08DES0013M MATUTINO","080028996S19",4,1,2,3,2,3,1,4]
[null,null,null,null,null,null,null,null,null,null,null,null,null,null,null,null,null,null,null,null,null,null,null,null,null,null,"HEROES DE LA DEMOCRACIA","08DES0013M MATUTINO","080028997S19",1,1,3,2,4,4,1,4]
[null,null,null,null,null,null,null,null,null,null,null,null,null,null,null,null,null,null,null,null,null,null,null,null,null,null,"HEROES DE LA DEMOCRACIA","08DES0013M MATUTINO","080028998S19",1,1,3,2,4,3,2,1]
[null,null,null,null,null,null,null,null,null,null,null,null,null,null,null,null,null,null,null,null,null,null,null,null,null,null,"HEROES DE LA DEMOCRACIA","08DES0013M MATUTINO","080028999S19",3,1,3,4,4,4,3,1]
[null,null,null,null,null,null,null,null,null,null,null,null,null,null,null,null,null,null,null,null,null,null,null,null,null,null,"HEROES DE LA DEMOCRACIA","08DES0013M MATUTINO","080029000S19",2,1,3,3,4,2,2,2]
[null,null,null,null,null,null,null,null,null,null,null,null,null,null,null,null,null,null,null,null,null,null,null,null,null,null,"HEROES DE LA DEMOCRACIA","08DES0013M MATUTINO","080029001S19",8,8,8,8,8,8,8,8]
[null,null,null,null,null,null,null,null,null,null,null,null,null,null,null,null,null,null,null,null,null,null,null,null,null,null,"HEROES DE LA DEMOCRACIA","08DES0013M MATUTINO","080029002S19",2,2,3,2,2,3,1,4]
[null,null,null,null,null,null,null,null,null,null,null,null,null,null,null,null,null,null,null,null,null,null,null,null,null,null,"HEROES DE LA DEMOCRACIA","08DES0013M MATUTINO","080029003S19",3,2,1,3,2,3,1,3]
[null,null,null,null,null,null,null,null,null,null,null,null,null,null,null,null,null,null,null,null,null,null,null,null,null,null,"HEROES DE LA DEMOCRACIA","08DES0013M MATUTINO","080029004S19",2,1,3,3,1,4,2,4]
[null,null,null,null,null,null,null,null,null,null,null,null,null,null,null,null,null,null,null,null,null,null,null,null,null,null,"HEROES DE LA DEMOCRACIA","08DES0013M MATUTINO","080029005S19",1,1,1,3,2,3,2,3]
[null,null,null,null,null,null,null,null,null,null,null,null,null,null,null,null,null,null,null,null,null,null,null,null,null,null,"HEROES DE LA DEMOCRACIA","08DES0013M MATUTINO","080029006S19",3,1,3,1,1,2,4,1]
[null,null,null,null,null,null,null,null,null,null,null,null,null,null,null,null,null,null,null,null,null,null,null,null,null,null,"HEROES DE LA DEMOCRACIA","08DES0013M MATUTINO","080029007S19",1,1,3,3,1,4,2,1]
[null,null,null,null,null,null,null,null,null,null,null,null,null,null,null,null,null,null,null,null,null,null,null,null,null,null,"HEROES DE LA DEMOCRACIA","08DES0013M MATUTINO","080029008S19",2,1,3,2,2,3,2,4]
[null,null,null,null,null,null,null,null,null,null,null,null,null,null,null,null,null,null,null,null,null,null,null,null,null,null,"HEROES DE LA DEMOCRACIA","08DES0013M MATUTINO","080029009S19",3,1,3,4,2,1,4,4]
[null,null,null,null,null,null,null,null,null,null,null,null,null,null,null,null,null,null,null,null,null,null,null,null,null,null,"HEROES DE LA DEMOCRACIA","08DES0013M MATUTINO","080029010S19",2,1,3,3,4,4,2,1]
[null,null,null,null,null,null,null,null,null,null,null,null,null,null,null,null,null,null,null,null,null,null,null,null,null,null,"HEROES DE LA DEMOCRACIA","08DES0013M MATUTINO","080029011S19",2,2,4,3,1,3,1,3]
[null,null,null,null,null,null,null,null,null,null,null,null,null,null,null,null,null,null,null,null,null,null,null,null,null,null,"HEROES DE LA DEMOCRACIA","08DES0013M MATUTINO","080029012S19",1,1,2,1,3,2,2,1]
[null,null,null,null,null,null,null,null,null,null,null,null,null,null,null,null,null,null,null,null,null,null,null,null,null,null,"HEROES DE LA DEMOCRACIA","08DES0013M MATUTINO","080029013S19",4,1,2,2,1,4,4,4]
[null,null,null,null,null,null,null,null,null,null,null,null,null,null,null,null,null,null,null,null,null,null,null,null,null,null,"HEROES DE LA DEMOCRACIA","08DES0013M MATUTINO","080029014S19",1,1,3,2,1,2,2,1]
[null,null,null,null,null,null,null,null,null,null,null,null,null,null,null,null,null,null,null,null,null,null,null,null,null,null,"HEROES DE LA DEMOCRACIA","08DES0013M MATUTINO","080029015S19",2,1,3,2,1,4,1,3]
[null,null,null,null,null,null,null,null,null,null,null,null,null,null,null,null,null,null,null,null,null,null,null,null,null,null,"HEROES DE LA DEMOCRACIA","08DES0013M MATUTINO","080029016S19",2,1,3,2,2,3,2,1]
[null,null,null,null,null,null,null,null,null,null,null,null,null,null,null,null,null,null,null,null,null,null,null,null,null,null,"HEROES DE LA DEMOCRACIA","08DES0013M MATUTINO","080029017S19",1,1,3,1,1,4,1,3]
[null,null,null,null,null,null,null,null,null,null,null,6,"Desarrollo de una comprensión global","Reconstruir la trama de una obra teatral."]
[null,null,null,null,null,null,null,null,null,null,null,21,"Desarrollo de una comprensión global","Integrar en un enunciado el tema del  ensayo. "]
[null,null,null,null,null,null,null,null,null,null,null,22,"Desarrollo de una comprensión global","Identificar el propósito del autor de un ensayo."]
[null,null,null,null,null,null,null,null,null,null,null,34,"Desarrollo de una comprensión global","Identificar la situación comunicativa  en la que se desarrolló la entrevista."]
[null,null,null,null,null,null,null,null,null,null,null,44,"Desarrollo de una comprensión global","Identificar el propósito comunicativo del autor en un artículo de opinión."]
[null,null,null,null,null,null,null,null,null,null,null,45,"Desarrollo de una comprensión global","Identificar el punto de vista expresado por el autor en el artículo de opinión."]
[null,null,null,null,null,null,null,null,null,null,null,48,"Desarrollo de una comprensión global","Reconocer características de personajes míticos."]
[null,null,null,null,null,null,null,null,null,null,null,49,"Desarrollo de una comprensión global","Reconocer los hechos recurrentes en dos mitos con el mismo tema."]

{"sheet":"UD_DESARROLLO INTERPRETACIÓN","index":15,"n_rows":58,"n_cols":53,"rows_kept":58,"cut":false,"hidden":false,"merged":[]}
[null,"Desarrollo de una interpretación "]
[null,null,null,null,null,null,null,null,null,1,"B",2,"SECUNDARIA","LENGUAJE Y COMUNICACIÓN","SL1","SL1","Texto_P_1a4",1,"Desarrollo de una interpretación ","Interpretar el significado de una norma."]
[null,null,null,null,null,null,null,null,null,3,"D",4,"SECUNDARIA","LENGUAJE Y COMUNICACIÓN","SL3","SL3","Texto_P_1a4",3,"Desarrollo de una interpretación ","Identificar el derecho que se establece en una norma."]
[null,null,null,null,null,null,null,null,null,5,"A",1,"SECUNDARIA","LENGUAJE Y COMUNICACIÓN","SL5","SL5","INDEPENDIENTE",5,"Desarrollo de una interpretación ","Identificar el propósito de un guion de entrevista."]
[null,null,null,null,null,null,null,null,null,7,"B",2,"SECUNDARIA","LENGUAJE Y COMUNICACIÓN","SL7","SL7","Texto_P_6a9",7,"Desarrollo de una interpretación ","Identificar el ambiente de un fragmento de una obra de teatro."]
[null,null,null,null,null,null,null,null,null,8,"D",4,"SECUNDARIA","LENGUAJE Y COMUNICACIÓN","SL8","SL8","Texto_P_6a9",8,"Desarrollo de una interpretación ","Identificar las acciones de los personajes de acuerdo a la época en la que sucede la historia."]
[null,null,null,null,null,null,null,null,null,18,"A",1,"SECUNDARIA","LENGUAJE Y COMUNICACIÓN","SL18","SL18","Texto_P_18a20",18,"Desarrollo de una interpretación ","Elegir la pregunta que sirvió de base para construir la gráfica."]
[null,null,null,null,null,null,null,null,null,19,"B",2,"SECUNDARIA","LENGUAJE Y COMUNICACIÓN","SL19","SL19","Texto_P_18a20",19,"Desarrollo de una interpretación ","Elegir los datos adecuados para la organización de una tabla a partir de la lectura de una gráfica."]
[null,null,null,null,null,null,null,null,null,20,"B",2,"SECUNDARIA","LENGUAJE Y COMUNICACIÓN","SL20","SL20","Texto_P_18a20",20,"Desarrollo de una interpretación ","Identificar la información que añade un dato específico a una gráfica."]
[null,null,null,null,null,null,null,null,null,23,"D",4,"SECUNDARIA","LENGUAJE Y COMUNICACIÓN","SL23","SL23","Texto_P_21a26",23,"Desarrollo de una interpretación ","Identificar punto de vista del autor de un ensayo."]
[null,null,null,null,null,null,null,null,null,25,"A",1,"SECUNDARIA","LENGUAJE Y COMUNICACIÓN","SL25","SL25","Texto_P_21a26",25,"Desarrollo de una interpretación ","Sintetizar la conclusión del autor del ensayo. "]
[null,null,null,null,null,null,null,null,null,26,"D",4,"SECUNDARIA","LENGUAJE Y COMUNICACIÓN","SL26","SL26","Texto_P_21a26",26,"Desarrollo de una interpretación ","Identificar la secuencia argumentativa en un ensayo."]
[null,null,null,null,null,null,null,null,null,27,"C",3,"SECUNDARIA","LENGUAJE Y COMUNICACIÓN","SL27","SL27","Texto_P_27a31",27,"Desarrollo de una interpretación ","Seleccionar el diálogo adecuado para un personaje a partir de una biografía."]
[null,null,null,null,null,null,null,null,null,30,"A",1,"SECUNDARIA","LENGUAJE Y COMUNICACIÓN","SL30","SL30","Texto_P_27a31",30,"Desarrollo de una interpretación ","Seleccionar, a partir de un texto narrativo, acotaciones para la representación de un actor en una obra teatral."]
[null,null,null,null,null,null,null,null,null,37,"D",4,"SECUNDARIA","LENGUAJE Y COMUNICACIÓN","SL37","SL37","Texto_P_36a39",37,"Desarrollo de una interpretación ","Identificar preguntas pertinentes y no pertinentes de acuerdo al objetivo de una encuesta."]
[null,null,null,null,null,null,null,null,null,39,"D",4,"SECUNDARIA","LENGUAJE Y COMUNICACIÓN","SL39","SL39","Texto_P_36a39",39,"Desarrollo de una interpretación ","Seleccionar la pregunta que permite obtener  información específica."]
[null,null,null,null,null,null,null,null,null,47,"D",4,"SECUNDARIA","LENGUAJE Y COMUNICACIÓN","SL47","SL47","Texto_P_44a47",47,"Desarrollo de una interpretación ","Reconocer la conclusión que deriva el autor después de su planteamiento"]
[]
[null,"nombre_ct","CCT_TURNO","Promedio de LYC_SEC_1_1","Promedio de LYC_SEC_1_3","Promedio de LYC_SEC_1_5","Promedio de LYC_SEC_1_7","Promedio de LYC_SEC_1_8","Promedio de LYC_SEC_1_18","Promedio de LYC_SEC_1_19","Promedio de LYC_SEC_1_20","Promedio de LYC_SEC_1_23","Promedio de LYC_SEC_1_25","Promedio de LYC_SEC_1_26","Promedio de LYC_SEC_1_27","Promedio de LYC_SEC_1_30","Promedio de LYC_SEC_1_37","Promedio de LYC_SEC_1_39","Promedio de LYC_SEC_1_47",null,null,"nombre_ct","CCT_TURNO","nofolio","Suma de LYC_SEC_19_RESP_1","Suma de LYC_SEC_19_RESP_3","Suma de LYC_SEC_19_RESP_5","Suma de LYC_SEC_19_RESP_7","Suma de LYC_SEC_19_RESP_8","Suma de LYC_SEC_19_RESP_18","Suma de LYC_SEC_19_RESP_19","Suma de LYC_SEC_19_RESP_20","Suma de LYC_SEC_19_RESP_23","Suma de LYC_SEC_19_RESP_25","Suma de LYC_SEC_19_RESP_26","Suma de LYC_SEC_19_RESP_27","Suma de LYC_SEC_19_RESP_30","Suma de LYC_SEC_19_RESP_37","Suma de LYC_SEC_19_RESP_39","Suma de LYC_SEC_19_RESP_47",null,"REACTIVOS",1,2,3,4,"TOTAL","REACTIVOS","R1","R2","R3","R4","TOTAL"]
[null,"HEROES DE LA DEMOCRACIA","08DES0013M MATUTINO",0.55263157894736847,2.6315789473684209E-2,0.73684210526315785,0.44736842105263158,0.26315789473684209,0.60526315789473684,0.52631578947368418,0.60526315789473684,0.60526315789473684,0.34210526315789475,0.26315789473684209,0.28947368421052633,0.42105263157894735,0.57894736842105265,0.52631578947368418,0.21052631578947367,null,null,"HEROES DE LA DEMOCRACIA","08DES0013M MATUTINO","080028978S19",3,3,1,2,3,1,2,2,3,1,2,1,2,4,3,1,null,"SL1",{"$f":"COUNTIF(Y20:Y28100,AQ19)","v":5},{"$f":"COUNTIF(Y20:Y28100,AR19)","v":21},{"$f":"COUNTIF(Y20:Y28100,AS19)","v":11},{"$f":"COUNTIF(Y20:Y28100,AT19)","v":1},{"$f":"SUM(AQ20:AT20)","v":38},"SL1",{"$f":"(AQ20*100)/AU20","v":13.157894736842104},{"$f":"(AR20*100)/AU20","v":55.263157894736842},{"$f":"(AS20*100)/AU20","v":28.94736842105263},{"$f":"(AT20*100)/AU20","v":2.6315789473684212},{"$f":"SUM(AW20:AZ20)","v":100}]
[null,null,null,null,null,null,null,null,null,null,null,null,null,null,null,null,null,null,null,null,null,"HEROES DE LA DEMOCRACIA","08DES0013M MATUTINO","080028979S19",2,3,1,2,4,2,2,2,4,2,4,3,1,4,4,4,null,"SL3",{"$f":"COUNTIF(Z20:Z28101,AQ19)","v":28},{"$f":"COUNTIF(Z20:Z28101,AR19)","v":2},{"$f":"COUNTIF(Z20:Z28101,AS19)","v":7},{"$f":"COUNTIF(Z20:Z28101,AT19)","v":1},{"$f":"SUM(AQ21:AT21)","v":38},"SL3",{"$f":"(AQ21*100)/AU21","v":73.684210526315795},{"$f":"(AR21*100)/AU21","v":5.2631578947368425},{"$f":"(AS21*100)/AU21","v":18.421052631578949},{"$f":"(AT21*100)/AU21","v":2.6315789473684212},{"$f":"SUM(AW21:AZ21)","v":100}]
[null,null,null,null,null,null,null,null,null,null,null,null,null,null,null,null,null,null,null,null,null,"HEROES DE LA DEMOCRACIA","08DES0013M MATUTINO","080028980S19",2,1,1,2,4,1,2,2,4,1,2,1,1,4,4,2,null,"SL5",{"$f":"COUNTIF(AA20:AA28102,AQ19)","v":28},{"$f":"COUNTIF(AA20:AA28102,AR19)","v":3},{"$f":"COUNTIF(AA20:AA28102,AS19)","v":3},{"$f":"COUNTIF(AA20:AA28102,AT19)","v":4},38,"SL5",73.684210526315795,7.8947368421052628,7.8947368421052628,10.526315789473685,100]
[null,null,null,null,null,null,null,null,null,null,null,null,null,null,null,null,null,null,null,null,null,"HEROES DE LA DEMOCRACIA","08DES0013M MATUTINO","080028981S19",1,1,1,3,1,2,3,2,1,4,4,1,1,1,1,3,null,"SL7",{"$f":"COUNTIF(AB20:AB28103,AQ19)","v":5},{"$f":"COUNTIF(AB20:AB28103,AR19)","v":17},{"$f":"COUNTIF(AB20:AB28103,AS19)","v":13},{"$f":"COUNTIF(AB20:AB28103,AT19)","v":3},38,"SL7",13.157894736842104,44.736842105263158,34.210526315789473,7.8947368421052628,100]
[null,null,null,null,null,null,null,null,null,null,null,null,null,null,null,null,null,null,null,null,null,"HEROES DE LA DEMOCRACIA","08DES0013M MATUTINO","080028982S19",2,1,1,2,1,1,1,2,2,2,3,1,2,4,1,2,null,"SL8",{"$f":"COUNTIF(AC20:AC28104,AQ19)","v":14},{"$f":"COUNTIF(AC20:AC28104,AR19)","v":8},{"$f":"COUNTIF(AC20:AC28104,AS19)","v":6},{"$f":"COUNTIF(AC20:AC28104,AT19)","v":10},38,"SL8",36.842105263157897,21.05263157894737,15.789473684210526,26.315789473684209,100]
[null,null,null,null,null,null,null,null,null,null,null,null,null,null,null,null,null,null,null,null,null,"HEROES DE LA DEMOCRACIA","08DES0013M MATUTINO","080028983S19",1,3,1,3,1,3,1,1,4,1,1,4,1,3,3,2,null,"SL18",{"$f":"COUNTIF(AD20:AD28105,AQ19)","v":23},{"$f":"COUNTIF(AD20:AD28105,AR19)","v":9},{"$f":"COUNTIF(AD20:AD28105,AS19)","v":6},{"$f":"COUNTIF(AD20:AD28105,AT19)","v":0},38,"SL18",60.526315789473685,23.684210526315791,15.789473684210526,0,100]
[null,null,null,null,null,null,null,null,null,null,null,null,null,null,null,null,null,null,null,null,null,"HEROES DE LA DEMOCRACIA","08DES0013M MATUTINO","080028984S19",3,1,1,1,3,2,1,2,3,2,1,2,1,3,4,2,null,"SL19",{"$f":"COUNTIF(AE20:AE28106,AQ19)","v":5},{"$f":"COUNTIF(AE20:AE28106,AR19)","v":20},{"$f":"COUNTIF(AE20:AE28106,AS19)","v":10},{"$f":"COUNTIF(AE20:AE28106,AT19)","v":3},38,"SL19",13.157894736842104,52.631578947368418,26.315789473684209,7.8947368421052628,99.999999999999986]
[null,null,null,null,null,null,null,null,null,null,null,null,null,null,null,null,null,null,null,null,null,"HEROES DE LA DEMOCRACIA","08DES0013M MATUTINO","080028985S19",4,1,2,2,4,1,2,3,2,2,1,1,3,1,2,4,null,"SL20",{"$f":"COUNTIF(AF20:AF28107,AQ19)","v":6},{"$f":"COUNTIF(AF20:AF28107,AR19)","v":23},{"$f":"COUNTIF(AF20:AF28107,AS19)","v":8},{"$f":"COUNTIF(AF20:AF28107,AT19)","v":1},38,"SL20",15.789473684210526,60.526315789473685,21.05263157894737,2.6315789473684212,100]
[null,null,null,null,null,null,null,null,null,null,null,null,null,null,null,null,null,null,null,null,null,"HEROES DE LA DEMOCRACIA","08DES0013M MATUTINO","080028986S19",2,4,1,3,4,1,4,2,4,1,4,2,1,4,4,1,null,"SL23",{"$f":"COUNTIF(AG20:AG28108,AQ19)","v":3},{"$f":"COUNTIF(AG20:AG28108,AR19)","v":6},{"$f":"COUNTIF(AG20:AG28108,AS19)","v":6},{"$f":"COUNTIF(AG20:AG28108,AT19)","v":23},38,"SL23",7.8947368421052628,15.789473684210526,15.789473684210526,60.526315789473685,100]
[null,null,null,null,null,null,null,null,null,null,null,null,null,null,null,null,null,null,null,null,null,"HEROES DE LA DEMOCRACIA","08DES0013M MATUTINO","080028987S19",2,3,4,3,4,1,3,1,4,1,1,2,3,4,4,1,null,"SL25",{"$f":"COUNTIF(AH20:AH28109,AQ19)","v":13},{"$f":"COUNTIF(AH20:AH28109,AR19)","v":16},{"$f":"COUNTIF(AH20:AH28109,AS19)","v":4},{"$f":"COUNTIF(AH20:AH28109,AT19)","v":5},38,"SL25",34.210526315789473,42.10526315789474,10.526315789473685,13.157894736842104,100.00000000000001]
[null,null,null,null,null,null,null,null,null,null,null,null,null,null,null,null,null,null,null,null,null,"HEROES DE LA DEMOCRACIA","08DES0013M MATUTINO","080028988S19",2,1,1,3,4,1,1,2,4,1,2,3,1,4,4,3,null,"SL26",{"$f":"COUNTIF(AI20:AI28110,AQ19)","v":15},{"$f":"COUNTIF(AI20:AI28110,AR19)","v":9},{"$f":"COUNTIF(AI20:AI28110,AS19)","v":4},{"$f":"COUNTIF(AI20:AI28110,AT19)","v":10},38,"SL26",39.473684210526315,23.684210526315791,10.526315789473685,26.315789473684209,100]
[null,null,null,null,null,null,null,null,null,null,null,null,null,null,null,null,null,null,null,null,null,"HEROES DE LA DEMOCRACIA","08DES0013M MATUTINO","080028989S19",2,1,2,1,3,2,3,3,4,3,2,3,2,3,3,3,null,"SL27",{"$f":"COUNTIF(AJ20:AJ28111,AQ19)","v":12},{"$f":"COUNTIF(AJ20:AJ28111,AR19)","v":11},{"$f":"COUNTIF(AJ20:AJ28111,AS19)","v":11},{"$f":"COUNTIF(AJ20:AJ28111,AT19)","v":4},38,"SL27",31.578947368421051,28.94736842105263,28.94736842105263,10.526315789473685,100]
[null,null,null,null,null,null,null,null,null,null,null,null,null,null,null,null,null,null,null,null,null,"HEROES DE LA DEMOCRACIA","08DES0013M MATUTINO","080028990S19",2,1,1,2,4,1,2,2,3,2,1,2,1,4,1,1,null,"SL30",{"$f":"COUNTIF(AK20:AK28112,AQ19)","v":16},{"$f":"COUNTIF(AK20:AK28112,AR19)","v":11},{"$f":"COUNTIF(AK20:AK28112,AS19)","v":8},{"$f":"COUNTIF(AK20:AK28112,AT19)","v":3},38,"SL30",42.10526315789474,28.94736842105263,21.05263157894737,7.8947368421052628,100]
[null,null,null,null,null,null,null,null,null,null,null,null,null,null,null,null,null,null,null,null,null,"HEROES DE LA DEMOCRACIA","08DES0013M MATUTINO","080028991S19",2,1,1,3,2,1,2,2,4,1,1,1,1,4,4,1,null,"SL37",{"$f":"COUNTIF(AL20:AL28113,AQ19)","v":6},{"$f":"COUNTIF(AL20:AL28113,AR19)","v":3},{"$f":"COUNTIF(AL20:AL28113,AS19)","v":7},{"$f":"COUNTIF(AL20:AL28113,AT19)","v":22},38,"SL37",15.789473684210526,7.8947368421052628,18.421052631578949,57.89473684210526,100]
[null,null,null,null,null,null,null,null,null,null,null,null,null,null,null,null,null,null,null,null,null,"HEROES DE LA DEMOCRACIA","08DES0013M MATUTINO","080028992S19",3,1,4,3,2,3,3,2,1,4,2,4,4,3,3,1,null,"SL39",{"$f":"COUNTIF(AM20:AM28114,AQ19)","v":7},{"$f":"COUNTIF(AM20:AM28114,AR19)","v":5},{"$f":"COUNTIF(AM20:AM28114,AS19)","v":6},{"$f":"COUNTIF(AM20:AM28114,AT19)","v":20},38,"SL39",18.421052631578949,13.157894736842104,15.789473684210526,52.631578947368418,100]
[null,null,null,null,null,null,null,null,null,null,null,null,null,null,null,null,null,null,null,null,null,"HEROES DE LA DEMOCRACIA","08DES0013M MATUTINO","080028993S19",2,1,1,4,4,2,2,3,4,4,3,2,2,2,2,4,null,"SL47",{"$f":"COUNTIF(AN20:AN28115,AQ19)","v":11},{"$f":"COUNTIF(AN20:AN28115,AR19)","v":8},{"$f":"COUNTIF(AN20:AN28115,AS19)","v":11},{"$f":"COUNTIF(AN20:AN28115,AT19)","v":8},38,"SL47",28.94736842105263,21.05263157894737,28.94736842105263,21.05263157894737,100]
[null,null,null,null,null,null,null,null,null,null,null,null,null,null,null,null,null,null,null,null,null,"HEROES DE LA DEMOCRACIA","08DES0013M MATUTINO","080028995S19",2,1,3,2,1,2,2,2,2,2,1,3,4,2,1,1]
[null,null,null,null,null,null,null,null,null,null,null,null,null,null,null,null,null,null,null,null,null,"HEROES DE LA DEMOCRACIA","08DES0013M MATUTINO","080028996S19",3,1,1,2,2,3,2,1,4,1,1,3,3,4,4,3]
[null,null,null,null,null,null,null,null,null,null,null,null,null,null,null,null,null,null,null,null,null,"HEROES DE LA DEMOCRACIA","08DES0013M MATUTINO","080028997S19",1,1,1,4,2,1,2,2,4,2,1,2,3,1,4,1]
[null,null,null,null,null,null,null,null,null,null,null,null,null,null,null,null,null,null,null,null,null,"HEROES DE LA DEMOCRACIA","08DES0013M MATUTINO","080028998S19",3,3,1,2,1,2,2,2,4,2,1,4,3,4,1,1]
[null,null,null,null,null,null,null,null,null,null,null,null,null,null,null,null,null,null,null,null,null,"HEROES DE LA DEMOCRACIA","08DES0013M MATUTINO","080028999S19",3,3,1,3,2,3,4,4,4,2,1,2,3,3,2,1]
[null,null,null,null,null,null,null,null,null,null,null,null,null,null,null,null,null,null,null,null,null,"HEROES DE LA DEMOCRACIA","08DES0013M MATUTINO","080029000S19",3,1,1,2,1,3,2,1,1,1,1,3,1,4,4,1]
[null,null,null,null,null,null,null,null,null,null,null,null,null,null,null,null,null,null,null,null,null,"HEROES DE LA DEMOCRACIA","08DES0013M MATUTINO","080029001S19",8,8,8,8,8,8,8,8,8,8,8,8,8,8,8,8]
[null,null,null,null,null,null,null,null,null,null,null,null,null,null,null,null,null,null,null,null,null,"HEROES DE LA DEMOCRACIA","08DES0013M MATUTINO","080029002S19",2,1,3,1,1,1,2,3,4,3,4,1,2,2,3,4]
[null,null,null,null,null,null,null,null,null,null,null,null,null,null,null,null,null,null,null,null,null,"HEROES DE LA DEMOCRACIA","08DES0013M MATUTINO","080029003S19",1,2,2,2,3,3,3,2,2,2,4,3,3,3,2,3]
[null,null,null,null,null,null,null,null,null,null,null,null,null,null,null,null,null,null,null,null,null,"HEROES DE LA DEMOCRACIA","08DES0013M MATUTINO","080029004S19",2,1,1,2,1,1,2,2,4,1,4,3,1,4,4,4]
[null,null,null,null,null,null,null,null,null,null,null,null,null,null,null,null,null,null,null,null,null,"HEROES DE LA DEMOCRACIA","08DES0013M MATUTINO","080029005S19",3,1,1,4,3,2,2,3,3,1,3,2,2,4,2,3]
[null,null,null,null,null,null,null,null,null,null,null,null,null,null,null,null,null,null,null,null,null,"HEROES DE LA DEMOCRACIA","08DES0013M MATUTINO","080029006S19",2,3,1,2,4,1,2,2,4,4,2,3,2,1,4,2]
[null,null,null,null,null,null,null,null,null,null,null,null,null,null,null,null,null,null,null,null,null,"HEROES DE LA DEMOCRACIA","08DES0013M MATUTINO","080029007S19",2,1,1,3,1,1,3,1,4,1,4,2,1,1,4,3]
[null,null,null,null,null,null,null,null,null,null,null,null,null,null,null,null,null,null,null,null,null,"HEROES DE LA DEMOCRACIA","08DES0013M MATUTINO","080029008S19",3,2,1,2,2,1,4,2,4,2,4,1,1,4,4,3]
[null,null,null,null,null,null,null,null,null,null,null,null,null,null,null,null,null,null,null,null,null,"HEROES DE LA DEMOCRACIA","08DES0013M MATUTINO","080029009S19",1,1,4,3,1,1,3,3,2,3,2,3,4,4,3,2]
[null,null,null,null,null,null,null,null,null,null,null,null,null,null,null,null,null,null,null,null,null,"HEROES DE LA DEMOCRACIA","08DES0013M MATUTINO","080029010S19",2,1,1,2,1,1,2,2,4,2,4,1,1,4,4,4]
[null,null,null,null,null,null,null,null,null,null,null,null,null,null,null,null,null,null,null,null,null,"HEROES DE LA DEMOCRACIA","08DES0013M MATUTINO","080029011S19",3,1,1,1,1,2,3,2,3,3,1,2,2,1,4,4]
[null,null,null,null,null,null,null,null,null,null,null,null,null,null,null,null,null,null,null,null,null,"HEROES DE LA DEMOCRACIA","08DES0013M MATUTINO","080029012S19",2,1,4,1,4,1,2,3,2,2,1,1,2,4,4,3]
[null,null,null,null,null,null,null,null,null,null,null,null,null,null,null,null,null,null,null,null,null,"HEROES DE LA DEMOCRACIA","08DES0013M MATUTINO","080029013S19",2,1,1,3,1,1,2,2,3,4,2,3,2,4,1,3]
[null,null,null,null,null,null,null,null,null,null,null,null,null,null,null,null,null,null,null,null,null,"HEROES DE LA DEMOCRACIA","08DES0013M MATUTINO","080029014S19",3,1,1,3,2,1,2,2,4,2,4,1,1,4,4,2]
[null,null,null,null,null,null,null,null,null,null,null,null,null,null,null,null,null,null,null,null,null,"HEROES DE LA DEMOCRACIA","08DES0013M MATUTINO","080029015S19",2,1,1,2,1,1,3,3,4,2,2,4,1,3,1,4]
[null,null,null,null,null,null,null,null,null,null,null,null,null,null,null,null,null,null,null,null,null,"HEROES DE LA DEMOCRACIA","08DES0013M MATUTINO","080029016S19",2,1,1,3,2,1,3,1,4,1,1,1,3,4,4,2]
[null,null,null,null,null,null,null,null,null,null,null,null,null,null,null,null,null,null,null,null,null,"HEROES DE LA DEMOCRACIA","08DES0013M MATUTINO","080029017S19",2,1,3,2,3,1,1,2,4,2,3,2,2,4,4,3]

{"sheet":"UD_EVALUACIÓN CRÍTICA","index":16,"n_rows":53,"n_cols":43,"rows_kept":53,"cut":false,"hidden":false,"merged":[]}
[]
[null,null,null,null,null,null,"LENGUAJE Y COMUNICACIÓN ",2,"A",1,"SECUNDARIA","LENGUAJE Y COMUNICACIÓN","SL2","SL2","Texto_P_1a4",2,"Evaluación crítica del texto","Elegir la norma que reglamente una situación conflictiva."]
[null,null,null,null,null,null,"LENGUAJE Y COMUNICACIÓN ",9,"D",4,"SECUNDARIA","LENGUAJE Y COMUNICACIÓN","SL9","SL9","Texto_P_6a9",9,"Evaluación crítica del texto","Identificar las circunstancias sociales de la época."]
[null,null,null,null,null,null,"LENGUAJE Y COMUNICACIÓN ",10,"A",1,"SECUNDARIA","LENGUAJE Y COMUNICACIÓN","SL10","SL10","Texto_P_10a13",10,"Evaluación crítica del texto","Valorar las estrategias discursivas utilizadas en el debate."]
[null,null,null,null,null,null,"LENGUAJE Y COMUNICACIÓN ",11,"B",2,"SECUNDARIA","LENGUAJE Y COMUNICACIÓN","SL11","SL11","Texto_P_10a13",11,"Evaluación crítica del texto","Evaluar las secuencias argumentativas de todo el debate."]
[null,null,null,null,null,null,"LENGUAJE Y COMUNICACIÓN ",13,"C",3,"SECUNDARIA","LENGUAJE Y COMUNICACIÓN","SL13","SL13","Texto_P_10a13",13,"Evaluación crítica del texto","Identificar opiniones y argumentos empleados por un participante en un debate."]
[null,null,null,null,null,null,"LENGUAJE Y COMUNICACIÓN ",32,"A",1,"SECUNDARIA","LENGUAJE Y COMUNICACIÓN","SL32","SL32","Texto_P_32a35",32,"Evaluación crítica del texto","Elegir la pregunta que permita reorientar la información de acuerdo con el propósito de la entrevista (cuando el entrevistado se desvíe del tema)."]
[null,null,null,null,null,null,"LENGUAJE Y COMUNICACIÓN ",36,"A",1,"SECUNDARIA","LENGUAJE Y COMUNICACIÓN","SL36","SL36","Texto_P_36a39",36,"Evaluación crítica del texto","Seleccionar de un listado de preguntas la pertinente a un propósito específico."]
[null,null,null,null,null,null,"LENGUAJE Y COMUNICACIÓN ",46,"B",2,"SECUNDARIA","LENGUAJE Y COMUNICACIÓN","SL46","SL46","Texto_P_44a47",46,"Evaluación crítica del texto","Identificar el argumento de mayor  peso que utiliza el autor  para apoyar su punto de vista."]
[null,null,null,null,null,null,"LENGUAJE Y COMUNICACIÓN ",50,"C",3,"SECUNDARIA","LENGUAJE Y COMUNICACIÓN","SL50","SL50","Texto_P_48a51",50,"Evaluación crítica del texto","Identificar los valores que representan dos mitos con el mismo tema."]
[]
[]
[]
[null,"nombre_ct","CCT_TURNO","Promedio de LYC_SEC_1_2","Promedio de LYC_SEC_1_9","Promedio de LYC_SEC_1_10","Promedio de LYC_SEC_1_111","Promedio de LYC_SEC_1_13","Promedio de LYC_SEC_1_32","Promedio de LYC_SEC_1_36","Promedio de LYC_SEC_1_46","Promedio de LYC_SEC_1_50",null,null,null,"nombre_ct","CCT_TURNO","nofolio","Suma de LYC_SEC_19_RESP_2","Suma de LYC_SEC_19_RESP_9","Suma de LYC_SEC_19_RESP_10","Suma de LYC_SEC_19_RESP_11","Suma de LYC_SEC_19_RESP_13","Suma de LYC_SEC_19_RESP_32","Suma de LYC_SEC_19_RESP_36","Suma de LYC_SEC_19_RESP_46","Suma de LYC_SEC_19_RESP_50",null,null,null,null,"REACTIVOS",1,2,3,4,"TOTAL","REACTIVOS","R1","R2","R3","R4","TOTAL"]
[null,"HEROES DE LA DEMOCRACIA","08DES0013M MATUTINO",0.5,0.59459459459459463,0.5,0.5,0.34210526315789475,0.55263157894736847,0.28947368421052633,0.24324324324324326,0.28947368421052633,null,null,null,"HEROES DE LA DEMOCRACIA","08DES0013M MATUTINO","080028978S19",3,3,2,1,4,3,2,2,3,null,null,null,null,"SL2",{"$f":"COUNTIF(S15:S28100,AG14)","v":19},{"$f":"COUNTIF(S15:S28100,AH14)","v":4},{"$f":"COUNTIF(S15:S28100,AI14)","v":12},{"$f":"COUNTIF(S15:S28100,AJ14)","v":3},{"$f":"SUM(AG15:AJ15)","v":38},"SL2",{"$f":"(AG15*100)/AK15","v":50},{"$f":"(AH15*100)/AK15","v":10.526315789473685},{"$f":"(AI15*100)/AK15","v":31.578947368421051},{"$f":"(AJ15*100)/AK15","v":7.8947368421052628},{"$f":"SUM(AM15:AP15)","v":100}]
[null,null,null,null,null,null,null,null,null,null,null,null,null,null,null,"HEROES DE LA DEMOCRACIA","08DES0013M MATUTINO","080028979S19",1,4,1,2,1,1,2,1,4,null,null,null,null,"SL9",{"$f":"COUNTIF(T15:T28101,AG14)","v":2},{"$f":"COUNTIF(T15:T28101,AH14)","v":6},{"$f":"COUNTIF(T15:T28101,AI14)","v":7},{"$f":"COUNTIF(T15:T28101,AJ14)","v":22},{"$f":"SUM(AG16:AJ16)","v":37},"SL9",{"$f":"(AG16*100)/AK16","v":5.4054054054054053},{"$f":"(AH16*100)/AK16","v":16.216216216216218},{"$f":"(AI16*100)/AK16","v":18.918918918918919},{"$f":"(AJ16*100)/AK16","v":59.45945945945946},{"$f":"SUM(AM16:AP16)","v":100}]
[null,null,null,null,null,null,null,null,null,null,null,null,null,null,null,"HEROES DE LA DEMOCRACIA","08DES0013M MATUTINO","080028980S19",1,4,1,2,3,2,3,4,3,null,null,null,null,"SL10",{"$f":"COUNTIF(U15:U28102,AG14)","v":19},{"$f":"COUNTIF(U15:U28102,AH14)","v":12},{"$f":"COUNTIF(U15:U28102,AI14)","v":1},{"$f":"COUNTIF(U15:U28102,AJ14)","v":6},38,"SL10",50,31.578947368421051,2.6315789473684212,15.789473684210526,100]
[null,null,null,null,null,null,null,null,null,null,null,null,null,null,null,"HEROES DE LA DEMOCRACIA","08DES0013M MATUTINO","080028981S19",3,2,1,3,3,1,1,3,1,null,null,null,null,"SL11",{"$f":"COUNTIF(V15:V28103,AG14)","v":12},{"$f":"COUNTIF(V15:V28103,AH14)","v":19},{"$f":"COUNTIF(V15:V28103,AI14)","v":5},{"$f":"COUNTIF(V15:V28103,AJ14)","v":2},38,"SL11",31.578947368421051,50,13.157894736842104,5.2631578947368425,100]
[null,null,null,null,null,null,null,null,null,null,null,null,null,null,null,"HEROES DE LA DEMOCRACIA","08DES0013M MATUTINO","080028982S19",1,4,2,1,1,1,1,1,1,null,null,null,null,"SL13",{"$f":"COUNTIF(W15:W28104,AG14)","v":15},{"$f":"COUNTIF(W15:W28104,AH14)","v":2},{"$f":"COUNTIF(W15:W28104,AI14)","v":13},{"$f":"COUNTIF(W15:W28104,AJ14)","v":8},38,"SL13",39.473684210526315,5.2631578947368425,34.210526315789473,21.05263157894737,100]
[null,null,null,null,null,null,null,null,null,null,null,null,null,null,null,"HEROES DE LA DEMOCRACIA","08DES0013M MATUTINO","080028983S19",2,3,2,2,3,1,1,4,3,null,null,null,null,"SL32",{"$f":"COUNTIF(X15:X28105,AG14)","v":21},{"$f":"COUNTIF(X15:X28105,AH14)","v":5},{"$f":"COUNTIF(X15:X28105,AI14)","v":8},{"$f":"COUNTIF(X15:X28105,AJ14)","v":4},38,"SL32",55.263157894736842,13.157894736842104,21.05263157894737,10.526315789473685,100]
[null,null,null,null,null,null,null,null,null,null,null,null,null,null,null,"HEROES DE LA DEMOCRACIA","08DES0013M MATUTINO","080028984S19",3,3,1,2,1,4,2,1,2,null,null,null,null,"SL36",{"$f":"COUNTIF(Y15:Y28106,AG14)","v":11},{"$f":"COUNTIF(Y15:Y28106,AH14)","v":10},{"$f":"COUNTIF(Y15:Y28106,AI14)","v":11},{"$f":"COUNTIF(Y15:Y28106,AJ14)","v":6},38,"SL36",28.94736842105263,26.315789473684209,28.94736842105263,15.789473684210526,99.999999999999986]
[null,null,null,null,null,null,null,null,null,null,null,null,null,null,null,"HEROES DE LA DEMOCRACIA","08DES0013M MATUTINO","080028985S19",2,3,2,2,3,3,2,2,3,null,null,null,null,"SL46",{"$f":"COUNTIF(Z15:Z28107,AG14)","v":13},{"$f":"COUNTIF(Z15:Z28107,AH14)","v":9},{"$f":"COUNTIF(Z15:Z28107,AI14)","v":9},{"$f":"COUNTIF(Z15:Z28107,AJ14)","v":6},37,"SL46",35.135135135135137,24.324324324324323,24.324324324324323,16.216216216216218,100]
[null,null,null,null,null,null,null,null,null,null,null,null,null,null,null,"HEROES DE LA DEMOCRACIA","08DES0013M MATUTINO","080028986S19",1,4,4,4,4,1,1,3,2,null,null,null,null,"SL50",{"$f":"COUNTIF(AA15:AA28108,AG14)","v":6},{"$f":"COUNTIF(AA15:AA28108,AH14)","v":12},{"$f":"COUNTIF(AA15:AA28108,AI14)","v":11},{"$f":"COUNTIF(AA15:AA28108,AJ14)","v":9},38,"SL50",15.789473684210526,31.578947368421051,28.94736842105263,23.684210526315791,100]
[null,null,null,null,null,null,null,null,null,null,null,null,null,null,null,"HEROES DE LA DEMOCRACIA","08DES0013M MATUTINO","080028987S19",1,4,2,1,1,1,2,4,1]
[null,null,null,null,null,null,null,null,null,null,null,null,null,null,null,"HEROES DE LA DEMOCRACIA","08DES0013M MATUTINO","080028988S19",3,4,4,4,2,1,1,1,1]
[null,null,null,null,null,null,null,null,null,null,null,null,null,null,null,"HEROES DE LA DEMOCRACIA","08DES0013M MATUTINO","080028989S19",4,4,2,2,1,1,3,1,4]
[null,null,null,null,null,null,null,null,null,null,null,null,null,null,null,"HEROES DE LA DEMOCRACIA","08DES0013M MATUTINO","080028990S19",1,4,2,1,1,1,4,1,3]
[null,null,null,null,null,null,null,null,null,null,null,null,null,null,null,"HEROES DE LA DEMOCRACIA","08DES0013M MATUTINO","080028991S19",3,4,1,1,3,1,1,1,2]
[null,null,null,null,null,null,null,null,null,null,null,null,null,null,null,"HEROES DE LA DEMOCRACIA","08DES0013M MATUTINO","080028992S19",1,4,2,3,4,2,3,3,1]
[null,null,null,null,null,null,null,null,null,null,null,null,null,null,null,"HEROES DE LA DEMOCRACIA","08DES0013M MATUTINO","080028993S19",1,1,1,2,3,4,4,2,3]
[null,null,null,null,null,null,null,null,null,null,null,null,null,null,null,"HEROES DE LA DEMOCRACIA","08DES0013M MATUTINO","080028995S19",1,4,1,2,3,2,2,2,4]
[null,null,null,null,null,null,null,null,null,null,null,null,null,null,null,"HEROES DE LA DEMOCRACIA","08DES0013M MATUTINO","080028996S19",1,8,4,2,3,1,3,2,4]
[null,null,null,null,null,null,null,null,null,null,null,null,null,null,null,"HEROES DE LA DEMOCRACIA","08DES0013M MATUTINO","080028997S19",1,4,2,1,3,4,2,3,4]
[null,null,null,null,null,null,null,null,null,null,null,null,null,null,null,"HEROES DE LA DEMOCRACIA","08DES0013M MATUTINO","080028998S19",4,2,1,2,4,4,2,3,3]
[null,null,null,null,null,null,null,null,null,null,null,null,null,null,null,"HEROES DE LA DEMOCRACIA","08DES0013M MATUTINO","080028999S19",4,4,1,2,4,3,3,2,2]
[null,null,null,null,null,null,null,null,null,null,null,null,null,null,null,"HEROES DE LA DEMOCRACIA","08DES0013M MATUTINO","080029000S19",3,1,1,3,3,1,3,3,2]
[null,null,null,null,null,null,null,null,null,null,null,null,null,null,null,"HEROES DE LA DEMOCRACIA","08DES0013M MATUTINO","080029001S19",8,8,8,8,8,8,8,8,8]
[null,null,null,null,null,null,null,null,null,null,null,null,null,null,null,"HEROES DE LA DEMOCRACIA","08DES0013M MATUTINO","080029002S19",3,2,4,2,1,3,3,2,3]
[null,null,null,null,null,null,null,null,null,null,null,null,null,null,null,"HEROES DE LA DEMOCRACIA","08DES0013M MATUTINO","080029003S19",2,3,2,2,3,3,2,2,2]
[null,null,null,null,null,null,null,null,null,null,null,null,null,null,null,"HEROES DE LA DEMOCRACIA","08DES0013M MATUTINO","080029004S19",1,4,1,2,1,1,3,1,2]
[null,null,null,null,null,null,null,null,null,null,null,null,null,null,null,"HEROES DE LA DEMOCRACIA","08DES0013M MATUTINO","080029005S19",3,4,1,3,3,2,1,2,4]
[null,null,null,null,null,null,null,null,null,null,null,null,null,null,null,"HEROES DE LA DEMOCRACIA","08DES0013M MATUTINO","080029006S19",1,4,2,1,1,3,4,3,2]
[null,null,null,null,null,null,null,null,null,null,null,null,null,null,null,"HEROES DE LA DEMOCRACIA","08DES0013M MATUTINO","080029007S19",3,4,1,2,1,1,1,4,4]
[null,null,null,null,null,null,null,null,null,null,null,null,null,null,null,"HEROES DE LA DEMOCRACIA","08DES0013M MATUTINO","080029008S19",3,2,1,1,1,1,1,4,2]
[null,null,null,null,null,null,null,null,null,null,null,null,null,null,null,"HEROES DE LA DEMOCRACIA","08DES0013M MATUTINO","080029009S19",3,2,3,2,4,3,3,3,3]
[null,null,null,null,null,null,null,null,null,null,null,null,null,null,null,"HEROES DE LA DEMOCRACIA","08DES0013M MATUTINO","080029010S19",1,4,1,2,3,1,1,1,3]
[null,null,null,null,null,null,null,null,null,null,null,null,null,null,null,"HEROES DE LA DEMOCRACIA","08DES0013M MATUTINO","080029011S19",2,4,2,1,4,1,2,4,2]
[null,null,null,null,null,null,null,null,null,null,null,null,null,null,null,"HEROES DE LA DEMOCRACIA","08DES0013M MATUTINO","080029012S19",1,2,1,2,1,1,3,1,4]
[null,null,null,null,null,null,null,null,null,null,null,null,null,null,null,"HEROES DE LA DEMOCRACIA","08DES0013M MATUTINO","080029013S19",3,4,4,3,1,1,4,1,4]
[null,null,null,null,null,null,null,null,null,null,null,null,null,null,null,"HEROES DE LA DEMOCRACIA","08DES0013M MATUTINO","080029014S19",1,4,1,2,2,1,4,3,1]
[null,null,null,null,null,null,null,null,null,null,null,null,null,null,null,"HEROES DE LA DEMOCRACIA","08DES0013M MATUTINO","080029015S19",1,3,1,1,1,2,4,1,2]
[null,null,null,null,null,null,null,null,null,null,null,null,null,null,null,"HEROES DE LA DEMOCRACIA","08DES0013M MATUTINO","080029016S19",1,3,1,1,1,3,3,8,2]
[null,null,null,null,null,null,null,null,null,null,null,null,null,null,null,"HEROES DE LA DEMOCRACIA","08DES0013M MATUTINO","080029017S19",1,4,4,1,4,1,1,1,3]

{"sheet":"UD_REFLEXIÓN SEMÁNTICA","index":17,"n_rows":53,"n_cols":35,"rows_kept":53,"cut":false,"hidden":false,"merged":[]}
[null,null,"Reflexión semántica y morfosintáctica"]
[null,null,null,null,null,null,null,null,null,12,"B",2,"SECUNDARIA","LENGUAJE Y COMUNICACIÓN","SL12","SL12","Texto_P_10a13",12,"Reflexión semántica y morfosintáctica","Seleccionar las conexiones lógicas que organizan un argumento."]
[null,null,null,null,null,null,null,null,null,31,"A",1,"SECUNDARIA","LENGUAJE Y COMUNICACIÓN","SL31","SL31","Texto_P_27a31",31,"Reflexión semántica y morfosintáctica","Elegir los signos de puntuación que reflejan estados de ánimo de los personajes."]
[null,null,null,null,null,null,null,null,null,40,"D",4,"SECUNDARIA","LENGUAJE Y COMUNICACIÓN","SL40","SL40","Texto_P_40a42",40,"Reflexión semántica y morfosintáctica","Identificar el lenguaje figurado en un poema vanguardista."]
[null,null,null,null,null,null,null,null,null,41,"C",3,"SECUNDARIA","LENGUAJE Y COMUNICACIÓN","SL41","SL41","Texto_P_40a42",41,"Reflexión semántica y morfosintáctica","Interpretar el lenguaje figurado en un poema vanguardista."]
[null,null,null,null,null,null,null,null,null,4,"C",3,"SECUNDARIA","LENGUAJE Y COMUNICACIÓN","SL4","SL4","Texto_P_1a4",4,"Reflexión semántica y morfosintáctica ","Identificar la estructura gramatical (verbal) usada para redactar una norma."]
[]
[]
[]
[]
[]
[]
[]
[null,"nombre_ct","CCT_TURNO","Promedio de LYC_SEC_1_4","Promedio de LYC_SEC_1_12","Promedio de LYC_SEC_1_311","Promedio de LYC_SEC_1_40","Promedio de LYC_SEC_1_41",null,null,null,"nombre_ct","CCT_TURNO","nofolio","Suma de LYC_SEC_19_RESP_4","Suma de LYC_SEC_19_RESP_12","Suma de LYC_SEC_19_RESP_31","Suma de LYC_SEC_19_RESP_40","Suma de LYC_SEC_19_RESP_41",null,null,null,null,"REACTIVOS",1,2,3,4,"TOTAL ","REACTIVOS","R1","R2","R3","R4","TOTAL"]
[null,"HEROES DE LA DEMOCRACIA","08DES0013M MATUTINO",0.5,0.47368421052631576,0.5,0.13157894736842105,0.26315789473684209,null,null,null,"HEROES DE LA DEMOCRACIA","08DES0013M MATUTINO","080028978S19",2,2,1,2,3,null,null,null,null,"SL4",{"$f":"COUNTIF(O15:O28100,Y14)","v":3},{"$f":"COUNTIF(O15:O28100,Z14)","v":11},{"$f":"COUNTIF(O15:O28100,AA14)","v":19},{"$f":"COUNTIF(O15:O28100,AB14)","v":5},{"$f":"SUM(Y15:AB15)","v":38},"SL4",{"$f":"(Y15*100)/AC15","v":7.8947368421052628},{"$f":"(Z15*100)/AC15","v":28.94736842105263},{"$f":"(AA15*100)/AC15","v":50},{"$f":"(AB15*100)/AC15","v":13.157894736842104},{"$f":"SUM(AE15:AH15)","v":100}]
[null,null,null,null,null,null,null,null,null,null,null,"HEROES DE LA DEMOCRACIA","08DES0013M MATUTINO","080028979S19",3,2,1,1,2,null,null,null,null,"SL12",{"$f":"COUNTIF(P15:P28101,Y14)","v":8},{"$f":"COUNTIF(P15:P28101,Z14)","v":18},{"$f":"COUNTIF(P15:P28101,AA14)","v":3},{"$f":"COUNTIF(P15:P28101,AB14)","v":9},{"$f":"SUM(Y16:AB16)","v":38},"SL12",{"$f":"(Y16*100)/AC16","v":21.05263157894737},{"$f":"(Z16*100)/AC16","v":47.368421052631582},{"$f":"(AA16*100)/AC16","v":7.8947368421052628},{"$f":"(AB16*100)/AC16","v":23.684210526315791},{"$f":"SUM(AE16:AH16)","v":100.00000000000001}]
[null,null,null,null,null,null,null,null,null,null,null,"HEROES DE LA DEMOCRACIA","08DES0013M MATUTINO","080028980S19",3,2,1,1,1,null,null,null,null,"SL31",{"$f":"COUNTIF(Q15:Q28102,Y14)","v":19},{"$f":"COUNTIF(Q15:Q28102,Z14)","v":4},{"$f":"COUNTIF(Q15:Q28102,AA14)","v":6},{"$f":"COUNTIF(Q15:Q28102,AB14)","v":9},38,"SL31",50,10.526315789473685,15.789473684210526,23.684210526315791,100]
[null,null,null,null,null,null,null,null,null,null,null,"HEROES DE LA DEMOCRACIA","08DES0013M MATUTINO","080028981S19",3,1,1,3,1,null,null,null,null,"SL40",{"$f":"COUNTIF(R15:R28103,Y14)","v":12},{"$f":"COUNTIF(R15:R28103,Z14)","v":11},{"$f":"COUNTIF(R15:R28103,AA14)","v":10},{"$f":"COUNTIF(R15:R28103,AB14)","v":5},38,"SL40",31.578947368421051,28.94736842105263,26.315789473684209,13.157894736842104,100]
[null,null,null,null,null,null,null,null,null,null,null,"HEROES DE LA DEMOCRACIA","08DES0013M MATUTINO","080028982S19",1,1,4,3,2,null,null,null,null,"SL41",{"$f":"COUNTIF(S15:S28104,Y14)","v":14},{"$f":"COUNTIF(S15:S28104,Z14)","v":12},{"$f":"COUNTIF(S15:S28104,AA14)","v":10},{"$f":"COUNTIF(S15:S28104,AB14)","v":2},38,"SL41",36.842105263157897,31.578947368421051,26.315789473684209,5.2631578947368425,100]
[null,null,null,null,null,null,null,null,null,null,null,"HEROES DE LA DEMOCRACIA","08DES0013M MATUTINO","080028983S19",3,4,4,3,1]
[null,null,null,null,null,null,null,null,null,null,null,"HEROES DE LA DEMOCRACIA","08DES0013M MATUTINO","080028984S19",4,4,4,1,2]
[null,null,null,null,null,null,null,null,null,null,null,"HEROES DE LA DEMOCRACIA","08DES0013M MATUTINO","080028985S19",1,4,3,1,4]
[null,null,null,null,null,null,null,null,null,null,null,"HEROES DE LA DEMOCRACIA","08DES0013M MATUTINO","080028986S19",3,1,3,3,2]
[null,null,null,null,null,null,null,null,null,null,null,"HEROES DE LA DEMOCRACIA","08DES0013M MATUTINO","080028987S19",2,2,4,2,3]
[null,null,null,null,null,null,null,null,null,null,null,"HEROES DE LA DEMOCRACIA","08DES0013M MATUTINO","080028988S19",3,2,2,2,2]
[null,null,null,null,null,null,null,null,null,null,null,"HEROES DE LA DEMOCRACIA","08DES0013M MATUTINO","080028989S19",3,4,3,1,1]
[null,null,null,null,null,null,null,null,null,null,null,"HEROES DE LA DEMOCRACIA","08DES0013M MATUTINO","080028990S19",4,2,1,1,1]
[null,null,null,null,null,null,null,null,null,null,null,"HEROES DE LA DEMOCRACIA","08DES0013M MATUTINO","080028991S19",3,1,1,1,1]
[null,null,null,null,null,null,null,null,null,null,null,"HEROES DE LA DEMOCRACIA","08DES0013M MATUTINO","080028992S19",3,4,3,4,1]
[null,null,null,null,null,null,null,null,null,null,null,"HEROES DE LA DEMOCRACIA","08DES0013M MATUTINO","080028993S19",2,4,3,4,3]
[null,null,null,null,null,null,null,null,null,null,null,"HEROES DE LA DEMOCRACIA","08DES0013M MATUTINO","080028995S19",2,1,1,2,1]
[null,null,null,null,null,null,null,null,null,null,null,"HEROES DE LA DEMOCRACIA","08DES0013M MATUTINO","080028996S19",4,1,2,2,1]
[null,null,null,null,null,null,null,null,null,null,null,"HEROES DE LA DEMOCRACIA","08DES0013M MATUTINO","080028997S19",3,2,1,1,1]
[null,null,null,null,null,null,null,null,null,null,null,"HEROES DE LA DEMOCRACIA","08DES0013M MATUTINO","080028998S19",2,1,4,3,1]
[null,null,null,null,null,null,null,null,null,null,null,"HEROES DE LA DEMOCRACIA","08DES0013M MATUTINO","080028999S19",2,2,1,4,2]
[null,null,null,null,null,null,null,null,null,null,null,"HEROES DE LA DEMOCRACIA","08DES0013M MATUTINO","080029000S19",3,2,1,3,1]
[null,null,null,null,null,null,null,null,null,null,null,"HEROES DE LA DEMOCRACIA","08DES0013M MATUTINO","080029001S19",8,8,8,8,8]
[null,null,null,null,null,null,null,null,null,null,null,"HEROES DE LA DEMOCRACIA","08DES0013M MATUTINO","080029002S19",4,3,1,2,4]
[null,null,null,null,null,null,null,null,null,null,null,"HEROES DE LA DEMOCRACIA","08DES0013M MATUTINO","080029003S19",2,2,1,2,2]
[null,null,null,null,null,null,null,null,null,null,null,"HEROES DE LA DEMOCRACIA","08DES0013M MATUTINO","080029004S19",3,2,1,1,3]
[null,null,null,null,null,null,null,null,null,null,null,"HEROES DE LA DEMOCRACIA","08DES0013M MATUTINO","080029005S19",3,2,1,1,2]
[null,null,null,null,null,null,null,null,null,null,null,"HEROES DE LA DEMOCRACIA","08DES0013M MATUTINO","080029006S19",2,2,2,2,3]
[null,null,null,null,null,null,null,null,null,null,null,"HEROES DE LA DEMOCRACIA","08DES0013M MATUTINO","080029007S19",4,4,1,4,3]
[null,null,null,null,null,null,null,null,null,null,null,"HEROES DE LA DEMOCRACIA","08DES0013M MATUTINO","080029008S19",2,3,1,1,2]
[null,null,null,null,null,null,null,null,null,null,null,"HEROES DE LA DEMOCRACIA","08DES0013M MATUTINO","080029009S19",3,1,2,3,2]
[null,null,null,null,null,null,null,null,null,null,null,"HEROES DE LA DEMOCRACIA","08DES0013M MATUTINO","080029010S19",3,2,4,3,1]
[null,null,null,null,null,null,null,null,null,null,null,"HEROES DE LA DEMOCRACIA","08DES0013M MATUTINO","080029011S19",3,2,4,3,3]
[null,null,null,null,null,null,null,null,null,null,null,"HEROES DE LA DEMOCRACIA","08DES0013M MATUTINO","080029012S19",2,3,1,2,3]
[null,null,null,null,null,null,null,null,null,null,null,"HEROES DE LA DEMOCRACIA","08DES0013M MATUTINO","080029013S19",3,2,3,2,3]
[null,null,null,null,null,null,null,null,null,null,null,"HEROES DE LA DEMOCRACIA","08DES0013M MATUTINO","080029014S19",3,2,4,4,3]
[null,null,null,null,null,null,null,null,null,null,null,"HEROES DE LA DEMOCRACIA","08DES0013M MATUTINO","080029015S19",1,4,4,3,1]
[null,null,null,null,null,null,null,null,null,null,null,"HEROES DE LA DEMOCRACIA","08DES0013M MATUTINO","080029016S19",2,2,1,2,2]
[null,null,null,null,null,null,null,null,null,null,null,"HEROES DE LA DEMOCRACIA","08DES0013M MATUTINO","080029017S19",3,4,1,1,2]

{"sheet":"UD_FIGURAS Y CUERPO","index":18,"n_rows":52,"n_cols":40,"rows_kept":52,"cut":false,"hidden":false,"merged":[]}
[]
[null,"Figuras y cuerpos"]
[null,null,null,null,null,1,"D",4,"SECUNDARIA","MATEMÁTICAS","SM1","SM1",null,1,"Figuras y Cuerpos","Identificar la figura geométrica que sirve como modelo para recubrir el plano.  "]
[null,null,null,null,null,3,"D",4,"SECUNDARIA","MATEMÁTICAS","SM3","SM3",null,3,"Figuras y Cuerpos","Resolver problemas empleando las propiedades de la mediatriz de un segmento y la bisectriz de un ángulo."]
[null,null,null,null,null,4,"A",1,"SECUNDARIA","MATEMÁTICAS","SM4","SM4",null,4,"Figuras y Cuerpos","Resolver problemas que involucren la semejanza de triángulos."]
[null,null,null,null,null,5,"B",2,"SECUNDARIA","MATEMÁTICAS","SM5","SM5",null,5,"Figuras y Cuerpos","Identificar las posibilidades de construcción (existencia y unicidad) de triángulos."]
[null,null,null,null,null,8,"A",1,"SECUNDARIA","MATEMÁTICAS","SM8","SM8",null,8,"Figuras y Cuerpos","Identificar las posibilidades de construcción (existencia y unicidad) de triángulos."]
[null,null,null,null,null,27,"C",3,"SECUNDARIA","MATEMÁTICAS","SM27","SM27",null,27,"Figuras y Cuerpos","Calcular la suma de los ángulos interiores de cualquier polígono. "]
[null,null,null,null,null,30,"B",2,"SECUNDARIA","MATEMÁTICAS","SM30","SM30",null,30,"Figuras y Cuerpos","Resolver problemas que impliquen el uso de relaciones de los ángulos que se forman entre dos rectas paralelas cortadas por una transversal."]
[null,null,null,null,null,31,"B",2,"SECUNDARIA","MATEMÁTICAS","SM31","SM31",null,31,"Figuras y Cuerpos","Identificar el desarrollo plano de conos y cilindros rectos."]
[null,null,null,null,null,32,"A",1,"SECUNDARIA","MATEMÁTICAS","SM32","SM32",null,32,"Figuras y Cuerpos","Identificar figuras simétricas respecto a un eje oblicuo."]
[]
[null,"nombre_ct","CCT_TURNO","Promedio de MAT_SEC_1_1","Promedio de MAT_SEC_1_3","Promedio de MAT_SEC_1_4","Promedio de MAT_SEC_1_5","Promedio de MAT_SEC_1_8","Promedio de MAT_SEC_1_27","Promedio de MAT_SEC_1_30","Promedio de MAT_SEC_1_311","Promedio de MAT_SEC_1_32",null,null,"nombre_ct","CCT_TURNO","nofolio","Suma de MAT_SEC_19_RESP_1","Suma de MAT_SEC_19_RESP_3","Suma de MAT_SEC_19_RESP_4","Suma de MAT_SEC_19_RESP_5","Suma de MAT_SEC_19_RESP_8","Suma de MAT_SEC_19_RESP_27","Suma de MAT_SEC_19_RESP_30","Suma de MAT_SEC_19_RESP_31","Suma de MAT_SEC_19_RESP_32",null,null,"REACTIVOS",1,2,3,4,"TOTAL","REACTIVOS","R1","R2","R3","R4","TOTAL"]
[null,"HEROES DE LA DEMOCRACIA","08DES0013M MATUTINO",5.5555555555555552E-2,0.30555555555555558,0.41666666666666669,0.44444444444444442,0.3888888888888889,0.27777777777777779,0.3611111111111111,0.3888888888888889,0.47222222222222221,null,null,"HEROES DE LA DEMOCRACIA","08DES0013M MATUTINO","080028978S19",2,4,2,1,2,4,2,2,1,null,null,"SM1",{"$f":"COUNTIF(R14:R28101,AD13)","v":2},{"$f":"COUNTIF(R14:R28101,AE13)","v":28},{"$f":"COUNTIF(R14:R28101,AF13)","v":4},{"$f":"COUNTIF(R14:R28101,AG13)","v":2},{"$f":"SUM(AD14:AG14)","v":36},"SM1",{"$f":"(AD14*100)/AH14","v":5.5555555555555554},{"$f":"(AE14*100)/AH14","v":77.777777777777771},{"$f":"(AF14*100)/AH14","v":11.111111111111111},{"$f":"(AG14*100)/AH14","v":5.5555555555555554},{"$f":"SUM(AJ14:AM14)","v":100}]
[null,null,null,null,null,null,null,null,null,null,null,null,null,null,"HEROES DE LA DEMOCRACIA","08DES0013M MATUTINO","080028979S19",2,2,1,2,1,2,3,2,1,null,null,"SM3",{"$f":"COUNTIF(S14:S28102,AD13)","v":7},{"$f":"COUNTIF(S14:S28102,AE13)","v":8},{"$f":"COUNTIF(S14:S28102,AF13)","v":10},{"$f":"COUNTIF(S14:S28102,AG13)","v":11},{"$f":"SUM(AD15:AG15)","v":36},"SM3",{"$f":"(AD15*100)/AH15","v":19.444444444444443},{"$f":"(AE15*100)/AH15","v":22.222222222222221},{"$f":"(AF15*100)/AH15","v":27.777777777777779},{"$f":"(AG15*100)/AH15","v":30.555555555555557},{"$f":"SUM(AJ15:AM15)","v":100}]
[null,null,null,null,null,null,null,null,null,null,null,null,null,null,"HEROES DE LA DEMOCRACIA","08DES0013M MATUTINO","080028980S19",2,3,4,2,2,3,2,2,1,null,null,"SM4",{"$f":"COUNTIF(T14:T28103,AD13)","v":15},{"$f":"COUNTIF(T14:T28103,AE13)","v":8},{"$f":"COUNTIF(T14:T28103,AF13)","v":6},{"$f":"COUNTIF(T14:T28103,AG13)","v":7},36,"SM4",41.666666666666664,22.222222222222221,16.666666666666668,19.444444444444443,100]
[null,null,null,null,null,null,null,null,null,null,null,null,null,null,"HEROES DE LA DEMOCRACIA","08DES0013M MATUTINO","080028981S19",3,1,2,4,4,2,3,1,4,null,null,"SM5",{"$f":"COUNTIF(U14:U28104,AD13)","v":13},{"$f":"COUNTIF(U14:U28104,AE13)","v":16},{"$f":"COUNTIF(U14:U28104,AF13)","v":2},{"$f":"COUNTIF(U14:U28104,AG13)","v":5},36,"SM5",36.111111111111114,44.444444444444443,5.5555555555555554,13.888888888888889,100]
[null,null,null,null,null,null,null,null,null,null,null,null,null,null,"HEROES DE LA DEMOCRACIA","08DES0013M MATUTINO","080028982S19",3,2,3,4,1,1,2,1,4,null,null,"SM8",{"$f":"COUNTIF(V14:V28105,AD13)","v":14},{"$f":"COUNTIF(V14:V28105,AE13)","v":10},{"$f":"COUNTIF(V14:V28105,AF13)","v":6},{"$f":"COUNTIF(V14:V28105,AG13)","v":6},36,"SM8",38.888888888888886,27.777777777777779,16.666666666666668,16.666666666666668,100]
[null,null,null,null,null,null,null,null,null,null,null,null,null,null,"HEROES DE LA DEMOCRACIA","08DES0013M MATUTINO","080028983S19",2,3,1,1,4,3,1,4,3,null,null,"SM27",{"$f":"COUNTIF(W14:W28106,AD13)","v":6},{"$f":"COUNTIF(W14:W28106,AE13)","v":11},{"$f":"COUNTIF(W14:W28106,AF13)","v":10},{"$f":"COUNTIF(W14:W28106,AG13)","v":9},36,"SM27",16.666666666666668,30.555555555555557,27.777777777777779,25,100]
[null,null,null,null,null,null,null,null,null,null,null,null,null,null,"HEROES DE LA DEMOCRACIA","08DES0013M MATUTINO","080028984S19",3,1,2,2,1,3,2,2,4,null,null,"SM30",{"$f":"COUNTIF(X14:X28107,AD13)","v":13},{"$f":"COUNTIF(X14:X28107,AE13)","v":13},{"$f":"COUNTIF(X14:X28107,AF13)","v":8},{"$f":"COUNTIF(X14:X28107,AG13)","v":2},36,"SM30",36.111111111111114,36.111111111111114,22.222222222222221,5.5555555555555554,100.00000000000001]
[null,null,null,null,null,null,null,null,null,null,null,null,null,null,"HEROES DE LA DEMOCRACIA","08DES0013M MATUTINO","080028985S19",4,1,2,3,3,4,1,2,3,null,null,"SM31",{"$f":"COUNTIF(Y14:Y28108,AD13)","v":18},{"$f":"COUNTIF(Y14:Y28108,AE13)","v":14},{"$f":"COUNTIF(Y14:Y28108,AF13)","v":2},{"$f":"COUNTIF(Y14:Y28108,AG13)","v":2},36,"SM31",50,38.888888888888886,5.5555555555555554,5.5555555555555554,100]
[null,null,null,null,null,null,null,null,null,null,null,null,null,null,"HEROES DE LA DEMOCRACIA","08DES0013M MATUTINO","080028986S19",2,3,4,2,2,2,1,1,2,null,null,"SM32",{"$f":"COUNTIF(Z14:Z28109,AD13)","v":17},{"$f":"COUNTIF(Z14:Z28109,AE13)","v":7},{"$f":"COUNTIF(Z14:Z28109,AF13)","v":8},{"$f":"COUNTIF(Z14:Z28109,AG13)","v":4},36,"SM32",47.222222222222221,19.444444444444443,22.222222222222221,11.111111111111111,100]
[null,null,null,null,null,null,null,null,null,null,null,null,null,null,"HEROES DE LA DEMOCRACIA","08DES0013M MATUTINO","080028987S19",8,8,8,8,8,8,8,8,8]
[null,null,null,null,null,null,null,null,null,null,null,null,null,null,"HEROES DE LA DEMOCRACIA","08DES0013M MATUTINO","080028988S19",1,3,3,1,2,4,1,2,3]
[null,null,null,null,null,null,null,null,null,null,null,null,null,null,"HEROES DE LA DEMOCRACIA","08DES0013M MATUTINO","080028989S19",2,4,1,3,4,3,4,4,2]
[null,null,null,null,null,null,null,null,null,null,null,null,null,null,"HEROES DE LA DEMOCRACIA","08DES0013M MATUTINO","080028990S19",2,2,4,2,1,2,1,1,1]
[null,null,null,null,null,null,null,null,null,null,null,null,null,null,"HEROES DE LA DEMOCRACIA","08DES0013M MATUTINO","080028991S19",2,4,3,2,1,3,2,2,1]
[null,null,null,null,null,null,null,null,null,null,null,null,null,null,"HEROES DE LA DEMOCRACIA","08DES0013M MATUTINO","080028992S19",2,4,4,4,2,1,1,1,2]
[null,null,null,null,null,null,null,null,null,null,null,null,null,null,"HEROES DE LA DEMOCRACIA","08DES0013M MATUTINO","080028993S19",4,3,2,2,1,4,2,1,1]
[null,null,null,null,null,null,null,null,null,null,null,null,null,null,"HEROES DE LA DEMOCRACIA","08DES0013M MATUTINO","080028995S19",2,2,2,2,2,3,2,1,1]
[null,null,null,null,null,null,null,null,null,null,null,null,null,null,"HEROES DE LA DEMOCRACIA","08DES0013M MATUTINO","080028996S19",2,1,4,1,1,2,3,1,1]
[null,null,null,null,null,null,null,null,null,null,null,null,null,null,"HEROES DE LA DEMOCRACIA","08DES0013M MATUTINO","080028997S19",2,2,2,2,4,2,1,1,1]
[null,null,null,null,null,null,null,null,null,null,null,null,null,null,"HEROES DE LA DEMOCRACIA","08DES0013M MATUTINO","080028998S19",1,3,4,2,1,3,3,3,3]
[null,null,null,null,null,null,null,null,null,null,null,null,null,null,"HEROES DE LA DEMOCRACIA","08DES0013M MATUTINO","080028999S19",2,2,1,1,1,4,2,2,1]
[null,null,null,null,null,null,null,null,null,null,null,null,null,null,"HEROES DE LA DEMOCRACIA","08DES0013M MATUTINO","080029000S19",3,3,3,1,4,1,1,2,1]
[null,null,null,null,null,null,null,null,null,null,null,null,null,null,"HEROES DE LA DEMOCRACIA","08DES0013M MATUTINO","080029001S19",2,4,1,2,2,2,1,1,3]
[null,null,null,null,null,null,null,null,null,null,null,null,null,null,"HEROES DE LA DEMOCRACIA","08DES0013M MATUTINO","080029002S19",2,1,4,2,2,4,2,1,2]
[null,null,null,null,null,null,null,null,null,null,null,null,null,null,"HEROES DE LA DEMOCRACIA","08DES0013M MATUTINO","080029003S19",2,3,1,2,3,3,2,1,2]
[null,null,null,null,null,null,null,null,null,null,null,null,null,null,"HEROES DE LA DEMOCRACIA","08DES0013M MATUTINO","080029004S19",2,4,1,2,2,2,2,2,1]
[null,null,null,null,null,null,null,null,null,null,null,null,null,null,"HEROES DE LA DEMOCRACIA","08DES0013M MATUTINO","080029005S19",2,3,1,1,1,4,3,2,1]
[null,null,null,null,null,null,null,null,null,null,null,null,null,null,"HEROES DE LA DEMOCRACIA","08DES0013M MATUTINO","080029006S19",2,3,1,4,3,1,2,1,3]
[null,null,null,null,null,null,null,null,null,null,null,null,null,null,"HEROES DE LA DEMOCRACIA","08DES0013M MATUTINO","080029007S19",2,2,2,4,2,2,2,3,4]
[null,null,null,null,null,null,null,null,null,null,null,null,null,null,"HEROES DE LA DEMOCRACIA","08DES0013M MATUTINO","080029008S19",2,4,1,1,3,4,3,1,1]
[null,null,null,null,null,null,null,null,null,null,null,null,null,null,"HEROES DE LA DEMOCRACIA","08DES0013M MATUTINO","080029009S19",2,4,1,1,3,2,1,1,1]
[null,null,null,null,null,null,null,null,null,null,null,null,null,null,"HEROES DE LA DEMOCRACIA","08DES0013M MATUTINO","080029010S19",8,8,8,8,8,8,8,8,8]
[null,null,null,null,null,null,null,null,null,null,null,null,null,null,"HEROES DE LA DEMOCRACIA","08DES0013M MATUTINO","080029011S19",2,4,1,2,1,4,1,1,1]
[null,null,null,null,null,null,null,null,null,null,null,null,null,null,"HEROES DE LA DEMOCRACIA","08DES0013M MATUTINO","080029012S19",2,4,1,1,1,3,1,2,2]
[null,null,null,null,null,null,null,null,null,null,null,null,null,null,"HEROES DE LA DEMOCRACIA","08DES0013M MATUTINO","080029013S19",8,8,8,8,8,8,8,8,8]
[null,null,null,null,null,null,null,null,null,null,null,null,null,null,"HEROES DE LA DEMOCRACIA","08DES0013M MATUTINO","080029014S19",2,4,1,1,1,3,1,2,3]
[null,null,null,null,null,null,null,null,null,null,null,null,null,null,"HEROES DE LA DEMOCRACIA","08DES0013M MATUTINO","080029015S19",2,1,3,1,3,1,4,2,1]
[null,null,null,null,null,null,null,null,null,null,null,null,null,null,"HEROES DE LA DEMOCRACIA","08DES0013M MATUTINO","080029016S19",2,2,3,1,1,2,3,1,2]
[null,null,null,null,null,null,null,null,null,null,null,null,null,null,"HEROES DE LA DEMOCRACIA","08DES0013M MATUTINO","080029017S19",2,1,1,2,4,1,3,1,3]

{"sheet":"UD_MEDIDA","index":19,"n_rows":52,"n_cols":31,"rows_kept":52,"cut":false,"hidden":false,"merged":[]}
[]
[null,"Medida"]
[null,null,null,null,null,null,"MATEMÁTICAS",2,"B",2,"SECUNDARIA","MATEMÁTICAS","SM2","SM2",null,2,"Medida","Resolver problemas que impliquen calcular el perímetro o área del círculo o alguno de sus elementos (radio o diámetro.)"]
[null,null,null,null,null,null,"MATEMÁTICAS",7,"B",2,"SECUNDARIA","MATEMÁTICAS","SM7","SM7",null,7,"Medida","Identificar las secciones que se obtienen al cortar un cilindro o un cono recto con un plano."]
[null,null,null,null,null,null,"MATEMÁTICAS",14,"A",1,"SECUNDARIA","MATEMÁTICAS","SM14","SM14",null,14,"Medida","Identificar la cantidad de aumento o disminución de volumen al cambiar alguna de las dimensiones de los cuerpos geométricos"]
[null,null,null,null,null,null,"MATEMÁTICAS",29,"A",1,"SECUNDARIA","MATEMÁTICAS","SM29","SM29",null,29,"Medida"," Explicitación y uso del Teorema de Pitágoras."]
[]
[]
[]
[]
[]
[]
[null,null,"nombre_ct","CCT_TURNO","Promedio de MAT_SEC_1_2","Promedio de MAT_SEC_1_7","Promedio de MAT_SEC_1_14","Promedio de MAT_SEC_1_29",null,null,"nombre_ct","CCT_TURNO","nofolio","Suma de MAT_SEC_19_RESP_2","Suma de MAT_SEC_19_RESP_7","Suma de MAT_SEC_19_RESP_14","Suma de MAT_SEC_19_RESP_29",null,null,"REACTIVOS",1,2,3,4,"TOTAL","REACTIVOS","R1","R2","R3","R4","TOTAL"]
[null,null,"HEROES DE LA DEMOCRACIA","08DES0013M MATUTINO",0.1111111111111111,0.5714285714285714,0.77142857142857146,0.41666666666666669,null,null,"HEROES DE LA DEMOCRACIA","08DES0013M MATUTINO","080028978S19",4,4,1,4,null,null,"SM2",{"$f":"COUNTIF(N14:N28101,U13)","v":3},{"$f":"COUNTIF(N14:N28101,V13)","v":4},{"$f":"COUNTIF(N14:N28101,W13)","v":12},{"$f":"COUNTIF(N14:N28101,X13)","v":17},{"$f":"SUM(U14:X14)","v":36},"SM2",{"$f":"(U14*100)/Y14","v":8.3333333333333339},{"$f":"(V14*100)/Y14","v":11.111111111111111},{"$f":"(W14*100)/Y14","v":33.333333333333336},{"$f":"(X14*100)/Y14","v":47.222222222222221},{"$f":"SUM(AA14:AD14)","v":100}]
[null,null,null,null,null,null,null,null,null,null,"HEROES DE LA DEMOCRACIA","08DES0013M MATUTINO","080028979S19",3,2,1,3,null,null,"SM7",{"$f":"COUNTIF(O14:O28102,U13)","v":5},{"$f":"COUNTIF(O14:O28102,V13)","v":20},{"$f":"COUNTIF(O14:O28102,W13)","v":7},{"$f":"COUNTIF(O14:O28102,X13)","v":3},{"$f":"SUM(U15:X15)","v":35},"SM7",{"$f":"(U15*100)/Y15","v":14.285714285714286},{"$f":"(V15*100)/Y15","v":57.142857142857146},{"$f":"(W15*100)/Y15","v":20},{"$f":"(X15*100)/Y15","v":8.5714285714285712},{"$f":"SUM(AA15:AD15)","v":100}]
[null,null,null,null,null,null,null,null,null,null,"HEROES DE LA DEMOCRACIA","08DES0013M MATUTINO","080028980S19",3,2,1,4,null,null,"SM14",{"$f":"COUNTIF(P14:P28103,U13)","v":27},{"$f":"COUNTIF(P14:P28103,V13)","v":2},{"$f":"COUNTIF(P14:P28103,W13)","v":4},{"$f":"COUNTIF(P14:P28103,X13)","v":2},35,"SM14",77.142857142857139,5.7142857142857144,11.428571428571429,5.7142857142857144,99.999999999999986]
[null,null,null,null,null,null,null,null,null,null,"HEROES DE LA DEMOCRACIA","08DES0013M MATUTINO","080028981S19",4,2,4,4,null,null,"SM29",{"$f":"COUNTIF(Q14:Q28104,U13)","v":15},{"$f":"COUNTIF(Q14:Q28104,V13)","v":5},{"$f":"COUNTIF(Q14:Q28104,W13)","v":11},{"$f":"COUNTIF(Q14:Q28104,X13)","v":5},36,"SM29",41.666666666666664,13.888888888888889,30.555555555555557,13.888888888888889,100]
[null,null,null,null,null,null,null,null,null,null,"HEROES DE LA DEMOCRACIA","08DES0013M MATUTINO","080028982S19",1,1,1,3]
[null,null,null,null,null,null,null,null,null,null,"HEROES DE LA DEMOCRACIA","08DES0013M MATUTINO","080028983S19",4,2,1,3]
[null,null,null,null,null,null,null,null,null,null,"HEROES DE LA DEMOCRACIA","08DES0013M MATUTINO","080028984S19",3,2,3,1]
[null,null,null,null,null,null,null,null,null,null,"HEROES DE LA DEMOCRACIA","08DES0013M MATUTINO","080028985S19",2,4,3,3]
[null,null,null,null,null,null,null,null,null,null,"HEROES DE LA DEMOCRACIA","08DES0013M MATUTINO","080028986S19",3,3,1,1]
[null,null,null,null,null,null,null,null,null,null,"HEROES DE LA DEMOCRACIA","08DES0013M MATUTINO","080028987S19",8,8,8,8]
[null,null,null,null,null,null,null,null,null,null,"HEROES DE LA DEMOCRACIA","08DES0013M MATUTINO","080028988S19",2,2,3,1]
[null,null,null,null,null,null,null,null,null,null,"HEROES DE LA DEMOCRACIA","08DES0013M MATUTINO","080028989S19",1,1,4,4]
[null,null,null,null,null,null,null,null,null,null,"HEROES DE LA DEMOCRACIA","08DES0013M MATUTINO","080028990S19",4,3,1,3]
[null,null,null,null,null,null,null,null,null,null,"HEROES DE LA DEMOCRACIA","08DES0013M MATUTINO","080028991S19",3,2,1,1]
[null,null,null,null,null,null,null,null,null,null,"HEROES DE LA DEMOCRACIA","08DES0013M MATUTINO","080028992S19",4,1,8,3]
[null,null,null,null,null,null,null,null,null,null,"HEROES DE LA DEMOCRACIA","08DES0013M MATUTINO","080028993S19",4,4,1,1]
[null,null,null,null,null,null,null,null,null,null,"HEROES DE LA DEMOCRACIA","08DES0013M MATUTINO","080028995S19",3,2,1,1]
[null,null,null,null,null,null,null,null,null,null,"HEROES DE LA DEMOCRACIA","08DES0013M MATUTINO","080028996S19",3,1,1,3]
[null,null,null,null,null,null,null,null,null,null,"HEROES DE LA DEMOCRACIA","08DES0013M MATUTINO","080028997S19",4,2,1,3]
[null,null,null,null,null,null,null,null,null,null,"HEROES DE LA DEMOCRACIA","08DES0013M MATUTINO","080028998S19",2,2,1,2]
[null,null,null,null,null,null,null,null,null,null,"HEROES DE LA DEMOCRACIA","08DES0013M MATUTINO","080028999S19",1,3,1,1]
[null,null,null,null,null,null,null,null,null,null,"HEROES DE LA DEMOCRACIA","08DES0013M MATUTINO","080029000S19",4,3,1,1]
[null,null,null,null,null,null,null,null,null,null,"HEROES DE LA DEMOCRACIA","08DES0013M MATUTINO","080029001S19",4,2,1,1]
[null,null,null,null,null,null,null,null,null,null,"HEROES DE LA DEMOCRACIA","08DES0013M MATUTINO","080029002S19",2,3,1,4]
[null,null,null,null,null,null,null,null,null,null,"HEROES DE LA DEMOCRACIA","08DES0013M MATUTINO","080029003S19",3,3,3,2]
[null,null,null,null,null,null,null,null,null,null,"HEROES DE LA DEMOCRACIA","08DES0013M MATUTINO","080029004S19",3,8,1,1]
[null,null,null,null,null,null,null,null,null,null,"HEROES DE LA DEMOCRACIA","08DES0013M MATUTINO","080029005S19",4,1,1,1]
[null,null,null,null,null,null,null,null,null,null,"HEROES DE LA DEMOCRACIA","08DES0013M MATUTINO","080029006S19",3,3,2,1]
[null,null,null,null,null,null,null,null,null,null,"HEROES DE LA DEMOCRACIA","08DES0013M MATUTINO","080029007S19",3,2,1,1]
[null,null,null,null,null,null,null,null,null,null,"HEROES DE LA DEMOCRACIA","08DES0013M MATUTINO","080029008S19",4,2,1,2]
[null,null,null,null,null,null,null,null,null,null,"HEROES DE LA DEMOCRACIA","08DES0013M MATUTINO","080029009S19",4,2,1,3]
[null,null,null,null,null,null,null,null,null,null,"HEROES DE LA DEMOCRACIA","08DES0013M MATUTINO","080029010S19",8,8,8,8]
[null,null,null,null,null,null,null,null,null,null,"HEROES DE LA DEMOCRACIA","08DES0013M MATUTINO","080029011S19",4,2,1,3]
[null,null,null,null,null,null,null,null,null,null,"HEROES DE LA DEMOCRACIA","08DES0013M MATUTINO","080029012S19",4,2,1,2]
[null,null,null,null,null,null,null,null,null,null,"HEROES DE LA DEMOCRACIA","08DES0013M MATUTINO","080029013S19",8,8,8,8]
[null,null,null,null,null,null,null,null,null,null,"HEROES DE LA DEMOCRACIA","08DES0013M MATUTINO","080029014S19",4,2,1,2]
[null,null,null,null,null,null,null,null,null,null,"HEROES DE LA DEMOCRACIA","08DES0013M MATUTINO","080029015S19",3,2,1,3]
[null,null,null,null,null,null,null,null,null,null,"HEROES DE LA DEMOCRACIA","08DES0013M MATUTINO","080029016S19",4,2,1,1]
[null,null,null,null,null,null,null,null,null,null,"HEROES DE LA DEMOCRACIA","08DES0013M MATUTINO","080029017S19",4,2,2,1]

{"sheet":"UD_PROBABILIDAD","index":20,"n_rows":55,"n_cols":27,"rows_kept":55,"cut":false,"hidden":false,"merged":[]}
[]
[null,"Probabilidad"]
[null,null,null,null,null,null,"MATEMÁTICAS",9,"C",3,"SECUNDARIA","MATEMÁTICAS","SM9","SM9",null,9,"Nociones de probabilidad","Calcular la probabilidad teórica de un evento simple."]
[null,null,null,null,null,null,"MATEMÁTICAS",11,"D",4,"SECUNDARIA","MATEMÁTICAS","SM11","SM11",null,11,"Nociones de probabilidad","Resolver problemas de conteo."]
[]
[]
[]
[]
[]
[]
[]
[]
[]
[]
[]
[null,"nombre_ct","CCT_TURNO","Promedio de MAT_SEC_1_9","Promedio de MAT_SEC_1_111",null,null,null,"nombre_ct","CCT_TURNO","nofolio","Suma de MAT_SEC_19_RESP_9","Suma de MAT_SEC_19_RESP_11",null,null,"REACTIVOS",1,2,3,4,"TOTAL","REACTIVOS","R1","R2","R3","R4","TOTAL"]
[null,"HEROES DE LA DEMOCRACIA","08DES0013M MATUTINO",0.16666666666666666,0.25,null,null,null,"HEROES DE LA DEMOCRACIA","08DES0013M MATUTINO","080028978S19",3,1,null,null,"SM9",{"$f":"COUNTIF(L17:L28101,Q16)","v":15},{"$f":"COUNTIF(L17:L28101,R16)","v":13},{"$f":"COUNTIF(L17:L28101,S16)","v":6},{"$f":"COUNTIF(L17:L28101,T16)","v":2},{"$f":"SUM(Q17:T17)","v":36},"SM9",{"$f":"(Q17*100)/U17","v":41.666666666666664},{"$f":"(R17*100)/U17","v":36.111111111111114},{"$f":"(S17*100)/U17","v":16.666666666666668},{"$f":"(T17*100)/U17","v":5.5555555555555554},{"$f":"SUM(W17:Z17)","v":100}]
[null,null,null,null,null,null,null,null,"HEROES DE LA DEMOCRACIA","08DES0013M MATUTINO","080028979S19",1,1,null,null,"SM11",{"$f":"COUNTIF(M17:M28102,Q16)","v":13},{"$f":"COUNTIF(M17:M28102,R16)","v":2},{"$f":"COUNTIF(M17:M28102,S16)","v":12},{"$f":"COUNTIF(M17:M28102,T16)","v":9},{"$f":"SUM(Q18:T18)","v":36},"SM11",{"$f":"(Q18*100)/U18","v":36.111111111111114},{"$f":"(R18*100)/U18","v":5.5555555555555554},{"$f":"(S18*100)/U18","v":33.333333333333336},{"$f":"(T18*100)/U18","v":25},{"$f":"SUM(W18:Z18)","v":100}]
[null,null,null,null,null,null,null,null,"HEROES DE LA DEMOCRACIA","08DES0013M MATUTINO","080028980S19",1,4]
[null,null,null,null,null,null,null,null,"HEROES DE LA DEMOCRACIA","08DES0013M MATUTINO","080028981S19",1,1]
[null,null,null,null,null,null,null,null,"HEROES DE LA DEMOCRACIA","08DES0013M MATUTINO","080028982S19",2,3]
[null,null,null,null,null,null,null,null,"HEROES DE LA DEMOCRACIA","08DES0013M MATUTINO","080028983S19",1,3]
[null,null,null,null,null,null,null,null,"HEROES DE LA DEMOCRACIA","08DES0013M MATUTINO","080028984S19",1,4]
[null,null,null,null,null,null,null,null,"HEROES DE LA DEMOCRACIA","08DES0013M MATUTINO","080028985S19",4,3]
[null,null,null,null,null,null,null,null,"HEROES DE LA DEMOCRACIA","08DES0013M MATUTINO","080028986S19",1,3]
[null,null,null,null,null,null,null,null,"HEROES DE LA DEMOCRACIA","08DES0013M MATUTINO","080028987S19",8,8]
[null,null,null,null,null,null,null,null,"HEROES DE LA DEMOCRACIA","08DES0013M MATUTINO","080028988S19",3,2]
[null,null,null,null,null,null,null,null,"HEROES DE LA DEMOCRACIA","08DES0013M MATUTINO","080028989S19",1,1]
[null,null,null,null,null,null,null,null,"HEROES DE LA DEMOCRACIA","08DES0013M MATUTINO","080028990S19",1,1]
[null,null,null,null,null,null,null,null,"HEROES DE LA DEMOCRACIA","08DES0013M MATUTINO","080028991S19",2,4]
[null,null,null,null,null,null,null,null,"HEROES DE LA DEMOCRACIA","08DES0013M MATUTINO","080028992S19",2,1]
[null,null,null,null,null,null,null,null,"HEROES DE LA DEMOCRACIA","08DES0013M MATUTINO","080028993S19",2,1]
[null,null,null,null,null,null,null,null,"HEROES DE LA DEMOCRACIA","08DES0013M MATUTINO","080028995S19",1,3]
[null,null,null,null,null,null,null,null,"HEROES DE LA DEMOCRACIA","08DES0013M MATUTINO","080028996S19",4,1]
[null,null,null,null,null,null,null,null,"HEROES DE LA DEMOCRACIA","08DES0013M MATUTINO","080028997S19",2,3]
[null,null,null,null,null,null,null,null,"HEROES DE LA DEMOCRACIA","08DES0013M MATUTINO","080028998S19",2,4]
[null,null,null,null,null,null,null,null,"HEROES DE LA DEMOCRACIA","08DES0013M MATUTINO","080028999S19",2,3]
[null,null,null,null,null,null,null,null,"HEROES DE LA DEMOCRACIA","08DES0013M MATUTINO","080029000S19",2,3]
[null,null,null,null,null,null,null,null,"HEROES DE LA DEMOCRACIA","08DES0013M MATUTINO","080029001S19",2,4]
[null,null,null,null,null,null,null,null,"HEROES DE LA DEMOCRACIA","08DES0013M MATUTINO","080029002S19",3,2]
[null,null,null,null,null,null,null,null,"HEROES DE LA DEMOCRACIA","08DES0013M MATUTINO","080029003S19",3,3]
[null,null,null,null,null,null,null,null,"HEROES DE LA DEMOCRACIA","08DES0013M MATUTINO","080029004S19",1,1]
[null,null,null,null,null,null,null,null,"HEROES DE LA DEMOCRACIA","08DES0013M MATUTINO","080029005S19",1,3]
[null,null,null,null,null,null,null,null,"HEROES DE LA DEMOCRACIA","08DES0013M MATUTINO","080029006S19",2,4]
[null,null,null,null,null,null,null,null,"HEROES DE LA DEMOCRACIA","08DES0013M MATUTINO","080029007S19",1,4]
[null,null,null,null,null,null,null,null,"HEROES DE LA DEMOCRACIA","08DES0013M MATUTINO","080029008S19",3,4]
[null,null,null,null,null,null,null,null,"HEROES DE LA DEMOCRACIA","08DES0013M MATUTINO","080029009S19",2,1]
[null,null,null,null,null,null,null,null,"HEROES DE LA DEMOCRACIA","08DES0013M MATUTINO","080029010S19",8,8]
[null,null,null,null,null,null,null,null,"HEROES DE LA DEMOCRACIA","08DES0013M MATUTINO","080029011S19",1,4]
[null,null,null,null,null,null,null,null,"HEROES DE LA DEMOCRACIA","08DES0013M MATUTINO","080029012S19",2,1]
[null,null,null,null,null,null,null,null,"HEROES DE LA DEMOCRACIA","08DES0013M MATUTINO","080029013S19",8,8]
[null,null,null,null,null,null,null,null,"HEROES DE LA DEMOCRACIA","08DES0013M MATUTINO","080029014S19",3,1]
[null,null,null,null,null,null,null,null,"HEROES DE LA DEMOCRACIA","08DES0013M MATUTINO","080029015S19",1,1]
[null,null,null,null,null,null,null,null,"HEROES DE LA DEMOCRACIA","08DES0013M MATUTINO","080029016S19",2,3]
[null,null,null,null,null,null,null,null,"HEROES DE LA DEMOCRACIA","08DES0013M MATUTINO","080029017S19",1,3]

{"sheet":"UD_NÚMEROS Y SISTEMAS","index":21,"n_rows":52,"n_cols":27,"rows_kept":52,"cut":false,"hidden":false,"merged":[]}
[]
["Números y Sistemas de numeración","Números y Sistemas Numéricos"]
[null,null,null,null,null,"MATEMÁTICAS",24,"D",4,"SECUNDARIA","MATEMÁTICAS","SM24","SM24",null,24,"Números y Sistemas de numeración","Ubicar en la recta numérica números decimales dados dos puntos cualesquiera."]
[null,null,null,null,null,"MATEMÁTICAS",46,"B",2,"SECUNDARIA","MATEMÁTICAS","SM46","SM46",null,46,"Números y Sistemas de numeración","Ubicar en la recta numérica números decimales dados dos puntos cualesquiera."]
[]
[]
[]
[]
[]
[]
[]
[]
[null,null,"nombre_ct","CCT_TURNO","Promedio de MAT_SEC_1_24","Promedio de MAT_SEC_1_46",null,null,"nombre_ct","CCT_TURNO","nofolio","Suma de MAT_SEC_19_RESP_24","Suma de MAT_SEC_19_RESP_46",null,null,"REACTIVOS",1,2,3,4,"TOTAL ","REACTIVOS ","R1","R2","R3","R4","TOTAL"]
[null,null,"HEROES DE LA DEMOCRACIA","08DES0013M MATUTINO",0.27777777777777779,0.5,null,null,"HEROES DE LA DEMOCRACIA","08DES0013M MATUTINO","080028978S19",4,1,null,null,"SM24",{"$f":"COUNTIF(L14:L28101,Q13)","v":11},{"$f":"COUNTIF(L14:L28101,R13)","v":7},{"$f":"COUNTIF(L14:L28101,S13)","v":8},{"$f":"COUNTIF(L14:L28101,T13)","v":10},{"$f":"SUM(Q14:T14)","v":36},"SM24",{"$f":"(Q14*100)/U14","v":30.555555555555557},{"$f":"(R14*100)/U14","v":19.444444444444443},{"$f":"(S14*100)/U14","v":22.222222222222221},{"$f":"(T14*100)/U14","v":27.777777777777779},{"$f":"SUM(W14:Z14)","v":100}]
[null,null,null,null,null,null,null,null,"HEROES DE LA DEMOCRACIA","08DES0013M MATUTINO","080028979S19",4,2,null,null,"SM46",{"$f":"COUNTIF(M14:M28102,Q13)","v":5},{"$f":"COUNTIF(M14:M28102,R13)","v":18},{"$f":"COUNTIF(M14:M28102,S13)","v":7},{"$f":"COUNTIF(M14:M28102,T13)","v":6},{"$f":"SUM(Q15:T15)","v":36},"SM46",{"$f":"(Q15*100)/U15","v":13.888888888888889},{"$f":"(R15*100)/U15","v":50},{"$f":"(S15*100)/U15","v":19.444444444444443},{"$f":"(T15*100)/U15","v":16.666666666666668},{"$f":"SUM(W15:Z15)","v":100}]
[null,null,null,null,null,null,null,null,"HEROES DE LA DEMOCRACIA","08DES0013M MATUTINO","080028980S19",4,2]
[null,null,null,null,null,null,null,null,"HEROES DE LA DEMOCRACIA","08DES0013M MATUTINO","080028981S19",1,4]
[null,null,null,null,null,null,null,null,"HEROES DE LA DEMOCRACIA","08DES0013M MATUTINO","080028982S19",2,1]
[null,null,null,null,null,null,null,null,"HEROES DE LA DEMOCRACIA","08DES0013M MATUTINO","080028983S19",4,3]
[null,null,null,null,null,null,null,null,"HEROES DE LA DEMOCRACIA","08DES0013M MATUTINO","080028984S19",4,1]
[null,null,null,null,null,null,null,null,"HEROES DE LA DEMOCRACIA","08DES0013M MATUTINO","080028985S19",3,2]
[null,null,null,null,null,null,null,null,"HEROES DE LA DEMOCRACIA","08DES0013M MATUTINO","080028986S19",3,2]
[null,null,null,null,null,null,null,null,"HEROES DE LA DEMOCRACIA","08DES0013M MATUTINO","080028987S19",8,8]
[null,null,null,null,null,null,null,null,"HEROES DE LA DEMOCRACIA","08DES0013M MATUTINO","080028988S19",1,1]
[null,null,null,null,null,null,null,null,"HEROES DE LA DEMOCRACIA","08DES0013M MATUTINO","080028989S19",1,4]
[null,null,null,null,null,null,null,null,"HEROES DE LA DEMOCRACIA","08DES0013M MATUTINO","080028990S19",1,2]
[null,null,null,null,null,null,null,null,"HEROES DE LA DEMOCRACIA","08DES0013M MATUTINO","080028991S19",4,2]
[null,null,null,null,null,null,null,null,"HEROES DE LA DEMOCRACIA","08DES0013M MATUTINO","080028992S19",4,3]
[null,null,null,null,null,null,null,null,"HEROES DE LA DEMOCRACIA","08DES0013M MATUTINO","080028993S19",2,4]
[null,null,null,null,null,null,null,null,"HEROES DE LA DEMOCRACIA","08DES0013M MATUTINO","080028995S19",3,3]
[null,null,null,null,null,null,null,null,"HEROES DE LA DEMOCRACIA","08DES0013M MATUTINO","080028996S19",4,2]
[null,null,null,null,null,null,null,null,"HEROES DE LA DEMOCRACIA","08DES0013M MATUTINO","080028997S19",1,4]
[null,null,null,null,null,null,null,null,"HEROES DE LA DEMOCRACIA","08DES0013M MATUTINO","080028998S19",4,2]
[null,null,null,null,null,null,null,null,"HEROES DE LA DEMOCRACIA","08DES0013M MATUTINO","080028999S19",2,2]
[null,null,null,null,null,null,null,null,"HEROES DE LA DEMOCRACIA","08DES0013M MATUTINO","080029000S19",3,4]
[null,null,null,null,null,null,null,null,"HEROES DE LA DEMOCRACIA","08DES0013M MATUTINO","080029001S19",3,2]
[null,null,null,null,null,null,null,null,"HEROES DE LA DEMOCRACIA","08DES0013M MATUTINO","080029002S19",2,3]
[null,null,null,null,null,null,null,null,"HEROES DE LA DEMOCRACIA","08DES0013M MATUTINO","080029003S19",2,2]
[null,null,null,null,null,null,null,null,"HEROES DE LA DEMOCRACIA","08DES0013M MATUTINO","080029004S19",2,2]
[null,null,null,null,null,null,null,null,"HEROES DE LA DEMOCRACIA","08DES0013M MATUTINO","080029005S19",1,2]
[null,null,null,null,null,null,null,null,"HEROES DE LA DEMOCRACIA","08DES0013M MATUTINO","080029006S19",3,2]
[null,null,null,null,null,null,null,null,"HEROES DE LA DEMOCRACIA","08DES0013M MATUTINO","080029007S19",3,3]
[null,null,null,null,null,null,null,null,"HEROES DE LA DEMOCRACIA","08DES0013M MATUTINO","080029008S19",1,4]
[null,null,null,null,null,null,null,null,"HEROES DE LA DEMOCRACIA","08DES0013M MATUTINO","080029009S19",3,3]
[null,null,null,null,null,null,null,null,"HEROES DE LA DEMOCRACIA","08DES0013M MATUTINO","080029010S19",8,8]
[null,null,null,null,null,null,null,null,"HEROES DE LA DEMOCRACIA","08DES0013M MATUTINO","080029011S19",1,2]
[null,null,null,null,null,null,null,null,"HEROES DE LA DEMOCRACIA","08DES0013M MATUTINO","080029012S19",1,1]
[null,null,null,null,null,null,null,null,"HEROES DE LA DEMOCRACIA","08DES0013M MATUTINO","080029013S19",8,8]
[null,null,null,null,null,null,null,null,"HEROES DE LA DEMOCRACIA","08DES0013M MATUTINO","080029014S19",1,2]
[null,null,null,null,null,null,null,null,"HEROES DE LA DEMOCRACIA","08DES0013M MATUTINO","080029015S19",1,2]
[null,null,null,null,null,null,null,null,"HEROES DE LA DEMOCRACIA","08DES0013M MATUTINO","080029016S19",4,2]
[null,null,null,null,null,null,null,null,"HEROES DE LA DEMOCRACIA","08DES0013M MATUTINO","080029017S19",2,3]

{"sheet":"UD_PATRONES Y ECUACIONES","index":22,"n_rows":52,"n_cols":34,"rows_kept":52,"cut":false,"hidden":false,"merged":[]}
[]
[null,"Patrones y ecuaciones"]
[null,null,null,null,null,null,null,"MATEMÁTICAS",18,"C",3,"SECUNDARIA","MATEMÁTICAS","SM18","SM18",null,18,"Patrones y ecuaciones","Resolver ecuaciones de primer grado de la forma: ax + bx + c = dx + ex +f y con paréntesis en uno o en ambos miembros de la ecuación, utilizando coeficientes enteros o fraccionarios."]
[null,null,null,null,null,null,null,"MATEMÁTICAS",20,"A",1,"SECUNDARIA","MATEMÁTICAS","SM20","SM20",null,20,"Patrones y ecuaciones","Resolver ecuaciones de primer grado de la forma: ax + bx + c = dx + ex +f y con paréntesis en uno o en ambos miembros de la ecuación, utilizando coeficientes enteros o fraccionarios."]
[null,null,null,null,null,null,null,"MATEMÁTICAS",23,"A",1,"SECUNDARIA","MATEMÁTICAS","SM23","SM23",null,23,"Patrones y ecuaciones","Traducir al lenguaje natural el significado de fórmulas geométricas o viceversa."]
[null,null,null,null,null,null,null,"MATEMÁTICAS",39,"D",4,"SECUNDARIA","MATEMÁTICAS","SM39","SM39",null,39,"Patrones y ecuaciones","Resolver ecuaciones de primer grado de la forma: ax + bx + c = dx + ex +f y con paréntesis en uno o en ambos miembros de la ecuación, utilizando coeficientes enteros o fraccionarios."]
[null,null,null,null,null,null,null,"MATEMÁTICAS",43,"A",1,"SECUNDARIA","MATEMÁTICAS","SM43","SM43",null,43,"Patrones y ecuaciones","Resolver problemas que impliquen el uso de un sistema de dos ecuaciones lineales con dos incógnitas."]
[null,null,null,null,null,null,null,"MATEMÁTICAS",47,"B",2,"SECUNDARIA","MATEMÁTICAS","SM47","SM47",null,47,"Patrones y ecuaciones","Resolver ecuaciones de primer grado de la forma: ax + bx + c = dx + ex +f y con paréntesis en uno o en ambos miembros de la ecuación, utilizando coeficientes enteros o fraccionarios."]
[]
[]
[]
[]
[null,"nombre_ct","CCT_TURNO","Promedio de MAT_SEC_1_18","Promedio de MAT_SEC_1_20","Promedio de MAT_SEC_1_23","Promedio de MAT_SEC_1_39","Promedio de MAT_SEC_1_43","Promedio de MAT_SEC_1_47",null,null,"nombre_ct","CCT_TURNO","nofolio","MAT_SEC_19_RESP_18","MAT_SEC_19_RESP_20","MAT_SEC_19_RESP_23","MAT_SEC_19_RESP_39","MAT_SEC_19_RESP_43","MAT_SEC_19_RESP_47",null,null,"REACTIVOS",1,2,3,4,"TOTAL","REACTIVOS","R1","R2","R3","R4","TOTAL"]
[null,"HEROES DE LA DEMOCRACIA","08DES0013M MATUTINO",0.44444444444444442,0.62857142857142856,0.22222222222222221,0.22222222222222221,0.3888888888888889,0.30555555555555558,null,null,"HEROES DE LA DEMOCRACIA","08DES0013M MATUTINO","080028978S19",3,1,4,2,3,2,null,null,"SM18",{"$f":"COUNTIF(O14:O28101,X13)","v":6},{"$f":"COUNTIF(O14:O28101,Y13)","v":12},{"$f":"COUNTIF(O14:O28101,Z13)","v":16},{"$f":"COUNTIF(O14:O28101,AA13)","v":2},{"$f":"SUM(X14:AA14)","v":36},"SM18",{"$f":"(X14*100)/AB14","v":16.666666666666668},{"$f":"(Y14*100)/AB14","v":33.333333333333336},{"$f":"(Z14*100)/AB14","v":44.444444444444443},{"$f":"(AA14*100)/AB14","v":5.5555555555555554},{"$f":"SUM(AD14:AG14)","v":100}]
[null,null,null,null,null,null,null,null,null,null,null,"HEROES DE LA DEMOCRACIA","08DES0013M MATUTINO","080028979S19",2,1,3,4,3,1,null,null,"SM20",{"$f":"COUNTIF(P14:P28102,X13)","v":22},{"$f":"COUNTIF(P14:P28102,Y13)","v":6},{"$f":"COUNTIF(P14:P28102,Z13)","v":4},{"$f":"COUNTIF(P14:P28102,AA13)","v":3},{"$f":"SUM(X15:AA15)","v":35},"SM20",{"$f":"(X15*100)/AB15","v":62.857142857142854},{"$f":"(Y15*100)/AB15","v":17.142857142857142},{"$f":"(Z15*100)/AB15","v":11.428571428571429},{"$f":"(AA15*100)/AB15","v":8.5714285714285712},{"$f":"SUM(AD15:AG15)","v":100}]
[null,null,null,null,null,null,null,null,null,null,null,"HEROES DE LA DEMOCRACIA","08DES0013M MATUTINO","080028980S19",3,1,1,3,3,4,null,null,"SM23",{"$f":"COUNTIF(Q14:Q28103,X13)","v":8},{"$f":"COUNTIF(Q14:Q28103,Y13)","v":10},{"$f":"COUNTIF(Q14:Q28103,Z13)","v":8},{"$f":"COUNTIF(Q14:Q28103,AA13)","v":10},36,"SM23",22.222222222222221,27.777777777777779,22.222222222222221,27.777777777777779,100]
[null,null,null,null,null,null,null,null,null,null,null,"HEROES DE LA DEMOCRACIA","08DES0013M MATUTINO","080028981S19",2,2,3,1,1,2,null,null,"SM39",{"$f":"COUNTIF(R14:R28104,X13)","v":10},{"$f":"COUNTIF(R14:R28104,Y13)","v":7},{"$f":"COUNTIF(R14:R28104,Z13)","v":11},{"$f":"COUNTIF(R14:R28104,AA13)","v":8},36,"SM39",27.777777777777779,19.444444444444443,30.555555555555557,22.222222222222221,100]
[null,null,null,null,null,null,null,null,null,null,null,"HEROES DE LA DEMOCRACIA","08DES0013M MATUTINO","080028982S19",1,1,1,4,4,3,null,null,"SM43",{"$f":"COUNTIF(S14:S28105,X13)","v":14},{"$f":"COUNTIF(S14:S28105,Y13)","v":10},{"$f":"COUNTIF(S14:S28105,Z13)","v":6},{"$f":"COUNTIF(S14:S28105,AA13)","v":6},36,"SM43",38.888888888888886,27.777777777777779,16.666666666666668,16.666666666666668,100]
[null,null,null,null,null,null,null,null,null,null,null,"HEROES DE LA DEMOCRACIA","08DES0013M MATUTINO","080028983S19",2,3,1,4,1,1,null,null,"SM47",{"$f":"COUNTIF(T14:T28106,X13)","v":9},{"$f":"COUNTIF(T14:T28106,Y13)","v":11},{"$f":"COUNTIF(T14:T28106,Z13)","v":7},{"$f":"COUNTIF(T14:T28106,AA13)","v":9},36,"SM47",25,30.555555555555557,19.444444444444443,25,100]
[null,null,null,null,null,null,null,null,null,null,null,"HEROES DE LA DEMOCRACIA","08DES0013M MATUTINO","080028984S19",1,2,2,2,1,2]
[null,null,null,null,null,null,null,null,null,null,null,"HEROES DE LA DEMOCRACIA","08DES0013M MATUTINO","080028985S19",1,3,3,2,2,2]
[null,null,null,null,null,null,null,null,null,null,null,"HEROES DE LA DEMOCRACIA","08DES0013M MATUTINO","080028986S19",3,1,1,4,1,1]
[null,null,null,null,null,null,null,null,null,null,null,"HEROES DE LA DEMOCRACIA","08DES0013M MATUTINO","080028987S19",8,8,8,8,8,8]
[null,null,null,null,null,null,null,null,null,null,null,"HEROES DE LA DEMOCRACIA","08DES0013M MATUTINO","080028988S19",2,1,2,1,4,2]
[null,null,null,null,null,null,null,null,null,null,null,"HEROES DE LA DEMOCRACIA","08DES0013M MATUTINO","080028989S19",4,3,2,4,1,4]
[null,null,null,null,null,null,null,null,null,null,null,"HEROES DE LA DEMOCRACIA","08DES0013M MATUTINO","080028990S19",2,2,1,1,4,4]
[null,null,null,null,null,null,null,null,null,null,null,"HEROES DE LA DEMOCRACIA","08DES0013M MATUTINO","080028991S19",3,1,2,4,1,2]
[null,null,null,null,null,null,null,null,null,null,null,"HEROES DE LA DEMOCRACIA","08DES0013M MATUTINO","080028992S19",2,1,4,2,2,1]
[null,null,null,null,null,null,null,null,null,null,null,"HEROES DE LA DEMOCRACIA","08DES0013M MATUTINO","080028993S19",2,1,2,3,2,3]
[null,null,null,null,null,null,null,null,null,null,null,"HEROES DE LA DEMOCRACIA","08DES0013M MATUTINO","080028995S19",1,1,1,3,2,2]
[null,null,null,null,null,null,null,null,null,null,null,"HEROES DE LA DEMOCRACIA","08DES0013M MATUTINO","080028996S19",3,1,1,3,4,4]
[null,null,null,null,null,null,null,null,null,null,null,"HEROES DE LA DEMOCRACIA","08DES0013M MATUTINO","080028997S19",3,1,3,2,1,1]
[null,null,null,null,null,null,null,null,null,null,null,"HEROES DE LA DEMOCRACIA","08DES0013M MATUTINO","080028998S19",3,1,1,3,4,4]
[null,null,null,null,null,null,null,null,null,null,null,"HEROES DE LA DEMOCRACIA","08DES0013M MATUTINO","080028999S19",4,1,3,2,3,1]
[null,null,null,null,null,null,null,null,null,null,null,"HEROES DE LA DEMOCRACIA","08DES0013M MATUTINO","080029000S19",3,1,2,3,1,2]
[null,null,null,null,null,null,null,null,null,null,null,"HEROES DE LA DEMOCRACIA","08DES0013M MATUTINO","080029001S19",3,1,2,1,4,3]
[null,null,null,null,null,null,null,null,null,null,null,"HEROES DE LA DEMOCRACIA","08DES0013M MATUTINO","080029002S19",3,1,4,3,2,1]
[null,null,null,null,null,null,null,null,null,null,null,"HEROES DE LA DEMOCRACIA","08DES0013M MATUTINO","080029003S19",2,4,2,2,2,2]
[null,null,null,null,null,null,null,null,null,null,null,"HEROES DE LA DEMOCRACIA","08DES0013M MATUTINO","080029004S19",3,8,3,1,1,3]
[null,null,null,null,null,null,null,null,null,null,null,"HEROES DE LA DEMOCRACIA","08DES0013M MATUTINO","080029005S19",2,1,2,3,1,2]
[null,null,null,null,null,null,null,null,null,null,null,"HEROES DE LA DEMOCRACIA","08DES0013M MATUTINO","080029006S19",3,1,4,1,2,4]
[null,null,null,null,null,null,null,null,null,null,null,"HEROES DE LA DEMOCRACIA","08DES0013M MATUTINO","080029007S19",3,4,3,1,2,4]
[null,null,null,null,null,null,null,null,null,null,null,"HEROES DE LA DEMOCRACIA","08DES0013M MATUTINO","080029008S19",2,4,4,1,1,1]
[null,null,null,null,null,null,null,null,null,null,null,"HEROES DE LA DEMOCRACIA","08DES0013M MATUTINO","080029009S19",3,3,4,3,3,4]
[null,null,null,null,null,null,null,null,null,null,null,"HEROES DE LA DEMOCRACIA","08DES0013M MATUTINO","080029010S19",8,8,8,8,8,8]
[null,null,null,null,null,null,null,null,null,null,null,"HEROES DE LA DEMOCRACIA","08DES0013M MATUTINO","080029011S19",3,1,4,1,1,3]
[null,null,null,null,null,null,null,null,null,null,null,"HEROES DE LA DEMOCRACIA","08DES0013M MATUTINO","080029012S19",1,1,4,4,1,2]
[null,null,null,null,null,null,null,null,null,null,null,"HEROES DE LA DEMOCRACIA","08DES0013M MATUTINO","080029013S19",8,8,8,8,8,8]
[null,null,null,null,null,null,null,null,null,null,null,"HEROES DE LA DEMOCRACIA","08DES0013M MATUTINO","080029014S19",3,2,4,4,2,3]
[null,null,null,null,null,null,null,null,null,null,null,"HEROES DE LA DEMOCRACIA","08DES0013M MATUTINO","080029015S19",1,2,4,3,3,4]
[null,null,null,null,null,null,null,null,null,null,null,"HEROES DE LA DEMOCRACIA","08DES0013M MATUTINO","080029016S19",2,1,3,1,1,3]
[null,null,null,null,null,null,null,null,null,null,null,"HEROES DE LA DEMOCRACIA","08DES0013M MATUTINO","080029017S19",2,2,2,3,2,1]

{"sheet":"UD_PROBLEMAS ADITIVOS","index":23,"n_rows":52,"n_cols":36,"rows_kept":52,"cut":false,"hidden":false,"merged":[]}
[]
[null,"Problemas aditivos"]
[null,null,null,null,null,null,null,null,17,"D",4,"SECUNDARIA","MATEMÁTICAS","SM17","SM17",null,17,"Problemas aditivos","Resolver problemas aditivos con números fraccionarios con distinto denominador."]
[null,null,null,null,null,null,null,null,25,"C",3,"SECUNDARIA","MATEMÁTICAS","SM25","SM25",null,25,"Problemas aditivos","Resolver problemas aditivos con números decimales."]
[null,null,null,null,null,null,null,null,40,"C",3,"SECUNDARIA","MATEMÁTICAS","SM40","SM40",null,40,"Problemas aditivos","Resolver problemas aditivos con números fraccionarios con distinto denominador."]
[null,null,null,null,null,null,null,null,41,"D",4,"SECUNDARIA","MATEMÁTICAS","SM41","SM41",null,41,"Problemas aditivos","Resolver problemas aditivos con números fraccionarios y decimales."]
[null,null,null,null,null,null,null,null,42,"C",3,"SECUNDARIA","MATEMÁTICAS","SM42","SM42",null,42,"Problemas aditivos","Resolver problemas aditivos con números fraccionarios con distinto denominador."]
[null,null,null,null,null,null,null,null,44,"C",3,"SECUNDARIA","MATEMÁTICAS","SM44","SM44",null,44,"Problemas aditivos","Resolver problemas aditivos que impliquen el uso de números enteros."]
[null,null,null,null,null,null,null,null,50,"C",3,"SECUNDARIA","MATEMÁTICAS","SM50","SM50",null,50,"Problemas aditivos","Resolver problemas aditivos que impliquen el uso de números enteros."]
[]
[]
[]
[null,"nombre_ct","CCT_TURNO","Promedio de MAT_SEC_1_17","Promedio de MAT_SEC_1_25","Promedio de MAT_SEC_1_40","Promedio de MAT_SEC_1_41","Promedio de MAT_SEC_1_42","Promedio de MAT_SEC_1_44","Promedio de MAT_SEC_1_50",null,null,"nombre_ct","CCT_TURNO","nofolio","MAT_SEC_19_RESP_17","MAT_SEC_19_RESP_25","MAT_SEC_19_RESP_40","MAT_SEC_19_RESP_41","MAT_SEC_19_RESP_42","MAT_SEC_19_RESP_44","MAT_SEC_19_RESP_50",null,null,"REACTIVOS",1,2,3,4,"TOTAL","REACTIVOS","R1","R2","R3","R4","TOTAL"]
[null,"HEROES DE LA DEMOCRACIA","08DES0013M MATUTINO",0.31428571428571428,0.5,0.19444444444444445,8.3333333333333329E-2,0.27777777777777779,0.3611111111111111,0.33333333333333331,null,null,"HEROES DE LA DEMOCRACIA","08DES0013M MATUTINO","080028978S19",8,3,3,4,4,2,3,null,null,"SM17",{"$f":"COUNTIF(P14:P28101,Z13)","v":11},{"$f":"COUNTIF(P14:P28101,AA13)","v":1},{"$f":"COUNTIF(P14:P28101,AB13)","v":12},{"$f":"COUNTIF(P14:P28101,AC13)","v":11},{"$f":"SUM(Z14:AC14)","v":35},"SM17",{"$f":"(Z14*100)/AD14","v":31.428571428571427},{"$f":"(AA14*100)/AD14","v":2.8571428571428572},{"$f":"(AB14*100)/AD14","v":34.285714285714285},{"$f":"(AC14*100)/AD14","v":31.428571428571427},{"$f":"SUM(AF14:AI14)","v":100}]
[null,null,null,null,null,null,null,null,null,null,null,null,"HEROES DE LA DEMOCRACIA","08DES0013M MATUTINO","080028979S19",1,1,1,1,1,1,4,null,null,"SM25",{"$f":"COUNTIF(Q14:Q28102,Z13)","v":7},{"$f":"COUNTIF(Q14:Q28102,AA13)","v":5},{"$f":"COUNTIF(Q14:Q28102,AB13)","v":18},{"$f":"COUNTIF(Q14:Q28102,AC13)","v":6},{"$f":"SUM(Z15:AC15)","v":36},"SM25",{"$f":"(Z15*100)/AD15","v":19.444444444444443},{"$f":"(AA15*100)/AD15","v":13.888888888888889},{"$f":"(AB15*100)/AD15","v":50},{"$f":"(AC15*100)/AD15","v":16.666666666666668},{"$f":"SUM(AF15:AI15)","v":100}]
[null,null,null,null,null,null,null,null,null,null,null,null,"HEROES DE LA DEMOCRACIA","08DES0013M MATUTINO","080028980S19",4,3,4,2,2,3,3,null,null,"SM40",{"$f":"COUNTIF(R14:R28103,Z13)","v":15},{"$f":"COUNTIF(R14:R28103,AA13)","v":8},{"$f":"COUNTIF(R14:R28103,AB13)","v":7},{"$f":"COUNTIF(R14:R28103,AC13)","v":6},36,"SM40",41.666666666666664,22.222222222222221,19.444444444444443,16.666666666666668,100]
[null,null,null,null,null,null,null,null,null,null,null,null,"HEROES DE LA DEMOCRACIA","08DES0013M MATUTINO","080028981S19",4,3,1,3,3,3,3,null,null,"SM41",{"$f":"COUNTIF(S14:S28104,Z13)","v":7},{"$f":"COUNTIF(S14:S28104,AA13)","v":13},{"$f":"COUNTIF(S14:S28104,AB13)","v":13},{"$f":"COUNTIF(S14:S28104,AC13)","v":3},36,"SM41",19.444444444444443,36.111111111111114,36.111111111111114,8.3333333333333339,100]
[null,null,null,null,null,null,null,null,null,null,null,null,"HEROES DE LA DEMOCRACIA","08DES0013M MATUTINO","080028982S19",1,1,1,3,4,2,4,null,null,"SM42",{"$f":"COUNTIF(T14:T28105,Z13)","v":11},{"$f":"COUNTIF(T14:T28105,AA13)","v":9},{"$f":"COUNTIF(T14:T28105,AB13)","v":10},{"$f":"COUNTIF(T14:T28105,AC13)","v":6},36,"SM42",30.555555555555557,25,27.777777777777779,16.666666666666668,100.00000000000001]
[null,null,null,null,null,null,null,null,null,null,null,null,"HEROES DE LA DEMOCRACIA","08DES0013M MATUTINO","080028983S19",4,1,3,2,1,4,2,null,null,"SM44",{"$f":"COUNTIF(U14:U28106,Z13)","v":10},{"$f":"COUNTIF(U14:U28106,AA13)","v":9},{"$f":"COUNTIF(U14:U28106,AB13)","v":13},{"$f":"COUNTIF(U14:U28106,AC13)","v":4},36,"SM44",27.777777777777779,25,36.111111111111114,11.111111111111111,100]
[null,null,null,null,null,null,null,null,null,null,null,null,"HEROES DE LA DEMOCRACIA","08DES0013M MATUTINO","080028984S19",1,2,1,3,1,2,2,null,null,"SM50",{"$f":"COUNTIF(V14:V28107,Z13)","v":7},{"$f":"COUNTIF(V14:V28107,AA13)","v":11},{"$f":"COUNTIF(V14:V28107,AB13)","v":12},{"$f":"COUNTIF(V14:V28107,AC13)","v":6},36,"SM50",19.444444444444443,30.555555555555557,33.333333333333336,16.666666666666668,100.00000000000001]
[null,null,null,null,null,null,null,null,null,null,null,null,"HEROES DE LA DEMOCRACIA","08DES0013M MATUTINO","080028985S19",3,2,3,2,1,1,3]
[null,null,null,null,null,null,null,null,null,null,null,null,"HEROES DE LA DEMOCRACIA","08DES0013M MATUTINO","080028986S19",2,4,3,3,2,2,1]
[null,null,null,null,null,null,null,null,null,null,null,null,"HEROES DE LA DEMOCRACIA","08DES0013M MATUTINO","080028987S19",8,8,8,8,8,8,8]
[null,null,null,null,null,null,null,null,null,null,null,null,"HEROES DE LA DEMOCRACIA","08DES0013M MATUTINO","080028988S19",1,4,4,4,3,4,3]
[null,null,null,null,null,null,null,null,null,null,null,null,"HEROES DE LA DEMOCRACIA","08DES0013M MATUTINO","080028989S19",3,4,2,1,1,2,1]
[null,null,null,null,null,null,null,null,null,null,null,null,"HEROES DE LA DEMOCRACIA","08DES0013M MATUTINO","080028990S19",1,3,1,1,1,1,1]
[null,null,null,null,null,null,null,null,null,null,null,null,"HEROES DE LA DEMOCRACIA","08DES0013M MATUTINO","080028991S19",3,3,1,3,1,3,3]
[null,null,null,null,null,null,null,null,null,null,null,null,"HEROES DE LA DEMOCRACIA","08DES0013M MATUTINO","080028992S19",3,3,2,3,3,2,4]
[null,null,null,null,null,null,null,null,null,null,null,null,"HEROES DE LA DEMOCRACIA","08DES0013M MATUTINO","080028993S19",4,2,4,3,3,3,4]
[null,null,null,null,null,null,null,null,null,null,null,null,"HEROES DE LA DEMOCRACIA","08DES0013M MATUTINO","080028995S19",3,3,4,3,3,1,1]
[null,null,null,null,null,null,null,null,null,null,null,null,"HEROES DE LA DEMOCRACIA","08DES0013M MATUTINO","080028996S19",1,4,4,3,2,1,3]
[null,null,null,null,null,null,null,null,null,null,null,null,"HEROES DE LA DEMOCRACIA","08DES0013M MATUTINO","080028997S19",1,3,4,2,4,3,1]
[null,null,null,null,null,null,null,null,null,null,null,null,"HEROES DE LA DEMOCRACIA","08DES0013M MATUTINO","080028998S19",4,1,2,3,4,1,2]
[null,null,null,null,null,null,null,null,null,null,null,null,"HEROES DE LA DEMOCRACIA","08DES0013M MATUTINO","080028999S19",3,3,1,2,2,1,2]
[null,null,null,null,null,null,null,null,null,null,null,null,"HEROES DE LA DEMOCRACIA","08DES0013M MATUTINO","080029000S19",1,3,1,3,2,3,4]
[null,null,null,null,null,null,null,null,null,null,null,null,"HEROES DE LA DEMOCRACIA","08DES0013M MATUTINO","080029001S19",4,3,1,2,3,1,3]
[null,null,null,null,null,null,null,null,null,null,null,null,"HEROES DE LA DEMOCRACIA","08DES0013M MATUTINO","080029002S19",1,3,2,1,4,3,3]
[null,null,null,null,null,null,null,null,null,null,null,null,"HEROES DE LA DEMOCRACIA","08DES0013M MATUTINO","080029003S19",4,2,2,1,2,3,2]
[null,null,null,null,null,null,null,null,null,null,null,null,"HEROES DE LA DEMOCRACIA","08DES0013M MATUTINO","080029004S19",3,3,1,2,1,2,2]
[null,null,null,null,null,null,null,null,null,null,null,null,"HEROES DE LA DEMOCRACIA","08DES0013M MATUTINO","080029005S19",1,1,2,2,3,2,1]
[null,null,null,null,null,null,null,null,null,null,null,null,"HEROES DE LA DEMOCRACIA","08DES0013M MATUTINO","080029006S19",1,4,1,2,2,3,1]
[null,null,null,null,null,null,null,null,null,null,null,null,"HEROES DE LA DEMOCRACIA","08DES0013M MATUTINO","080029007S19",3,3,3,4,2,3,2]
[null,null,null,null,null,null,null,null,null,null,null,null,"HEROES DE LA DEMOCRACIA","08DES0013M MATUTINO","080029008S19",4,3,1,2,2,4,2]
[null,null,null,null,null,null,null,null,null,null,null,null,"HEROES DE LA DEMOCRACIA","08DES0013M MATUTINO","080029009S19",4,2,1,2,4,2,3]
[null,null,null,null,null,null,null,null,null,null,null,null,"HEROES DE LA DEMOCRACIA","08DES0013M MATUTINO","080029010S19",8,8,8,8,8,8,8]
[null,null,null,null,null,null,null,null,null,null,null,null,"HEROES DE LA DEMOCRACIA","08DES0013M MATUTINO","080029011S19",4,1,1,3,1,3,4]
[null,null,null,null,null,null,null,null,null,null,null,null,"HEROES DE LA DEMOCRACIA","08DES0013M MATUTINO","080029012S19",3,3,3,1,3,3,2]
[null,null,null,null,null,null,null,null,null,null,null,null,"HEROES DE LA DEMOCRACIA","08DES0013M MATUTINO","080029013S19",8,8,8,8,8,8,8]
[null,null,null,null,null,null,null,null,null,null,null,null,"HEROES DE LA DEMOCRACIA","08DES0013M MATUTINO","080029014S19",3,3,3,2,3,4,2]
[null,null,null,null,null,null,null,null,null,null,null,null,"HEROES DE LA DEMOCRACIA","08DES0013M MATUTINO","080029015S19",3,1,2,1,1,1,2]
[null,null,null,null,null,null,null,null,null,null,null,null,"HEROES DE LA DEMOCRACIA","08DES0013M MATUTINO","080029016S19",3,4,2,3,1,1,3]
[null,null,null,null,null,null,null,null,null,null,null,null,"HEROES DE LA DEMOCRACIA","08DES0013M MATUTINO","080029017S19",4,3,1,2,3,3,3]

{"sheet":"UD_PROBLEMAS MULTIPLICATIVOS","index":24,"n_rows":52,"n_cols":36,"rows_kept":52,"cut":false,"hidden":false,"merged":[]}
[]
[null,"Problemas multiplicativos"]
[null,null,null,null,null,"MATEMÁTICAS",15,"D",4,"SECUNDARIA","MATEMÁTICAS","SM15","SM15",null,15,"Problemas multiplicativos","Resolver problemas que impliquen divisiones de números fraccionarios."]
[null,null,null,null,null,"MATEMÁTICAS",16,"A",1,"SECUNDARIA","MATEMÁTICAS","SM16","SM16",null,16,"Problemas multiplicativos","Resolver problemas que impliquen multiplicaciones de números fraccionarios"]
[null,null,null,null,null,"MATEMÁTICAS",19,"C",3,"SECUNDARIA","MATEMÁTICAS","SM19","SM19",null,19,"Problemas multiplicativos","Resolver problemas que impliquen divisiones de números fraccionarios."]
[null,null,null,null,null,"MATEMÁTICAS",21,"B",2,"SECUNDARIA","MATEMÁTICAS","SM21","SM21",null,21,"Problemas multiplicativos","Resolver problemas que impliquen multiplicación de números decimales."]
[null,null,null,null,null,"MATEMÁTICAS",45,"A",1,"SECUNDARIA","MATEMÁTICAS","SM45","SM45",null,45,"Problemas multiplicativos","Resolver problemas que impliquen multiplicaciones de números fraccionarios"]
[null,null,null,null,null,"MATEMÁTICAS",48,"A",1,"SECUNDARIA","MATEMÁTICAS","SM48","SM48",null,48,"Problemas multiplicativos","Resolver problemas que impliquen el cálculo de la raíz cuadrada"]
[null,null,null,null,null,"MATEMÁTICAS",49,"D",4,"SECUNDARIA","MATEMÁTICAS","SM49","SM49",null,49,"Problemas multiplicativos","Resolver problemas multiplicativos con números enteros."]
[]
[]
[]
[null,"nombre_ct","CCT_TURNO","Promedio de MAT_SEC_1_15","Promedio de MAT_SEC_1_16","Promedio de MAT_SEC_1_19","Promedio de MAT_SEC_1_211","Promedio de MAT_SEC_1_45","Promedio de MAT_SEC_1_48","Promedio de MAT_SEC_1_49",null,null,"nombre_ct","CCT_TURNO","nofolio","MAT_SEC_19_RESP_15","MAT_SEC_19_RESP_16","MAT_SEC_19_RESP_19","MAT_SEC_19_RESP_21","MAT_SEC_19_RESP_45","MAT_SEC_19_RESP_48","MAT_SEC_19_RESP_49",null,null,"REACTIVOS",1,2,3,4,"TOTAL","REACTIVOS","R1","R2","R3","R4","TOTAL"]
[null,"HEROES DE LA DEMOCRACIA","08DES0013M MATUTINO",0.19444444444444445,0.19444444444444445,0.27777777777777779,0.61111111111111116,0.3888888888888889,0.3888888888888889,0.3888888888888889,null,null,"HEROES DE LA DEMOCRACIA","08DES0013M MATUTINO","080028978S19",4,4,2,2,1,4,3,null,null,"SM15",{"$f":"COUNTIF(P14:P28101,Z13)","v":8},{"$f":"COUNTIF(P14:P28101,AA13)","v":12},{"$f":"COUNTIF(P14:P28101,AB13)","v":9},{"$f":"COUNTIF(P14:P28101,AC13)","v":7},{"$f":"SUM(Z14:AC14)","v":36},"SM15",{"$f":"(Z14*100)/AD14","v":22.222222222222221},{"$f":"(AA14*100)/AD14","v":33.333333333333336},{"$f":"(AB14*100)/AD14","v":25},{"$f":"(AC14*100)/AD14","v":19.444444444444443},{"$f":"SUM(AF14:AI14)","v":100}]
[null,null,null,null,null,null,null,null,null,null,null,null,"HEROES DE LA DEMOCRACIA","08DES0013M MATUTINO","080028979S19",4,4,3,1,2,2,1,null,null,"SM16",{"$f":"COUNTIF(Q14:Q28102,Z13)","v":7},{"$f":"COUNTIF(Q14:Q28102,AA13)","v":9},{"$f":"COUNTIF(Q14:Q28102,AB13)","v":8},{"$f":"COUNTIF(Q14:Q28102,AC13)","v":12},{"$f":"SUM(Z15:AC15)","v":36},"SM16",{"$f":"(Z15*100)/AD15","v":19.444444444444443},{"$f":"(AA15*100)/AD15","v":25},{"$f":"(AB15*100)/AD15","v":22.222222222222221},{"$f":"(AC15*100)/AD15","v":33.333333333333336},{"$f":"SUM(AF15:AI15)","v":100}]
[null,null,null,null,null,null,null,null,null,null,null,null,"HEROES DE LA DEMOCRACIA","08DES0013M MATUTINO","080028980S19",2,4,3,3,2,1,3,null,null,"SM19",{"$f":"COUNTIF(R14:R28103,Z13)","v":5},{"$f":"COUNTIF(R14:R28103,AA13)","v":12},{"$f":"COUNTIF(R14:R28103,AB13)","v":10},{"$f":"COUNTIF(R14:R28103,AC13)","v":9},36,"SM19",13.888888888888889,33.333333333333336,27.777777777777779,25,100]
[null,null,null,null,null,null,null,null,null,null,null,null,"HEROES DE LA DEMOCRACIA","08DES0013M MATUTINO","080028981S19",4,3,3,1,1,1,4,null,null,"SM21",{"$f":"COUNTIF(S14:S28104,Z13)","v":5},{"$f":"COUNTIF(S14:S28104,AA13)","v":22},{"$f":"COUNTIF(S14:S28104,AB13)","v":6},{"$f":"COUNTIF(S14:S28104,AC13)","v":3},36,"SM21",13.888888888888889,61.111111111111114,16.666666666666668,8.3333333333333339,100]
[null,null,null,null,null,null,null,null,null,null,null,null,"HEROES DE LA DEMOCRACIA","08DES0013M MATUTINO","080028982S19",4,3,2,4,3,4,2,null,null,"SM45",{"$f":"COUNTIF(T14:T28105,Z13)","v":14},{"$f":"COUNTIF(T14:T28105,AA13)","v":10},{"$f":"COUNTIF(T14:T28105,AB13)","v":8},{"$f":"COUNTIF(T14:T28105,AC13)","v":4},36,"SM45",38.888888888888886,27.777777777777779,22.222222222222221,11.111111111111111,100]
[null,null,null,null,null,null,null,null,null,null,null,null,"HEROES DE LA DEMOCRACIA","08DES0013M MATUTINO","080028983S19",3,2,1,4,4,1,3,null,null,"SM48",{"$f":"COUNTIF(U14:U28106,Z13)","v":14},{"$f":"COUNTIF(U14:U28106,AA13)","v":9},{"$f":"COUNTIF(U14:U28106,AB13)","v":7},{"$f":"COUNTIF(U14:U28106,AC13)","v":6},36,"SM48",38.888888888888886,25,19.444444444444443,16.666666666666668,100]
[null,null,null,null,null,null,null,null,null,null,null,null,"HEROES DE LA DEMOCRACIA","08DES0013M MATUTINO","080028984S19",2,4,2,2,1,2,1,null,null,"SM49",{"$f":"COUNTIF(V14:V28107,Z13)","v":8},{"$f":"COUNTIF(V14:V28107,AA13)","v":8},{"$f":"COUNTIF(V14:V28107,AB13)","v":6},{"$f":"COUNTIF(V14:V28107,AC13)","v":14},36,"SM49",22.222222222222221,22.222222222222221,16.666666666666668,38.888888888888886,100]
[null,null,null,null,null,null,null,null,null,null,null,null,"HEROES DE LA DEMOCRACIA","08DES0013M MATUTINO","080028985S19",2,2,2,3,1,2,4]
[null,null,null,null,null,null,null,null,null,null,null,null,"HEROES DE LA DEMOCRACIA","08DES0013M MATUTINO","080028986S19",4,3,2,2,1,4,3]
[null,null,null,null,null,null,null,null,null,null,null,null,"HEROES DE LA DEMOCRACIA","08DES0013M MATUTINO","080028987S19",8,8,8,8,8,8,8]
[null,null,null,null,null,null,null,null,null,null,null,null,"HEROES DE LA DEMOCRACIA","08DES0013M MATUTINO","080028988S19",1,2,4,2,3,2,4]
[null,null,null,null,null,null,null,null,null,null,null,null,"HEROES DE LA DEMOCRACIA","08DES0013M MATUTINO","080028989S19",1,1,2,3,3,1,2]
[null,null,null,null,null,null,null,null,null,null,null,null,"HEROES DE LA DEMOCRACIA","08DES0013M MATUTINO","080028990S19",1,3,4,2,2,2,4]
[null,null,null,null,null,null,null,null,null,null,null,null,"HEROES DE LA DEMOCRACIA","08DES0013M MATUTINO","080028991S19",2,1,4,2,1,1,4]
[null,null,null,null,null,null,null,null,null,null,null,null,"HEROES DE LA DEMOCRACIA","08DES0013M MATUTINO","080028992S19",3,3,4,4,3,3,2]
[null,null,null,null,null,null,null,null,null,null,null,null,"HEROES DE LA DEMOCRACIA","08DES0013M MATUTINO","080028993S19",1,2,4,2,2,1,1]
[null,null,null,null,null,null,null,null,null,null,null,null,"HEROES DE LA DEMOCRACIA","08DES0013M MATUTINO","080028995S19",2,1,2,2,1,4,3]
[null,null,null,null,null,null,null,null,null,null,null,null,"HEROES DE LA DEMOCRACIA","08DES0013M MATUTINO","080028996S19",1,3,3,2,3,2,1]
[null,null,null,null,null,null,null,null,null,null,null,null,"HEROES DE LA DEMOCRACIA","08DES0013M MATUTINO","080028997S19",4,4,2,2,2,3,4]
[null,null,null,null,null,null,null,null,null,null,null,null,"HEROES DE LA DEMOCRACIA","08DES0013M MATUTINO","080028998S19",2,1,1,2,2,4,1]
[null,null,null,null,null,null,null,null,null,null,null,null,"HEROES DE LA DEMOCRACIA","08DES0013M MATUTINO","080028999S19",3,1,2,3,4,4,1]
[null,null,null,null,null,null,null,null,null,null,null,null,"HEROES DE LA DEMOCRACIA","08DES0013M MATUTINO","080029000S19",2,4,4,2,2,3,2]
[null,null,null,null,null,null,null,null,null,null,null,null,"HEROES DE LA DEMOCRACIA","08DES0013M MATUTINO","080029001S19",3,2,4,2,2,1,4]
[null,null,null,null,null,null,null,null,null,null,null,null,"HEROES DE LA DEMOCRACIA","08DES0013M MATUTINO","080029002S19",3,3,3,2,1,3,4]
[null,null,null,null,null,null,null,null,null,null,null,null,"HEROES DE LA DEMOCRACIA","08DES0013M MATUTINO","080029003S19",3,4,2,2,3,1,2]
[null,null,null,null,null,null,null,null,null,null,null,null,"HEROES DE LA DEMOCRACIA","08DES0013M MATUTINO","080029004S19",2,1,2,2,2,2,4]
[null,null,null,null,null,null,null,null,null,null,null,null,"HEROES DE LA DEMOCRACIA","08DES0013M MATUTINO","080029005S19",2,3,3,1,3,3,1]
[null,null,null,null,null,null,null,null,null,null,null,null,"HEROES DE LA DEMOCRACIA","08DES0013M MATUTINO","080029006S19",3,2,2,3,4,1,4]
[null,null,null,null,null,null,null,null,null,null,null,null,"HEROES DE LA DEMOCRACIA","08DES0013M MATUTINO","080029007S19",3,4,1,2,2,1,4]
[null,null,null,null,null,null,null,null,null,null,null,null,"HEROES DE LA DEMOCRACIA","08DES0013M MATUTINO","080029008S19",1,1,4,3,4,1,3]
[null,null,null,null,null,null,null,null,null,null,null,null,"HEROES DE LA DEMOCRACIA","08DES0013M MATUTINO","080029009S19",3,4,1,2,1,2,1]
[null,null,null,null,null,null,null,null,null,null,null,null,"HEROES DE LA DEMOCRACIA","08DES0013M MATUTINO","080029010S19",8,8,8,8,8,8,8]
[null,null,null,null,null,null,null,null,null,null,null,null,"HEROES DE LA DEMOCRACIA","08DES0013M MATUTINO","080029011S19",4,2,4,2,1,1,2]
[null,null,null,null,null,null,null,null,null,null,null,null,"HEROES DE LA DEMOCRACIA","08DES0013M MATUTINO","080029012S19",2,4,3,2,3,3,2]
[null,null,null,null,null,null,null,null,null,null,null,null,"HEROES DE LA DEMOCRACIA","08DES0013M MATUTINO","080029013S19",8,8,8,8,8,8,8]
[null,null,null,null,null,null,null,null,null,null,null,null,"HEROES DE LA DEMOCRACIA","08DES0013M MATUTINO","080029014S19",2,4,1,2,1,1,4]
[null,null,null,null,null,null,null,null,null,null,null,null,"HEROES DE LA DEMOCRACIA","08DES0013M MATUTINO","080029015S19",1,2,3,2,1,2,4]
[null,null,null,null,null,null,null,null,null,null,null,null,"HEROES DE LA DEMOCRACIA","08DES0013M MATUTINO","080029016S19",2,2,3,1,1,1,4]
[null,null,null,null,null,null,null,null,null,null,null,null,"HEROES DE LA DEMOCRACIA","08DES0013M MATUTINO","080029017S19",1,4,3,1,1,3,2]

{"sheet":"UD_PROPORCIONALIDAD","index":25,"n_rows":51,"n_cols":36,"rows_kept":51,"cut":false,"hidden":false,"merged":[]}
[null,"Proporcionalidad y funciones"]
[null,null,null,null,null,null,"MATEMÁTICAS",10,"B",2,"SECUNDARIA","MATEMÁTICAS","SM10","SM10",null,10,"Proporcionalidad y funciones","Encontrar el factor inverso en una relación de proporcionalidad."]
[null,null,null,null,null,null,"MATEMÁTICAS",12,"B",2,"SECUNDARIA","MATEMÁTICAS","SM12","SM12",null,12,"Proporcionalidad y funciones","Identificar la relación entre la pendiente y la razón de cambio."]
[null,null,null,null,null,null,"MATEMÁTICAS",13,"A",1,"SECUNDARIA","MATEMÁTICAS","SM13","SM13",null,13,"Proporcionalidad y funciones","Identificar las representaciones (gráfica, tabla y expresión algebraica) que correspondan a una misma situación de proporcionalidad directa."]
[null,null,null,null,null,null,"MATEMÁTICAS",33,"D",4,"SECUNDARIA","MATEMÁTICAS","SM33","SM33",null,33,"Proporcionalidad y funciones"," Resolver problemas de proporcionalidad directa en los que se apliquen sucesivamente dos factores constantes de proporcionalidad."]
[null,null,null,null,null,null,"MATEMÁTICAS",35,"B",2,"SECUNDARIA","MATEMÁTICAS","SM35","SM35",null,35,"Proporcionalidad y funciones","Identificar la relación de un fenómeno con su representación gráfica formada por segmentos de recta y curvas. "]
[null,null,null,null,null,null,"MATEMÁTICAS",36,"D",4,"SECUNDARIA","MATEMÁTICAS","SM36","SM36",null,36,"Proporcionalidad y funciones","Resolver problemas que impliquen una relación inversamente proporcional entre dos conjuntos de cantidades."]
[null,null,null,null,null,null,"MATEMÁTICAS",38,"B",2,"SECUNDARIA","MATEMÁTICAS","SM38","SM38",null,38,"Proporcionalidad y funciones","Identificar la relación entre la pendiente y la razón de cambio."]
[]
[]
[]
[null,"nombre_ct","CCT_TURNO","Promedio de MAT_SEC_1_10","Promedio de MAT_SEC_1_12","Promedio de MAT_SEC_1_13","Promedio de MAT_SEC_1_33","Promedio de MAT_SEC_1_35","Promedio de MAT_SEC_1_36","Promedio de MAT_SEC_1_38",null,null,"nombre_ct","CCT_TURNO","nofolio","MAT_SEC_19_RESP_10","MAT_SEC_19_RESP_12","MAT_SEC_19_RESP_13","MAT_SEC_19_RESP_33","MAT_SEC_19_RESP_35","MAT_SEC_19_RESP_36","MAT_SEC_19_RESP_38",null,null,"REACTIVOS",1,2,3,4,"TOTAL","REACTIVOS","R1","R2","R3","R4","TOTAL"]
[null,"HEROES DE LA DEMOCRACIA","08DES0013M MATUTINO",5.5555555555555552E-2,0.3611111111111111,0.3888888888888889,0.25,0.27777777777777779,0.30555555555555558,0.33333333333333331,null,null,"HEROES DE LA DEMOCRACIA","08DES0013M MATUTINO","080028978S19",4,3,2,4,1,4,1,null,null,"SM10",{"$f":"COUNTIF(P13:P28100,Z12)","v":14},{"$f":"COUNTIF(P13:P28100,AA12)","v":2},{"$f":"COUNTIF(P13:P28100,AB12)","v":14},{"$f":"COUNTIF(P13:P28100,AC12)","v":6},{"$f":"SUM(Z13:AC13)","v":36},"SM10",{"$f":"(Z13*100)/AD13","v":38.888888888888886},{"$f":"(AA13*100)/AD13","v":5.5555555555555554},{"$f":"(AB13*100)/AD13","v":38.888888888888886},{"$f":"(AC13*100)/AD13","v":16.666666666666668},{"$f":"SUM(AF13:AI13)","v":100}]
[null,null,null,null,null,null,null,null,null,null,null,null,"HEROES DE LA DEMOCRACIA","08DES0013M MATUTINO","080028979S19",3,2,1,3,1,1,2,null,null,"SM12",{"$f":"COUNTIF(Q13:Q28101,Z12)","v":6},{"$f":"COUNTIF(Q13:Q28101,AA12)","v":13},{"$f":"COUNTIF(Q13:Q28101,AB12)","v":11},{"$f":"COUNTIF(Q13:Q28101,AC12)","v":6},{"$f":"SUM(Z14:AC14)","v":36},"SM12",{"$f":"(Z14*100)/AD14","v":16.666666666666668},{"$f":"(AA14*100)/AD14","v":36.111111111111114},{"$f":"(AB14*100)/AD14","v":30.555555555555557},{"$f":"(AC14*100)/AD14","v":16.666666666666668},{"$f":"SUM(AF14:AI14)","v":100.00000000000001}]
[null,null,null,null,null,null,null,null,null,null,null,null,"HEROES DE LA DEMOCRACIA","08DES0013M MATUTINO","080028980S19",3,2,2,4,1,4,2,null,null,"SM13",{"$f":"COUNTIF(R13:R28102,Z12)","v":14},{"$f":"COUNTIF(R13:R28102,AA12)","v":8},{"$f":"COUNTIF(R13:R28102,AB12)","v":3},{"$f":"COUNTIF(R13:R28102,AC12)","v":11},36,"SM13",38.888888888888886,22.222222222222221,8.3333333333333339,30.555555555555557,100]
[null,null,null,null,null,null,null,null,null,null,null,null,"HEROES DE LA DEMOCRACIA","08DES0013M MATUTINO","080028981S19",4,4,1,1,2,2,4,null,null,"SM33",{"$f":"COUNTIF(S13:S28103,Z12)","v":4},{"$f":"COUNTIF(S13:S28103,AA12)","v":18},{"$f":"COUNTIF(S13:S28103,AB12)","v":5},{"$f":"COUNTIF(S13:S28103,AC12)","v":9},36,"SM33",11.111111111111111,50,13.888888888888889,25,100]
[null,null,null,null,null,null,null,null,null,null,null,null,"HEROES DE LA DEMOCRACIA","08DES0013M MATUTINO","080028982S19",1,2,4,2,2,3,3,null,null,"SM35",{"$f":"COUNTIF(T13:T28104,Z12)","v":19},{"$f":"COUNTIF(T13:T28104,AA12)","v":10},{"$f":"COUNTIF(T13:T28104,AB12)","v":6},{"$f":"COUNTIF(T13:T28104,AC12)","v":1},36,"SM35",52.777777777777779,27.777777777777779,16.666666666666668,2.7777777777777777,100]
[null,null,null,null,null,null,null,null,null,null,null,null,"HEROES DE LA DEMOCRACIA","08DES0013M MATUTINO","080028983S19",1,2,4,1,4,1,2,null,null,"SM36",{"$f":"COUNTIF(U13:U28105,Z12)","v":12},{"$f":"COUNTIF(U13:U28105,AA12)","v":9},{"$f":"COUNTIF(U13:U28105,AB12)","v":4},{"$f":"COUNTIF(U13:U28105,AC12)","v":11},36,"SM36",33.333333333333336,25,11.111111111111111,30.555555555555557,100]
[null,null,null,null,null,null,null,null,null,null,null,null,"HEROES DE LA DEMOCRACIA","08DES0013M MATUTINO","080028984S19",3,3,2,1,1,2,1,null,null,"SM38",{"$f":"COUNTIF(V13:V28106,Z12)","v":15},{"$f":"COUNTIF(V13:V28106,AA12)","v":12},{"$f":"COUNTIF(V13:V28106,AB12)","v":5},{"$f":"COUNTIF(V13:V28106,AC12)","v":4},36,"SM38",41.666666666666664,33.333333333333336,13.888888888888889,11.111111111111111,100]
[null,null,null,null,null,null,null,null,null,null,null,null,"HEROES DE LA DEMOCRACIA","08DES0013M MATUTINO","080028985S19",3,4,4,4,1,2,4]
[null,null,null,null,null,null,null,null,null,null,null,null,"HEROES DE LA DEMOCRACIA","08DES0013M MATUTINO","080028986S19",3,2,1,2,2,1,2]
[null,null,null,null,null,null,null,null,null,null,null,null,"HEROES DE LA DEMOCRACIA","08DES0013M MATUTINO","080028987S19",8,8,8,8,8,8,8]
[null,null,null,null,null,null,null,null,null,null,null,null,"HEROES DE LA DEMOCRACIA","08DES0013M MATUTINO","080028988S19",4,1,3,4,1,2,2]
[null,null,null,null,null,null,null,null,null,null,null,null,"HEROES DE LA DEMOCRACIA","08DES0013M MATUTINO","080028989S19",3,3,2,1,2,4,1]
[null,null,null,null,null,null,null,null,null,null,null,null,"HEROES DE LA DEMOCRACIA","08DES0013M MATUTINO","080028990S19",1,4,4,2,1,4,3]
[null,null,null,null,null,null,null,null,null,null,null,null,"HEROES DE LA DEMOCRACIA","08DES0013M MATUTINO","080028991S19",1,2,1,2,1,4,2]
[null,null,null,null,null,null,null,null,null,null,null,null,"HEROES DE LA DEMOCRACIA","08DES0013M MATUTINO","080028992S19",3,1,4,2,1,2,3]
[null,null,null,null,null,null,null,null,null,null,null,null,"HEROES DE LA DEMOCRACIA","08DES0013M MATUTINO","080028993S19",1,3,4,4,1,2,2]
[null,null,null,null,null,null,null,null,null,null,null,null,"HEROES DE LA DEMOCRACIA","08DES0013M MATUTINO","080028995S19",1,4,1,2,1,4,1]
[null,null,null,null,null,null,null,null,null,null,null,null,"HEROES DE LA DEMOCRACIA","08DES0013M MATUTINO","080028996S19",3,3,2,3,1,1,2]
[null,null,null,null,null,null,null,null,null,null,null,null,"HEROES DE LA DEMOCRACIA","08DES0013M MATUTINO","080028997S19",3,2,1,4,1,4,1]
[null,null,null,null,null,null,null,null,null,null,null,null,"HEROES DE LA DEMOCRACIA","08DES0013M MATUTINO","080028998S19",3,3,2,2,2,3,3]
[null,null,null,null,null,null,null,null,null,null,null,null,"HEROES DE LA DEMOCRACIA","08DES0013M MATUTINO","080028999S19",3,2,4,2,1,3,1]
[null,null,null,null,null,null,null,null,null,null,null,null,"HEROES DE LA DEMOCRACIA","08DES0013M MATUTINO","080029000S19",4,2,1,2,2,1,4]
[null,null,null,null,null,null,null,null,null,null,null,null,"HEROES DE LA DEMOCRACIA","08DES0013M MATUTINO","080029001S19",1,3,4,2,1,1,1]
[null,null,null,null,null,null,null,null,null,null,null,null,"HEROES DE LA DEMOCRACIA","08DES0013M MATUTINO","080029002S19",4,1,4,4,1,4,2]
[null,null,null,null,null,null,null,null,null,null,null,null,"HEROES DE LA DEMOCRACIA","08DES0013M MATUTINO","080029003S19",2,2,1,2,2,1,1]
[null,null,null,null,null,null,null,null,null,null,null,null,"HEROES DE LA DEMOCRACIA","08DES0013M MATUTINO","080029004S19",3,3,1,3,1,2,1]
[null,null,null,null,null,null,null,null,null,null,null,null,"HEROES DE LA DEMOCRACIA","08DES0013M MATUTINO","080029005S19",1,3,3,4,1,3,2]
[null,null,null,null,null,null,null,null,null,null,null,null,"HEROES DE LA DEMOCRACIA","08DES0013M MATUTINO","080029006S19",4,1,1,2,2,4,1]
[null,null,null,null,null,null,null,null,null,null,null,null,"HEROES DE LA DEMOCRACIA","08DES0013M MATUTINO","080029007S19",1,1,3,2,3,1,4]
[null,null,null,null,null,null,null,null,null,null,null,null,"HEROES DE LA DEMOCRACIA","08DES0013M MATUTINO","080029008S19",1,1,4,3,2,4,1]
[null,null,null,null,null,null,null,null,null,null,null,null,"HEROES DE LA DEMOCRACIA","08DES0013M MATUTINO","080029009S19",1,2,1,2,3,4,2]
[null,null,null,null,null,null,null,null,null,null,null,null,"HEROES DE LA DEMOCRACIA","08DES0013M MATUTINO","080029010S19",8,8,8,8,8,8,8]
[null,null,null,null,null,null,null,null,null,null,null,null,"HEROES DE LA DEMOCRACIA","08DES0013M MATUTINO","080029011S19",1,3,4,2,1,1,1]
[null,null,null,null,null,null,null,null,null,null,null,null,"HEROES DE LA DEMOCRACIA","08DES0013M MATUTINO","080029012S19",2,2,1,4,3,2,1]
[null,null,null,null,null,null,null,null,null,null,null,null,"HEROES DE LA DEMOCRACIA","08DES0013M MATUTINO","080029013S19",8,8,8,8,8,8,8]
[null,null,null,null,null,null,null,null,null,null,null,null,"HEROES DE LA DEMOCRACIA","08DES0013M MATUTINO","080029014S19",3,2,1,3,3,2,1]
[null,null,null,null,null,null,null,null,null,null,null,null,"HEROES DE LA DEMOCRACIA","08DES0013M MATUTINO","080029015S19",1,4,2,2,3,1,1]
[null,null,null,null,null,null,null,null,null,null,null,null,"HEROES DE LA DEMOCRACIA","08DES0013M MATUTINO","080029016S19",1,3,1,2,2,1,3]
[null,null,null,null,null,null,null,null,null,null,null,null,"HEROES DE LA DEMOCRACIA","08DES0013M MATUTINO","080029017S19",3,4,2,2,3,1,2]